Workbook

Sheet UPDATES
A1: SUMMARY OF UPDATES TO THE PRICE LIST
A3: 2025-11-03 | B3: PaperCut MF - SKU's Added, SKUS Removed,Pricing Changes
B4: PaperCut Integrations - SKU's Added, Descriptions Updated and Pricing Changes
B5: PaperCut MFS - SKU's Added, Descriptions Updated and Pricing Changes
B6: PaperCut Hive -SKU's Added, SKU's Removed, Pricing Changes
B7: Scanshare - SKU's Added, SKU's Removed
B8: Intuitive for PaperCut- New Tab, All new SKU's Added
B9: Square 9 - SKU's Added, SKUS Removed,Pricing Changes

Sheet Table of Contents
A2: NASPO ValuePoint Contract #188627
A4: Software Table of Contents
A6: PaperCut MF
A8: PaperCut Integrations
A10: PaperCut MFS
A12: PaperCut Hive
A14: Scanshare
A16: Intuitive PC
A18: FaxCore Cloud Faxing
A20: Square 9
A22: Synappx
A24: Software Related Services

Sheet PaperCut MF
A1: Return to Table of Contents
A2: PaperCut MF
A5: PaperCut MF is a comprehensive print management system designed to seamlessly monitor and control your printing costs with easy to use administrative and user tools that can be securely accessed from anywhere on the network though a web browser.
A10: PAPERCUT MF COMMERCIAL
A11: Vendor Part # | B11: Description | C11: MSRP Retail | D11: NASPO Price | E11: Type
A12: Multifunction Device License - (Volume discounts apply to licenses once minimum quantities for that OEM tier have been reached)
A13: Sharp Multifunction Device License (PaperCut MF Commercial)
A14: PCMFC-Sharp | B14: PaperCut MFD Emb, Sharp, Comm, 1-9, per device | C14: $765.00 | D14: =ROUND(C14*(1-0.1),0) -> $689.00 | E14: One Time Fee
A15: PCMFC-Sharp-10 | B15: PaperCut MFD Emb, Sharp, Comm, 10-24, per device | C15: $506.00 | D15: $455.00 | E15: One Time Fee
A16: PCMFC-Sharp-25 | B16: PaperCut MFD Emb, Sharp, Comm, 25-49, per device | C16: $437.00 | D16: $393.00 | E16: One Time Fee
A17: PCMFC-Sharp-50 | B17: PaperCut MFD Emb, Sharp, Comm, 50-99, per device | C17: $372.00 | D17: $335.00 | E17: One Time Fee
A18: PCMFC-Sharp-100 | B18: PaperCut MFD Emb, Sharp, Comm, 100-199, per device | C18: $312.00 | D18: $281.00 | E18: One Time Fee
A19: PCMFC-Sharp-500 | B19: PaperCut MFD Emb, Sharp, Comm, 500-999, per device | C19: $299.00 | D19: $269.00 | E19: One Time Fee
A20: PCMFC-Sharp-100 | B20: PaperCut MFD Emb, Sharp, Comm, 1000+, per device | C20: $270.00 | D20: $243.00 | E20: One Time Fee
A21: Canon Multifunction Device License (PaperCut MF Commercial)
A22: PCMFC-Canon | B22: PaperCut MFD Emb, Canon, Comm, 1-9, per device | C22: $765.00 | D22: $689.00 | E22: One Time Fee
A23: PCMFC-Canon-10 | B23: PaperCut MFD Emb, Canon, Comm, 10-24, per device | C23: $506.00 | D23: $455.00 | E23: One Time Fee
A24: PCMFC-Canon-25 | B24: PaperCut MFD Emb, Canon, Comm, 25-49, per device | C24: $437.00 | D24: $393.00 | E24: One Time Fee
A25: PCMFC-Canon-50 | B25: PaperCut MFD Emb, Canon, Comm, 50-99, per device | C25: $372.00 | D25: $335.00 | E25: One Time Fee
A26: PCMFC-Canon-100 | B26: PaperCut MFD Emb, Canon, Comm, 100-199, per device | C26: $312.00 | D26: $281.00 | E26: One Time Fee
A27: PCMFC-Canon-500 | B27: PaperCut MFD Emb, Canon, Comm, 500-999, per device | C27: $299.00 | D27: $269.00 | E27: One Time Fee
A28: PCMFC-Canon-1000 | B28: PaperCut MFD Emb, Canon, Comm, 1000+, per device | C28: $270.00 | D28: $243.00 | E28: One Time Fee
A29: Fuji Multifunction Device License (PaperCut MF Commercial)
A30: PCMFC-Fuji | B30: PaperCut MFD Emb, Fuji, Comm, 1-9, per device | C30: $765.00 | D30: $689.00 | E30: One Time Fee
A31: PCMFC-Fuji-10 | B31: PaperCut MFD Emb, Fuji, Comm, 10-24, per device | C31: $506.00 | D31: $455.00 | E31: One Time Fee
A32: PCMFC-Fuji-25 | B32: PaperCut MFD Emb, Fuji, Comm, 25-49, per device | C32: $437.00 | D32: $393.00 | E32: One Time Fee
A33: PCMFC-Fuji-50 | B33: PaperCut MFD Emb, Fuji, Comm, 50-99, per device | C33: $372.00 | D33: $335.00 | E33: One Time Fee
A34: PCMFC-Fuji-100 | B34: PaperCut MFD Emb, Fuji, Comm, 100-199, per device | C34: $312.00 | D34: $281.00 | E34: One Time Fee
A35: PCMFC-Fuji-500 | B35: PaperCut MFD Emb, Fuji, Comm, 500-999, per device | C35: $299.00 | D35: $269.00 | E35: One Time Fee
A36: PCMFC-Fuji-1000 | B36: PaperCut MFD Emb, Fuji, Comm, 1000+, per device | C36: $270.00 | D36: $243.00 | E36: One Time Fee
A37: HP Multifunction Device License (PaperCut MF Commercial)
A38: PCMFC-HP | B38: PaperCut MFD Emb, HP, Comm, 1-9, per device | C38: $765.00 | D38: $689.00 | E38: One Time Fee
A39: PCMFC-HP-10 | B39: PaperCut MFD Emb, HP, Comm, 10-24, per device | C39: $506.00 | D39: $455.00 | E39: One Time Fee
A40: PCMFC-HP-25 | B40: PaperCut MFD Emb, HP, Comm, 25-49, per device | C40: $437.00 | D40: $393.00 | E40: One Time Fee
A41: PCMFC-HP-50 | B41: PaperCut MFD Emb, HP, Comm, 50-99, per device | C41: $372.00 | D41: $335.00 | E41: One Time Fee
A42: PCMFC-HP-100 | B42: PaperCut MFD Emb, HP, Comm, 100-199, per device | C42: $312.00 | D42: $281.00 | E42: One Time Fee
A43: PCMFC-HP-500 | B43: PaperCut MFD Emb, HP, Comm, 500-999, per device | C43: $299.00 | D43: $269.00 | E43: One Time Fee
A44: PCMFC-HP-1000 | B44: PaperCut MFD Emb, HP, Comm, 1000+, per device | C44: $270.00 | D44: $243.00 | E44: One Time Fee
A45: Konica Minolta Multifunction Device License (PaperCut MF Commercial)
A46: PCMFC-KM | B46: PaperCut MFD Emb, KM, Comm, 1-9, per device | C46: $765.00 | D46: $689.00 | E46: One Time Fee
A47: PCMFC-KM-10 | B47: PaperCut MFD Emb, KM, Comm, 10-24, per device | C47: $506.00 | D47: $455.00 | E47: One Time Fee
A48: PCMFC-KM-25 | B48: PaperCut MFD Emb, KM, Comm, 25-49, per device | C48: $437.00 | D48: $393.00 | E48: One Time Fee
A49: PCMFC-KM-50 | B49: PaperCut MFD Emb, KM, Comm, 50-99, per device | C49: $372.00 | D49: $335.00 | E49: One Time Fee
A50: PCMFC-KM-100 | B50: PaperCut MFD Emb, KM, Comm, 100-199, per device | C50: $312.00 | D50: $281.00 | E50: One Time Fee
A51: PCMFC-KM-500 | B51: PaperCut MFD Emb, KM, Comm, 500-999, per device | C51: $299.00 | D51: $269.00 | E51: One Time Fee
A52: PCMFC-KM-1000 | B52: PaperCut MFD Emb, KM, Comm, 1000+, per device | C52: $270.00 | D52: $243.00 | E52: One Time Fee
A53: Kyocera Multifunction Device License (PaperCut MF Commercial)
A54: PCMFC-Kyoc | B54: PaperCut MFD Emb, Kyocera, Comm, 1-9, per device | C54: $765.00 | D54: $689.00 | E54: One Time Fee
A55: PCMFC-Kyoc-10 | B55: PaperCut MFD Emb, Kyocera, Comm, 10-24, per device | C55: $506.00 | D55: $455.00 | E55: One Time Fee
A56: PCMFC-Kyoc-25 | B56: PaperCut MFD Emb, Kyocera, Comm, 25-49, per device | C56: $437.00 | D56: $393.00 | E56: One Time Fee
A57: PCMFC-Kyoc-50 | B57: PaperCut MFD Emb, Kyocera, Comm, 50-99, per device | C57: $372.00 | D57: $335.00 | E57: One Time Fee
A58: PCMFC-Kyoc-100 | B58: PaperCut MFD Emb, Kyocera, Comm, 100-199, per device | C58: $312.00 | D58: $281.00 | E58: One Time Fee
A59: PCMFC-Kyoc-500 | B59: PaperCut MFD Emb, Kyocera, Comm, 500-999, per device | C59: $299.00 | D59: $269.00 | E59: One Time Fee
A60: PCMFC-Kyoc-1000 | B60: PaperCut MFD Emb, Kyocera, Comm, 1000+, per device | C60: $270.00 | D60: $243.00 | E60: One Time Fee
A61: Lexmark Multifunction Device License (PaperCut MF Commercial)
A62: PCMFC-Lxmk | B62: PaperCut MFD Emb, Lexmark, Comm, 1-9, per device | C62: $765.00 | D62: $689.00 | E62: One Time Fee
A63: PCMFC-Lxmk-10 | B63: PaperCut MFD Emb, Lexmark, Comm, 10-24, per device | C63: $506.00 | D63: $455.00 | E63: One Time Fee
A64: PCMFC-Lxmk-25 | B64: PaperCut MFD Emb, Lexmark, Comm, 25-49, per device | C64: $437.00 | D64: $393.00 | E64: One Time Fee
A65: PCMFC-Lxmk-50 | B65: PaperCut MFD Emb, Lexmark, Comm, 50-99, per device | C65: $372.00 | D65: $335.00 | E65: One Time Fee
A66: PCMFC-Lxmk-100 | B66: PaperCut MFD Emb, Lexmark, Comm, 100-199, per device | C66: $312.00 | D66: $281.00 | E66: One Time Fee
A67: PCMFC-Lxmk-500 | B67: PaperCut MFD Emb, Lexmark, Comm, 500-999, per device | C67: $299.00 | D67: $269.00 | E67: One Time Fee
A68: PCMFC-Lxmk-1000 | B68: PaperCut MFD Emb, Lexmark, Comm, 1000+, per device | C68: $270.00 | D68: $243.00 | E68: One Time Fee
A69: Ricoh Multifunction Device License (PaperCut MF Commercial)
A70: PCMFC-Ricoh | B70: PaperCut MFD Emb, Ricoh, Comm, 1-9, per device | C70: $765.00 | D70: $689.00 | E70: One Time Fee
A71: PCMFC-Ricoh-10 | B71: PaperCut MFD Emb, Ricoh, Comm, 10-24, per device | C71: $506.00 | D71: $455.00 | E71: One Time Fee
A72: PCMFC-Ricoh-25 | B72: PaperCut MFD Emb, Ricoh, Comm, 25-49, per device | C72: $437.00 | D72: $393.00 | E72: One Time Fee
A73: PCMFC-Ricoh-50 | B73: PaperCut MFD Emb, Ricoh, Comm, 50-99, per device | C73: $372.00 | D73: $335.00 | E73: One Time Fee
A74: PCMFC-Ricoh-100 | B74: PaperCut MFD Emb, Ricoh, Comm, 100-199, per device | C74: $312.00 | D74: $281.00 | E74: One Time Fee
A75: PCMFC-Ricoh-500 | B75: PaperCut MFD Emb, Ricoh, Comm, 500-999, per device | C75: $299.00 | D75: $269.00 | E75: One Time Fee
A76: PCMFC-Ricoh-1000 | B76: PaperCut MFD Emb, Ricoh, Comm, 1000+, per device | C76: $270.00 | D76: $243.00 | E76: One Time Fee
A77: Toshiba Multifunction Device License (PaperCut MF Commercial)
A78: PCMFC-Tosh | B78: PaperCut MFD Emb, Toshiba, Comm, 1-9, per device | C78: $765.00 | D78: =ROUND(C78*(1-0.1),0) -> $689.00 | E78: One Time Fee
A79: PCMFC-Tosh-10 | B79: PaperCut MFD Emb, Toshiba, Comm, 10-24, per device | C79: $506.00 | D79: $455.00 | E79: One Time Fee
A80: PCMFC-Tosh-25 | B80: PaperCut MFD Emb, Toshiba, Comm, 25-49, per device | C80: $437.00 | D80: $393.00 | E80: One Time Fee
A81: PCMFC-Tosh-50 | B81: PaperCut MFD Emb, Toshiba, Comm, 50-99, per device | C81: $372.00 | D81: $335.00 | E81: One Time Fee
A82: PCMFC-Tosh-100 | B82: PaperCut MFD Emb, Toshiba, Comm, 100-199, per device | C82: $312.00 | D82: $281.00 | E82: One Time Fee
A83: PCMFC-Tosh-500 | B83: PaperCut MFD Emb, Toshiba, Comm, 500-999, per device | C83: $299.00 | D83: $269.00 | E83: One Time Fee
A84: PCMFC-Tosh-1000 | B84: PaperCut MFD Emb, Toshiba, Comm, 1000+, per device | C84: $270.00 | D84: $243.00 | E84: One Time Fee
A85: Xerox Multifunction Device License (PaperCut MF Commercial)
A86: PCMFC-Xerox | B86: PaperCut MFD Emb, Xerox, Comm, 1-9, per device | C86: $765.00 | D86: $689.00 | E86: One Time Fee
A87: PCMFC-Xerox-10 | B87: PaperCut MFD Emb, Xerox, Comm, 10-24, per device | C87: $506.00 | D87: $455.00 | E87: One Time Fee
A88: PCMFC-Xerox-25 | B88: PaperCut MFD Emb, Xerox, Comm, 25-49, per device | C88: $437.00 | D88: $393.00 | E88: One Time Fee
A89: PCMFC-Xerox-50 | B89: PaperCut MFD Emb, Xerox, Comm, 50-99, per device | C89: $372.00 | D89: $335.00 | E89: One Time Fee
A90: PCMFC-Xerox-100 | B90: PaperCut MFD Emb, Xerox, Comm, 100-199, per device | C90: $312.00 | D90: $281.00 | E90: One Time Fee
A91: PCMFC-Xerox-500 | B91: PaperCut MFD Emb, Xerox, Comm, 500-999, per device | C91: $299.00 | D91: $269.00 | E91: One Time Fee
A92: PCMFC-Xerox-1000 | B92: PaperCut MFD Emb, Xerox, Comm, 1000+, per device | C92: $270.00 | D92: $243.00 | E92: One Time Fee
A93: Brother Multifunction Device License (PaperCut MF Commercial)
A94: PCMFC-Bro | B94: PaperCut MFD Emb, Brothers, Comm, 1-9, per device | C94: $390.00 | D94: $351.00 | E94: One Time Fee
A95: PCMFC-Bro-10 | B95: PaperCut MFD Emb, Brothers, Comm, 10-24, per device | C95: $257.00 | D95: $231.00 | E95: One Time Fee
A96: PCMFC-Bro-25 | B96: PaperCut MFD Emb, Brothers, Comm, 25-49, per device | C96: $223.00 | D96: $201.00 | E96: One Time Fee
A97: PCMFC-Bro-50 | B97: PaperCut MFD Emb, Brothers, Comm, 50-99, per device | C97: $190.00 | D97: $171.00 | E97: One Time Fee
A98: PCMFC-Bro-100 | B98: PaperCut MFD Emb, Brothers, Comm, 100-199, per device | C98: $159.00 | D98: $143.00 | E98: One Time Fee
A99: PCMFC-Bro-500 | B99: PaperCut MFD Emb, Brothers, Comm, 500-999, per device | C99: $153.00 | D99: $138.00 | E99: One Time Fee
A100: PCMFC-Bro-1000 | B100: PaperCut MFD Emb, Brothers, Comm, 1000+, per device | C100: $137.00 | D100: $123.00 | E100: One Time Fee
A101: Dell Multifunction Device License (PaperCut MF Commercial)
A102: PCMFC-Dell | B102: PaperCut MFD Emb, Dell, Comm, 1-9, per device | C102: $746.00 | D102: $671.00 | E102: One Time Fee
A103: PCMFC-Dell-10 | B103: PaperCut MFD Emb, Dell, Comm, 10-24, per device | C103: $493.00 | D103: $444.00 | E103: One Time Fee
A104: PCMFC-Dell-25 | B104: PaperCut MFD Emb, Dell, Comm, 25-49, per device | C104: $426.00 | D104: $383.00 | E104: One Time Fee
A105: PCMFC-Dell-50 | B105: PaperCut MFD Emb, Dell, Comm, 50-99, per device | C105: $363.00 | D105: $327.00 | E105: One Time Fee
A106: PCMFC-Dell-100 | B106: PaperCut MFD Emb, Dell, Comm, 100-199, per device | C106: $304.00 | D106: $274.00 | E106: One Time Fee
A107: PCMFC-Dell-200 | B107: PaperCut MFD Emb, Dell, Comm, 200-499, per device | C107: $298.00 | D107: $268.00 | E107: One Time Fee
A108: PCMFC-Dell-500 | B108: PaperCut MFD Emb, Dell, Comm, 500+, per device | C108: $292.00 | D108: $263.00 | E108: One Time Fee
A109: Samsung Multifunction Device License (PaperCut MF Commercial)
A110: PCMFC-Samsung | B110: PaperCut MFD Emb, Samsung, Comm, 1-9, per device | C110: $746.00 | D110: $671.00 | E110: One Time Fee
A111: PCMFC-Samsung-10 | B111: PaperCut MFD Emb, Samsung, Comm, 10-24, per device | C111: $493.00 | D111: $444.00 | E111: One Time Fee
A112: PCMFC-Samsung-25 | B112: PaperCut MFD Emb, Samsung, Comm, 25-49, per device | C112: $426.00 | D112: $383.00 | E112: One Time Fee
A113: PCMFC-Samsung-50 | B113: PaperCut MFD Emb, Samsung, Comm, 50-99, per device | C113: $363.00 | D113: $327.00 | E113: One Time Fee
A114: PCMFC-Samsung-100 | B114: PaperCut MFD Emb, Samsung, Comm, 100-199, per device | C114: $304.00 | D114: $274.00 | E114: One Time Fee
A115: PCMFC-Samsung-200 | B115: PaperCut MFD Emb, Samsung, Comm, 200-499, per device | C115: $298.00 | D115: $268.00 | E115: One Time Fee
A116: PCMFC-Samsung-500 | B116: PaperCut MFD Emb, Samsung, Comm, 500+, per device | C116: $292.00 | D116: $263.00 | E116: One Time Fee
A117: Muratec Multifunction Device License (PaperCut MF Commercial)
A118: PCMFC-Muratec | B118: PaperCut MFD Emb, Muratec, Comm, 1-9, per device | C118: $765.00 | D118: $689.00 | E118: One Time Fee
A119: PCMFC-Muratec-10 | B119: PaperCut MFD Emb, Muratec, Comm, 10-24, per device | C119: $506.00 | D119: $455.00 | E119: One Time Fee
A120: PCMFC-Muratec-25 | B120: PaperCut MFD Emb, Muratec, Comm, 25-49, per device | C120: $437.00 | D120: $393.00 | E120: One Time Fee
A121: PCMFC-Muratec-50 | B121: PaperCut MFD Emb, Muratec, Comm, 50-99, per device | C121: $372.00 | D121: $335.00 | E121: One Time Fee
A122: PCMFC-Muratec-100 | B122: PaperCut MFD Emb, Muratec, Comm, 100-199, per device | C122: $312.00 | D122: $281.00 | E122: One Time Fee
A123: PCMFC-Muratec-500 | B123: PaperCut MFD Emb, Muratec, Comm, 500-999, per device | C123: $299.00 | D123: $269.00 | E123: One Time Fee
A124: PCMFC-Muratec-1000 | B124: PaperCut MFD Emb, Muratec, Comm, 1000+, per device | C124: $270.00 | D124: $243.00 | E124: One Time Fee
A125: OKI Multifunction Device License (PaperCut MF Commercial)
A126: PCMFC-OKI | B126: PaperCut MFD Emb, OKI, Comm, 1-9, per device | C126: $765.00 | D126: $689.00 | E126: One Time Fee
A127: PCMFC-OKI-10 | B127: PaperCut MFD Emb, OKI, Comm, 10-24, per device | C127: $506.00 | D127: $455.00 | E127: One Time Fee
A128: PCMFC-OKI-25 | B128: PaperCut MFD Emb, OKI, Comm, 25-49, per device | C128: $437.00 | D128: $393.00 | E128: One Time Fee
A129: PCMFC-OKI-50 | B129: PaperCut MFD Emb, OKI, Comm, 50-99, per device | C129: $372.00 | D129: $335.00 | E129: One Time Fee
A130: PCMFC-OKI-100 | B130: PaperCut MFD Emb, OKI, Comm, 100-199, per device | C130: $312.00 | D130: $281.00 | E130: One Time Fee
A131: PCMFC-OKI-500 | B131: PaperCut MFD Emb, OKI, Comm, 500-999, per device | C131: $299.00 | D131: $269.00 | E131: One Time Fee
A132: PCMFC-OKI-1000 | B132: PaperCut MFD Emb, OKI, Comm, 1000+, per device | C132: $270.00 | D132: $243.00 | E132: One Time Fee
A133: Epson Multifunction Device License (PaperCut MF Commercial)
A134: PCMFC-EPS | B134: PaperCut MFD Emb, Epson, Comm, 1-9, per device | C134: $765.00 | D134: $689.00 | E134: One Time Fee
A135: PCMFC-EPS-10 | B135: PaperCut MFD Emb, Epson, Comm, 10-24, per device | C135: $506.00 | D135: $455.00 | E135: One Time Fee
A136: PCMFC-EPS-25 | B136: PaperCut MFD Emb, Epson, Comm, 25-49, per device | C136: $437.00 | D136: $393.00 | E136: One Time Fee
A137: PCMFC-EPS-50 | B137: PaperCut MFD Emb, Epson, Comm, 50-99, per device | C137: $372.00 | D137: $335.00 | E137: One Time Fee
A138: PCMFC-EPS-100 | B138: PaperCut MFD Emb, Epson, Comm, 100-199, per device | C138: $312.00 | D138: $281.00 | E138: One Time Fee
A139: PCMFC-EPS-500 | B139: PaperCut MFD Emb, Epson, Comm, 500-999, per device | C139: $299.00 | D139: $269.00 | E139: One Time Fee
A140: PCMFC-EPS-1000 | B140: PaperCut MFD Emb, Epson, Comm, 1000+, per device | C140: $270.00 | D140: $243.00 | E140: One Time Fee
A141: RISO Multifunction Device License (PaperCut MF Commercial)
A142: PCMFC-RISO | B142: PaperCut MFD Emb, RISO, Comm, 1-9, per device | C142: $765.00 | D142: =ROUND(C142*(1-0.1),0) -> $689.00 | E142: One Time Fee
A143: PCMFC-RISO-10 | B143: PaperCut MFD Emb, RISO, Comm, 10-24, per device | C143: $506.00 | D143: $455.00 | E143: One Time Fee
A144: PCMFC-RISO-25 | B144: PaperCut MFD Emb, RISO, Comm, 25-49, per device | C144: $437.00 | D144: $393.00 | E144: One Time Fee
A145: PCMFC-RISO-50 | B145: PaperCut MFD Emb, RISO, Comm, 50-99, per device | C145: $372.00 | D145: $335.00 | E145: One Time Fee
A146: PCMFC-RISO-100 | B146: PaperCut MFD Emb, RISO, Comm, 100-199, per device | C146: $312.00 | D146: $281.00 | E146: One Time Fee
A147: PCMFC-RISO-500 | B147: PaperCut MFD Emb, RISO, Comm, 500-999, per device | C147: $299.00 | D147: $269.00 | E147: One Time Fee
A148: PCMFC-RISO-1000 | B148: PaperCut MFD Emb, RISO, Comm, 1000+, per device | C148: $270.00 | D148: $243.00 | E148: One Time Fee
A149: KAT Multifunction Device License (PaperCut MF Commercial)
A150: PCMFC-KAT | B150: PaperCut MFD Emb, KAT, Comm, 1-9, per device | C150: $765.00 | D150: =ROUND(C150*(1-0.1),0) -> $689.00 | E150: One Time Fee
A151: PCMFC-KAT-10 | B151: PaperCut MFD Emb, KAT, Comm, 10-24, per device | C151: $506.00 | D151: $455.00 | E151: One Time Fee
A152: PCMFC-KAT-25 | B152: PaperCut MFD Emb, KAT, Comm, 25-49, per device | C152: $437.00 | D152: $393.00 | E152: One Time Fee
A153: PCMFC-KAT-50 | B153: PaperCut MFD Emb, KAT, Comm, 50-99, per device | C153: $372.00 | D153: $335.00 | E153: One Time Fee
A154: PCMFC-KAT-100 | B154: PaperCut MFD Emb, KAT, Comm, 100-499, per device | C154: $312.00 | D154: $281.00 | E154: One Time Fee
A155: PCMFC-KAT-500 | B155: PaperCut MFD Emb, KAT, Comm, 500-999, per device | C155: $299.00 | D155: $269.00 | E155: One Time Fee
A156: PCMFC-KAT-1000 | B156: PaperCut MFD Emb, KAT, Comm, 1000+, per device | C156: $270.00 | D156: $243.00 | E156: One Time Fee
A157: Single Function Device License - (Volume discounts apply to licenses once minimum quantities for that OEM tier have been reached)
A158: Sharp Printer License (PaperCut MF Commercial)
A159: PCMFC-SharpP | B159: PaperCut SFP Emb, Sharp Printer, Comm, 1-9, per device | C159: $390.00 | D159: $351.00 | E159: One Time Fee
A160: PCMFC-SharpP-10 | B160: PaperCut SFP Emb, Sharp Printer, Comm, 10-24, per device | C160: $257.00 | D160: $231.00 | E160: One Time Fee
A161: PCMFC-SharpP-25 | B161: PaperCut SFP Emb, Sharp Printer, Comm, 25-49, per device | C161: $223.00 | D161: $201.00 | E161: One Time Fee
A162: PCMFC-SharpP-50 | B162: PaperCut SFP Emb, Sharp Printer, Comm, 50-99, per device | C162: $190.00 | D162: $171.00 | E162: One Time Fee
A163: PCMFC-SharpP-100 | B163: PaperCut SFP Emb, Sharp Printer, Comm, 100-199, per device | C163: $159.00 | D163: $143.00 | E163: One Time Fee
A164: PCMFC-SharpP-500 | B164: PaperCut SFP Emb, Sharp Printer, Comm, 500-999, per device | C164: $153.00 | D164: $138.00 | E164: One Time Fee
A165: PCMFC-SharpP-1000 | B165: PaperCut SFP Emb, Sharp Printer, Comm, 1000+, per device | C165: $137.00 | D165: $123.00 | E165: One Time Fee
A166: HP Printer License (PaperCut MF Commercial)
A167: PCMFC-HpP | B167: PaperCut SFP Emb, HP Printer, Comm, 1-9, per device | C167: $390.00 | D167: $351.00 | E167: One Time Fee
A168: PCMFC-HpP-10 | B168: PaperCut SFP Emb, HP Printer, Comm, 10-24, per device | C168: $257.00 | D168: $231.00 | E168: One Time Fee
A169: PCMFC-HpP-25 | B169: PaperCut SFP Emb, HP Printer, Comm, 25-49, per device | C169: $223.00 | D169: $201.00 | E169: One Time Fee
A170: PCMFC-HpP-50 | B170: PaperCut SFP Emb, HP Printer, Comm, 50-99, per device | C170: $190.00 | D170: $171.00 | E170: One Time Fee
A171: PCMFC-HpP-100 | B171: PaperCut SFP Emb, HP Printer, Comm, 100-199, per device | C171: $159.00 | D171: $143.00 | E171: One Time Fee
A172: PCMFC-HpP-500 | B172: PaperCut SFP Emb, HP Printer, Comm, 500-999, per device | C172: $153.00 | D172: $138.00 | E172: One Time Fee
A173: PCMFC-HpP-1000 | B173: PaperCut SFP Emb, HP Printer, Comm, 1000+, per device | C173: $137.00 | D173: $123.00 | E173: One Time Fee
A174: Lexmark Printer License (PaperCut MF Commercial)
A175: PCMFC-LxmkP | B175: PaperCut SFP Emb, Lexmark Printer, Comm, 1-9, per device | C175: $390.00 | D175: $351.00 | E175: One Time Fee
A176: PCMFC-LxmkP-10 | B176: PaperCut SFP Emb, Lexmark Printer, Comm, 10-24, per device | C176: $257.00 | D176: $231.00 | E176: One Time Fee
A177: PCMFC-LxmkP-25 | B177: PaperCut SFP Emb, Lexmark Printer, Comm, 25-49, per device | C177: $223.00 | D177: $201.00 | E177: One Time Fee
A178: PCMFC-LxmkP-50 | B178: PaperCut SFP Emb, Lexmark Printer, Comm, 50-99, per device | C178: $190.00 | D178: $171.00 | E178: One Time Fee
A179: PCMFC-LxmkP-100 | B179: PaperCut SFP Emb, Lexmark Printer, Comm, 100-199, per device | C179: $159.00 | D179: $143.00 | E179: One Time Fee
A180: PCMFC-LxmkP-500 | B180: PaperCut SFP Emb, Lexmark Printer, Comm, 500-999, per device | C180: $153.00 | D180: $138.00 | E180: One Time Fee
A181: PCMFC-LxmkP-1000 | B181: PaperCut SFP Emb, Lexmark Printer, Comm, 1000+, per device | C181: $137.00 | D181: $123.00 | E181: One Time Fee
A182: Ricoh Printer License (PaperCut MF Commercial)
A183: PCMFC-RicohP | B183: PaperCut SFP Emb, Ricoh Printer, Comm, 1-9, per device | C183: $390.00 | D183: $351.00 | E183: One Time Fee
A184: PCMFC-RicohP-10 | B184: PaperCut SFP Emb, Ricoh Printer, Comm, 10-24, per device | C184: $257.00 | D184: $231.00 | E184: One Time Fee
A185: PCMFC-RicohP-25 | B185: PaperCut SFP Emb, Ricoh Printer, Comm, 25-49, per device | C185: $223.00 | D185: $201.00 | E185: One Time Fee
A186: PCMFC-RicohP-50 | B186: PaperCut SFP Emb, Ricoh Printer, Comm, 50-99, per device | C186: $190.00 | D186: $171.00 | E186: One Time Fee
A187: PCMFC-RicohP-100 | B187: PaperCut SFP Emb, Ricoh Printer, Comm, 100-199, per device | C187: $159.00 | D187: $143.00 | E187: One Time Fee
A188: PCMFC-RicohP-500 | B188: PaperCut SFP Emb, Ricoh Printer, Comm, 500-999, per device | C188: $153.00 | D188: $138.00 | E188: One Time Fee
A189: PCMFC-RicohP-1000 | B189: PaperCut SFP Emb, Ricoh Printer, Comm, 1000+, per device | C189: $137.00 | D189: $123.00 | E189: One Time Fee
A190: Toshiba Printer License (PaperCut MF Commercial)
A191: PCMFC-ToshP | B191: PaperCut SFP Emb, Toshiba Printer, Comm, 1-9, per device | C191: $390.00 | D191: $351.00 | E191: One Time Fee
A192: PCMFC-ToshP-10 | B192: PaperCut SFP Emb, Toshiba Printer, Comm, 10-24, per device | C192: $257.00 | D192: $231.00 | E192: One Time Fee
A193: PCMFC-ToshP-25 | B193: PaperCut SFP Emb, Toshiba Printer, Comm, 25-49, per device | C193: $223.00 | D193: $201.00 | E193: One Time Fee
A194: PCMFC-ToshP-50 | B194: PaperCut SFP Emb, Toshiba Printer, Comm, 50-99, per device | C194: $190.00 | D194: $171.00 | E194: One Time Fee
A195: PCMFC-ToshP-100 | B195: PaperCut SFP Emb, Toshiba Printer, Comm, 100-199, per device | C195: $159.00 | D195: $143.00 | E195: One Time Fee
A196: PCMFC-ToshP-500 | B196: PaperCut SFP Emb, Toshiba Printer, Comm, 500-999, per device | C196: $153.00 | D196: $138.00 | E196: One Time Fee
A197: PCMFC-ToshP-1000 | B197: PaperCut SFP Emb, Toshiba Printer, Comm, 1000+, per device | C197: $137.00 | D197: $123.00 | E197: One Time Fee
A198: Xerox Printer License (PaperCut MF Commercial)
A199: PCMFC-XeroxP | B199: PaperCut SFP Emb, Xerox Printer, Comm, 1-9, per device | C199: $390.00 | D199: $351.00 | E199: One Time Fee
A200: PCMFC-XeroxP-10 | B200: PaperCut SFP Emb, Xerox Printer, Comm, 10-24, per device | C200: $257.00 | D200: $231.00 | E200: One Time Fee
A201: PCMFC-XeroxP-25 | B201: PaperCut SFP Emb, Xerox Printer, Comm, 25-49, per device | C201: $223.00 | D201: $201.00 | E201: One Time Fee
A202: PCMFC-XeroxP-50 | B202: PaperCut SFP Emb, Xerox Printer, Comm, 50-99, per device | C202: $190.00 | D202: $171.00 | E202: One Time Fee
A203: PCMFC-XeroxP-100 | B203: PaperCut SFP Emb, Xerox Printer, Comm, 100-199, per device | C203: $159.00 | D203: $143.00 | E203: One Time Fee
A204: PCMFC-XeroxP-500 | B204: PaperCut SFP Emb, Xerox Printer, Comm, 500-999, per device | C204: $153.00 | D204: $138.00 | E204: One Time Fee
A205: PCMFC-XeroxP-1000 | B205: PaperCut SFP Emb, Xerox Printer, Comm, 1000+, per device | C205: $137.00 | D205: $123.00 | E205: One Time Fee
A206: SMB Bundle Device License - (bundle may include up to 5 embedded devices and cannot exceed 100 active users)
... 368 more rows

Sheet PaperCut Integrations
A1: Return To Table of Contents
A2: PaperCut Integrations
A5: PaperCut has fostered an ecosystem of third-party solutions, this list includes some of the tools their partners have created such as integrations with payment gateways like PayPal practice Management systems such as ProLaw, accounting systems like Quickbooks and others.
A9: PAPERCUT INTEGRATIONS
A10: Vendor Part # | B10: Description | C10: MSRP | D10: NASPO Price | E10: Type
A11: Tier 1:
A12: PCLaw-Int | B12: PCLaw integration with PaperCut | C12: $2,500.00 | D12: =ROUND(C12*(1-0.1),0) -> $2,250.00 | E12: One Time Fee
A13: PCCosmolex-Int | B13: Cosmolex integration with PaperCut | C13: $2,500.00 | D13: $2,250.00 | E13: One Time Fee
A14: PCJuris-Int | B14: Juris integration with PaperCut | C14: $2,500.00 | D14: $2,250.00 | E14: One Time Fee
A15: PCESILaw-Int | B15: ESI Law integration with PaperCut | C15: $2,500.00 | D15: $2,250.00 | E15: One Time Fee
A16: PCProLaw-Int | B16: ProLaw integration with PaperCut | C16: $2,500.00 | D16: $2,250.00 | E16: One Time Fee
A17: PCTSlips-Int | B17: TimeSlips integration with PaperCut | C17: $2,500.00 | D17: $2,250.00 | E17: One Time Fee
A18: PCTabs3-Int | B18: Tabs3 integration with PaperCut | C18: $2,500.00 | D18: $2,250.00 | E18: One Time Fee
A19: PCQuickBks-Int | B19: Quickbooks on prem integration with PaperCut | C19: $2,500.00 | D19: $2,250.00 | E19: One Time Fee
A20: PCQuickBksOnline-Int | B20: Quickbooks online integration with PaperCut | C20: $2,500.00 | D20: $2,250.00 | E20: One Time Fee
A21: PCCaretLegal-Int | B21: Caret Legal (formerly Zola Suite) Integration with PaperCut | C21: $2,500.00 | D21: $2,250.00 | E21: One Time Fee
A22: PCMaitre-Int | B22: Maitre Integration with PaperCut | C22: $2,500.00 | D22: $2,250.00 | E22: One Time Fee
A23: PCClio-Int | B23: Clio integration with PaperCut | C23: $2,500.00 | D23: $2,250.00 | E23: One Time Fee
A24: PCSoluno-Int | B24: Soluno Integration with PaperCut | C24: $2,500.00 | D24: $2,250.00 | E24: One Time Fee
A25: PCOfficeRND-Int | B25: OfficeRND Integration with Papercut | C25: $2,500.00 | D25: $2,250.00 | E25: One Time Fee
A26: PCNexudus-Int | B26: Nexudus Integration with Papercut | C26: $2,500.00 | D26: $2,250.00 | E26: One Time Fee
A27: PCTier1-Int | B27: Tier 1 system integration with PaperCut | C27: $2,500.00 | D27: $2,250.00 | E27: One Time Fee
A28: Tier 2:
A29: PCAdvantageLaw-Int | B29: Advantage Law integration with PaperCut | C29: $3,650.00 | D29: $3,285.00 | E29: One Time Fee
A30: PCAjera-Int | B30: Ajera integration with PaperCut | C30: $3,650.00 | D30: $3,285.00 | E30: One Time Fee
A31: PCPerLaw-Int | B31: Perfect Law integration with PaperCut | C31: $3,650.00 | D31: $3,285.00 | E31: One Time Fee
A32: PCElite3E-Int | B32: Elite 3E integration with PaperCut | C32: $3,650.00 | D32: $3,285.00 | E32: One Time Fee
A33: PCEliteE-Int | B33: Elite Enterprise integration with PaperCut | C33: $3,650.00 | D33: $3,285.00 | E33: One Time Fee
A34: PCAderant-Int | B34: Aderant integration with PaperCut | C34: $3,650.00 | D34: $3,285.00 | E34: One Time Fee
A35: PCOrion-Int | B35: Orion Billing System integration with PaperCut | C35: $3,650.00 | D35: $3,285.00 | E35: One Time Fee
A36: PCCenterbase-Int | B36: Centerbase integration with PaperCut | C36: $3,650.00 | D36: $3,285.00 | E36: One Time Fee
A37: PCJurisConcepts-Int | B37: Juris Concepts integration with PaperCut | C37: $3,650.00 | D37: $3,285.00 | E37: One Time Fee
A38: PCNeos-Int | B38: Neos integration with PaperCut | C38: $3,650.00 | D38: $3,285.00 | E38: One Time Fee
A39: PCAbacus-Int | B39: Abacus Integration with Papercut | C39: $3,650.00 | D39: $3,285.00 | E39: One Time Fee
A40: PCSmartAdvocate-Int | B40: Smart Advocate Integration with Papercut | C40: $3,650.00 | D40: $3,285.00 | E40: One Time Fee
A41: PCTier2-Int | B41: Tier 2 system integration with PaperCut | C41: $3,650.00 | D41: $3,285.00 | E41: One Time Fee
A42: Tier 3:
A43: PCGhostPractice-Int | B43: Ghost Practice Integartion with PaperCut | C43: $4,750.00 | D43: =ROUND(C43*(1-0.1),0) -> $4,275.00 | E43: One Time Fee
A44: PCBann-Int | B44: Banner Accounting integration with PaperCut | C44: $4,750.00 | D44: =ROUND(C44*(1-0.1),0) -> $4,275.00 | E44: One Time Fee
A45: PCFilevine-Int | B45: Filevine Integration with PaperCut | C45: $4,750.00 | D45: =ROUND(C45*(1-0.1),0) -> $4,275.00 | E45: One Time Fee
A46: PCKohaLib-Int | B46: Koha Library Systems Intgration with Papercut | C46: $4,750.00 | D46: =ROUND(C46*(1-0.1),0) -> $4,275.00 | E46: One Time Fee
A47: PCTier3-Int | B47: Tier 3 system integration with PaperCut | C47: $4,750.00 | D47: =ROUND(C47*(1-0.1),0) -> $4,275.00 | E47: One Time Fee
A48: Tier 4:
A49: PCAtrium-GW | B49: Atrium Payment Gateway with PaperCut | C49: $5,800.00 | D49: =ROUND(C49*(1-0.1),0) -> $5,220.00 | E49: One Time Fee
A51: PAPERCUT/CILANTRO INTEGRATIONS- ANNUAL SUBSCRIPTIONS
A52: Vendor Part # | B52: Description | C52: MSRP | D52: NASPO Price | E52: Type
A53: PCCilantro-Int | B53: Cilantro Category 1 Integration with Papercut, 1-20 devices, per year Category 1 Includes: PracticePanther, Smokeball, ActionStep, Lexis Affinity, InfinityLaw, EvolveGo, Practive Evolve, Xero, Cobot and Operate | C53: $1,250.00 | D53: =ROUND(C53*(1-0.1),0) -> $1,125.00 | E53: Subscription
A54: PCCilantro20-Int | B54: Cilantro Category 1 Integration with Papercut, 21-50 devices, per year Category 1 Includes: PracticePanther, Smokeball, ActionStep, Lexis Affinity, InfinityLaw, EvolveGo, Practive Evolve, Xero, Cobot and Operate | C54: $1,750.00 | D54: $1,575.00 | E54: Subscription
A55: PCLEAPCloud-Int | B55: LEAP Cloud Integration with PaperCut, 1-10 users, per year | C55: $1,700.00 | D55: $1,530.00 | E55: Subscription
A56: PCLEAPCloud50-Int | B56: LEAP Cloud Integration with PaperCut, 11-50 users, per year | C56: $2,850.00 | D56: $2,565.00 | E56: Subscription
A57: PCLEAPCloud100-Int | B57: LEAP Cloud Integration with PaperCut, 51-100 users, per year | C57: $3,400.00 | D57: $3,060.00 | E57: Subscription
A58: PCLEAPCloudPlus-Int | B58: LEAP Cloud Integration with PaperCut, 101+ users, per year | C58: $4,550.00 | D58: $4,095.00 | E58: Subscription
A59: PCiManage-Int | B59: iManage Integration with PaperCut, 1-20 devices, per year | C59: $1,600.00 | D59: $1,440.00 | E59: Subscription
A60: PCiManage20-Int | B60: iManage Integration with PaperCut, 21-50 devices, per year | C60: $2,250.00 | D60: $2,025.00 | E60: Subscription
A61: PCiManage50-Int | B61: iManage Integration with PaperCut, 51+ devices, per year | C61: $4,500.00 | D61: $4,050.00 | E61: Subscription

Sheet PaperCut MFS
A1: Return To Table of Contents
A2: PaperCut MF Subscriptions
A5: PaperCut MF is a comprehensive print management system designed to seamlessly monitor and control your printing costs with easy to use administrative and user tools that can be securely accessed from anywhere on the network though a web browser.
A10: PAPERCUT MF COMMERCIAL - SUBSCRIPTION
A11: Vendor Part # | B11: Description | C11: MSRP | D11: NASPO Price | E11: Type
A12: PaperCut Subscription Multifunction Commercial Device Licenses
A13: PaperCut MF Commercial Device Licenses 1-9 Devices (Price per Device)
A14: PCS-MFC-1Y | B14: PaperCut Subscription, MFD, Comm 1-9, per device, 1 year | C14: $252.00 | D14: =ROUND(C14*(1-0.1),0) -> $227.00 | E14: Subscription
A15: PCS-MFC-2Y | B15: PaperCut Subscription, MFD, Comm 1-9, per device, 2 years | C15: $504.00 | D15: $454.00 | E15: Subscription
A16: PCS-MFC-3Y | B16: PaperCut Subscription, MFD, Comm 1-9, per device, 3 years | C16: $718.00 | D16: $646.00 | E16: Subscription
A17: PCS-MFC-4Y | B17: PaperCut Subscription, MFD, Comm 1-9, per device, 4 years | C17: $958.00 | D17: $862.00 | E17: Subscription
A18: PCS-MFC-5Y | B18: PaperCut Subscription, MFD, Comm 1-9, per device, 5 years | C18: $1,096.00 | D18: $986.00 | E18: Subscription
A19: PCS-MFC-1M | B19: PaperCut Subscription, MFD, Comm 1-9, per device, monthly | C19: $21.00 | D19: =ROUND(C19*(1-0.1),2) -> $18.90 | E19: Subscription
A20: PaperCut MF Commercial Device Licenses 10-24 Devices (Price per Device)
A21: PCS-MFC10-1Y | B21: PaperCut Subscription, MFD, Comm 10-24, per device, 1 year | C21: $221.00 | D21: $199.00 | E21: Subscription
A22: PCS-MFC10-2Y | B22: PaperCut Subscription, MFD, Comm 10-24, per device, 2 years | C22: $442.00 | D22: $398.00 | E22: Subscription
A23: PCS-MFC10-3Y | B23: PaperCut Subscription, MFD, Comm 10-24, per device, 3 years | C23: $630.00 | D23: $567.00 | E23: Subscription
A24: PCS-MFC10-4Y | B24: PaperCut Subscription, MFD, Comm 10-24, per device, 4 years | C24: $840.00 | D24: $756.00 | E24: Subscription
A25: PCS-MFC10-5Y | B25: PaperCut Subscription, MFD, Comm 10-24, per device, 5 years | C25: $961.00 | D25: $865.00 | E25: Subscription
A26: PCS-MFC10-1M | B26: PaperCut Subscription, MFD, Comm 10-24, per device, monthly | C26: $18.50 | D26: =ROUND(C26*(1-0.1),2) -> $16.65 | E26: Subscription
A27: PaperCut MF Commercial Device Licenses 24-49 Devices (Price per Device)
A28: PCS-MFC25-1Y | B28: PaperCut Subscription, MFD, Comm 25-49, per device, 1 year | C28: $193.00 | D28: =ROUND(C28*(1-0.1),2) -> $173.70 | E28: Subscription
A29: PCS-MFC25-2Y | B29: PaperCut Subscription, MFD, Comm 25-49, per device, 2 years | C29: $386.00 | D29: $347.40 | E29: Subscription
A30: PCS-MFC25-3Y | B30: PaperCut Subscription, MFD, Comm 25-49, per device, 3 years | C30: $550.00 | D30: $495.00 | E30: Subscription
A31: PCS-MFC25-4Y | B31: PaperCut Subscription, MFD, Comm 25-49, per device, 4 years | C31: $733.00 | D31: $659.70 | E31: Subscription
A32: PCS-MFC25-5Y | B32: PaperCut Subscription, MFD, Comm 25-49, per device, 5 years | C32: $840.00 | D32: $756.00 | E32: Subscription
A33: PCS-MFC25-1M | B33: PaperCut Subscription, MFD, Comm 25-49, per device, monthly | C33: $16.00 | D33: $14.40 | E33: Subscription
A34: PaperCut MF Commercial Device Licenses 50-99 Devices (Price per Device)
A35: PCS-MFC50-1Y | B35: PaperCut Subscription, MFD, Comm 50-99, per device, 1 year | C35: $163.00 | D35: $147.00 | E35: Subscription
A36: PCS-MFC50-2Y | B36: PaperCut Subscription, MFD, Comm 50-99, per device, 2 years | C36: $326.00 | D36: $293.00 | E36: Subscription
A37: PCS-MFC50-3Y | B37: PaperCut Subscription, MFD, Comm 50-99, per device, 3 years | C37: $465.00 | D37: $419.00 | E37: Subscription
A38: PCS-MFC50-4Y | B38: PaperCut Subscription, MFD, Comm 50-99, per device, 4 years | C38: $619.00 | D38: $557.00 | E38: Subscription
A39: PCS-MFC50-5Y | B39: PaperCut Subscription, MFD, Comm 50-99, per device, 5 years | C39: $709.00 | D39: $638.00 | E39: Subscription
A40: PCS-MFC50-1M | B40: PaperCut Subscription, MFD, Comm 50-99, per device, monthly | C40: $13.50 | D40: =ROUND(C40*(1-0.1),2) -> $12.15 | E40: Subscription
A41: PaperCut MF Commercial Device Licenses 100-499 Devices (Price per Device)
A42: PCS-MFC100-1Y | B42: PaperCut Subscription, MFD, Comm 100-499, per device, 1 year | C42: $136.00 | D42: $122.00 | E42: Subscription
A43: PCS-MFC100-2Y | B43: PaperCut Subscription, MFD, Comm 100-499, per device, 2 years | C43: $272.00 | D43: $245.00 | E43: Subscription
A44: PCS-MFC100-3Y | B44: PaperCut Subscription, MFD, Comm 100-499, per device, 3 years | C44: $388.00 | D44: $349.00 | E44: Subscription
A45: PCS-MFC100-4Y | B45: PaperCut Subscription, MFD, Comm 100-499, per device, 4 years | C45: $517.00 | D45: $465.00 | E45: Subscription
A46: PCS-MFC100-5Y | B46: PaperCut Subscription, MFD, Comm 100-499, per device, 5 years | C46: $592.00 | D46: $533.00 | E46: Subscription
A47: PCS-MFC100-1M | B47: PaperCut Subscription, MFD, Comm 100-499, per device, monthly | C47: $11.50 | D47: =ROUND(C47*(1-0.1),2) -> $10.35 | E47: Subscription
A48: PaperCut MF Commercial Device Licenses 500-999 Devices (Price per Device)
A49: PCS-MFC500-1Y | B49: PaperCut Subscription, MFD, Comm 500-999, per device, 1 year | C49: $131.00 | D49: $118.00 | E49: Subscription
A50: PCS-MFC500-2Y | B50: PaperCut Subscription, MFD, Comm 500-999, per device, 2 years | C50: $262.00 | D50: $236.00 | E50: Subscription
A51: PCS-MFC500-3Y | B51: PaperCut Subscription, MFD, Comm 500-999, per device, 3 years | C51: $373.00 | D51: $336.00 | E51: Subscription
A52: PCS-MFC500-4Y | B52: PaperCut Subscription, MFD, Comm 500-999, per device, 4 years | C52: $498.00 | D52: $448.00 | E52: Subscription
A53: PCS-MFC500-5Y | B53: PaperCut Subscription, MFD, Comm 500-999, per device, 5 years | C53: $570.00 | D53: $513.00 | E53: Subscription
A54: PCS-MFC500-1M | B54: PaperCut Subscription, MFD, Comm 500-999, per device, monthly | C54: $11.00 | D54: =ROUND(C54*(1-0.1),2) -> $9.90 | E54: Subscription
A55: PaperCut MF Commercial Device Licenses 1000+ Devices (Price per Device)
A56: PCS-MFC1K-1Y | B56: PaperCut Subscription, MFD, Comm 1000+, per device, 1 year | C56: $121.00 | D56: =ROUND(C56*(1-0.1),0) -> $109.00 | E56: Subscription
A57: PCS-MFC1K-2Y | B57: PaperCut Subscription, MFD, Comm 1000+, per device, 2 years | C57: $242.00 | D57: $218.00 | E57: Subscription
A58: PCS-MFC1K-3Y | B58: PaperCut Subscription, MFD, Comm 1000+, per device, 3 years | C58: $345.00 | D58: $311.00 | E58: Subscription
A59: PCS-MFC1K-4Y | B59: PaperCut Subscription, MFD, Comm 1000+, per device, 4 years | C59: $460.00 | D59: $414.00 | E59: Subscription
A60: PCS-MFC1K-5Y | B60: PaperCut Subscription, MFD, Comm 1000+, per device, 5 years | C60: $526.00 | D60: $473.00 | E60: Subscription
A61: PCS-MFC1K-1M | B61: PaperCut Subscription, MFD, Comm 1000+, per device, monthly | C61: $10.00 | D61: $9.00 | E61: Subscription
A62: PaperCut Subscription Single Function Commercial Device Licenses
A63: PaperCut Subscription Single Function Device Licenses 1-9 Devices (Price per Device)
A64: PCS-SFC-1Y | B64: PaperCut Subscription, SFD, Comm 1-9, per device, 1 year | C64: $138.00 | D64: =ROUND(C64*(1-0.1),0) -> $124.00 | E64: Subscription
A65: PCS-SFC-2Y | B65: PaperCut Subscription, SFD, Comm 1-9, per device, 2 years | C65: $276.00 | D65: $248.00 | E65: Subscription
A66: PCS-SFC-3Y | B66: PaperCut Subscription, SFD, Comm 1-9, per device, 3 years | C66: $393.00 | D66: $354.00 | E66: Subscription
A67: PCS-SFC-4Y | B67: PaperCut Subscription, SFD, Comm 1-9, per device, 4 years | C67: $524.00 | D67: $472.00 | E67: Subscription
A68: PCS-SFC-5Y | B68: PaperCut Subscription, SFD, Comm 1-9, per device, 5 years | C68: $600.00 | D68: $540.00 | E68: Subscription
A69: PCS-SFC-1M | B69: PaperCut Subscription, SFD, Comm 1-9, per device, monthly | C69: $11.50 | D69: $10.00 | E69: Subscription
A70: PaperCut Subscription Single Function Device Licenses 10-24 Devices (Price per Device)
A71: PCS-SFC10-1Y | B71: PaperCut Subscription, SFD, Comm 10-24, per device, 1 year | C71: $122.00 | D71: $110.00 | E71: Subscription
A72: PCS-SFC10-2Y | B72: PaperCut Subscription, SFD, Comm 10-24, per device, 2 years | C72: $244.00 | D72: $220.00 | E72: Subscription
A73: PCS-SFC10-3Y | B73: PaperCut Subscription, SFD, Comm 10-24, per device, 3 years | C73: $348.00 | D73: $313.00 | E73: Subscription
A74: PCS-SFC10-4Y | B74: PaperCut Subscription, SFD, Comm 10-24, per device, 4 years | C74: $464.00 | D74: $418.00 | E74: Subscription
A75: PCS-SFC10-5Y | B75: PaperCut Subscription, SFD, Comm 10-24, per device, 5 years | C75: $531.00 | D75: $478.00 | E75: Subscription
A76: PCS-SFC10-1M | B76: PaperCut Subscription, SFD, Comm 10-24, per device, monthly | C76: $10.00 | D76: $9.00 | E76: Subscription
A77: PaperCut MF Commercial Device Licenses 24-49 Devices (Price per Device)
A78: PCS-MFC25-1Y | B78: PaperCut Subscription, SFD, Comm 25-49, per device, 1 year | C78: $106.00 | D78: =ROUND(C78*(1-0.1),2) -> $95.40 | E78: Subscription
A79: PCS-MFC25-2Y | B79: PaperCut Subscription, SFD, Comm 25-49, per device, 2 years | C79: $212.00 | D79: $190.80 | E79: Subscription
A80: PCS-MFC25-3Y | B80: PaperCut Subscription, SFD, Comm 25-49, per device, 3 years | C80: $302.00 | D80: $271.80 | E80: Subscription
A81: PCS-MFC25-4Y | B81: PaperCut Subscription, SFD, Comm 25-49, per device, 4 years | C81: $403.00 | D81: $362.70 | E81: Subscription
A82: PCS-MFC25-5Y | B82: PaperCut Subscription, SFD, Comm 25-49, per device, 5 years | C82: $461.00 | D82: $414.90 | E82: Subscription
A83: PCS-MFC25-1M | B83: PaperCut Subscription, SFD, Comm 25-49, per device, monthly | C83: $9.00 | D83: $8.10 | E83: Subscription
A84: PaperCut Subscription Single Function Device Licenses 50-99 Devices (Price per Device)
A85: PCS-SFC50-1Y | B85: PaperCut Subscription, SFD, Comm 50-99, per device, 1 year | C85: $89.00 | D85: $80.00 | E85: Subscription
A86: PCS-SFC50-2Y | B86: PaperCut Subscription, SFD, Comm 50-99, per device, 2 years | C86: $178.00 | D86: $160.00 | E86: Subscription
A87: PCS-SFC50-3Y | B87: PaperCut Subscription, SFD, Comm 50-99, per device, 3 years | C87: $254.00 | D87: $229.00 | E87: Subscription
A88: PCS-SFC50-4Y | B88: PaperCut Subscription, SFD, Comm 50-99, per device, 4 years | C88: $338.00 | D88: $304.00 | E88: Subscription
A89: PCS-SFC50-5Y | B89: PaperCut Subscription, SFD, Comm 50-99, per device, 5 years | C89: $387.00 | D89: $348.00 | E89: Subscription
A90: PCS-SFC50-1M | B90: PaperCut Subscription, SFD, Comm 50-99, per device, monthly | C90: $7.50 | D90: $7.00 | E90: Subscription
A91: PaperCut Subscription Single Function Device Licenses 100-499 Devices (Price per Device)
A92: PCS-SFC100-1Y | B92: PaperCut Subscription, SFD, Comm 100-499, per device, 1 year | C92: $75.00 | D92: $68.00 | E92: Subscription
A93: PCS-SFC100-2Y | B93: PaperCut Subscription, SFD, Comm 100-499, per device, 2 years | C93: $150.00 | D93: $135.00 | E93: Subscription
A94: PCS-SFC100-3Y | B94: PaperCut Subscription, SFD, Comm 100-499, per device, 3 years | C94: $214.00 | D94: $193.00 | E94: Subscription
A95: PCS-SFC100-4Y | B95: PaperCut Subscription, SFD, Comm 100-499, per device, 4 years | C95: $285.00 | D95: $257.00 | E95: Subscription
A96: PCS-SFC100-5Y | B96: PaperCut Subscription, SFD, Comm 100-499, per device, 5 years | C96: $326.00 | D96: $293.00 | E96: Subscription
A97: PCS-SFC100-1M | B97: PaperCut Subscription, SFD, Comm 100-499, per device, monthly | C97: $6.50 | D97: $6.00 | E97: Subscription
A98: PaperCut Subscription Single Function Device Licenses 500-999 Devices (Price per Device)
A99: PCS-SFC500-1Y | B99: PaperCut Subscription, SFD, Comm 500-999, per device, 1 year | C99: $72.00 | D99: $65.00 | E99: Subscription
A100: PCS-SFC500-2Y | B100: PaperCut Subscription, SFD, Comm 500-999, per device, 2 years | C100: $144.00 | D100: $130.00 | E100: Subscription
A101: PCS-SFC500-3Y | B101: PaperCut Subscription, SFD, Comm 500-999, per device, 3 years | C101: $205.00 | D101: $185.00 | E101: Subscription
A102: PCS-SFC500-4Y | B102: PaperCut Subscription, SFD, Comm 500-999, per device, 4 years | C102: $274.00 | D102: $247.00 | E102: Subscription
A103: PCS-SFC500-5Y | B103: PaperCut Subscription, SFD, Comm 500-999, per device, 5 years | C103: $313.00 | D103: $282.00 | E103: Subscription
A104: PCS-SFC500-1M | B104: PaperCut Subscription, SFD, Comm 500-999, per device, monthly | C104: $6.00 | D104: =ROUND(C104*(1-0.05),1) -> $5.70 | E104: Subscription
A105: PaperCut Subscription Single Function Device Licenses 1000+ Devices (Price per Device)
A106: PCS-SFC1K-1Y | B106: PaperCut Subscription, SFD, Comm 1000+, per device, 1 year | C106: $67.00 | D106: $60.00 | E106: Subscription
A107: PCS-SFC1K-2Y | B107: PaperCut Subscription, SFD, Comm 1000+, per device, 2 years | C107: $134.00 | D107: $121.00 | E107: Subscription
A108: PCS-SFC1K-3Y | B108: PaperCut Subscription, SFD, Comm 1000+, per device, 3 years | C108: $191.00 | D108: $172.00 | E108: Subscription
A109: PCS-SFC1K-4Y | B109: PaperCut Subscription, SFD, Comm 1000+, per device, 4 years | C109: $255.00 | D109: $230.00 | E109: Subscription
A110: PCS-SFC1K-5Y | B110: PaperCut Subscription, SFD, Comm 1000+, per device, 5 years | C110: $291.00 | D110: $262.00 | E110: Subscription
A111: PCS-SFC1K-1M | B111: PaperCut Subscription, SFD, Comm 1000+, per device, monthly | C111: $5.50 | D111: $5.00 | E111: Subscription
A113: PAPERCUT SUBSRIPTION EDU/GOVERNMENT
A114: Vendor Part # | B114: Description | C114: MSRP | D114: NASPO Price | E114: Type
A115: PaperCut Subscription Multifunction Edu/Gov Device Licenses
A116: PaperCut Subscription Multifunction Edu/Gov Device Licenses 1-9 Devices (Price per Device)
A117: PCS-MFE-1Y | B117: PaperCut Subscription, MFD, EduGov 1-9, per device, 1 year | C117: $236.00 | D117: =ROUND(C117*(1-0.1),0) -> $212.00 | E117: Subscription
A118: PCS-MFE-2Y | B118: PaperCut Subscription, MFD, EduGov 1-9, per device, 2 years | C118: $472.00 | D118: $425.00 | E118: Subscription
A119: PCS-MFE-3Y | B119: PaperCut Subscription, MFD, EduGov 1-9, per device, 3 years | C119: $673.00 | D119: $606.00 | E119: Subscription
A120: PCS-MFE-4Y | B120: PaperCut Subscription, MFD, EduGov 1-9, per device, 4 years | C120: $897.00 | D120: $807.00 | E120: Subscription
A121: PCS-MFE-5Y | B121: PaperCut Subscription, MFD, EduGov 1-9, per device, 5 years | C121: $1,027.00 | D121: $924.00 | E121: Subscription
A122: PCS-MFE-1M | B122: PaperCut Subscription, MFD, EduGov 1-9, per device, monthly | C122: $19.50 | D122: $18.00 | E122: Subscription
A123: PaperCut Subscription Multifunction Edu/Gov Device Licenses 10-24 Devices (Price per Device)
A124: PCS-MFE10-1Y | B124: PaperCut Subscription, MFD, EduGov 10-24, per device, 1 year | C124: $207.00 | D124: =ROUND(C124*(1-0.1),0) -> $186.00 | E124: Subscription
A125: PCS-MFE10-2Y | B125: PaperCut Subscription, MFD, EduGov 10-24, per device, 2 years | C125: $414.00 | D125: $373.00 | E125: Subscription
A126: PCS-MFE10-3Y | B126: PaperCut Subscription, MFD, EduGov 10-24, per device, 3 years | C126: $590.00 | D126: $531.00 | E126: Subscription
A127: PCS-MFE10-4Y | B127: PaperCut Subscription, MFD, EduGov 10-24, per device, 4 years | C127: $787.00 | D127: $708.00 | E127: Subscription
A128: PCS-MFE10-5Y | B128: PaperCut Subscription, MFD, EduGov 10-24, per device, 5 years | C128: $900.00 | D128: $810.00 | E128: Subscription
A129: PCS-MFE10-1M | B129: PaperCut Subscription, MFD, EduGov 10-24, per device, monthly | C129: $17.50 | D129: $16.00 | E129: Subscription
A130: PaperCut Subscription Multifunction Edu/Gov Device Licenses 24-49 Devices (Price per Device)
A131: PCS-MFE10-1Y | B131: PaperCut Subscription, MFD, EduGov 24-49, per device, 1 year | C131: $180.00 | D131: =ROUND(C131*(1-0.1),0) -> $162.00 | E131: Subscription
A132: PCS-MFE10-2Y | B132: PaperCut Subscription, MFD, EduGov 24-49, per device, 2 year | C132: $360.00 | D132: $324.00 | E132: Subscription
A133: PCS-MFE10-3Y | B133: PaperCut Subscription, MFD, EduGov 24-49, per device, 3 year | C133: $513.00 | D133: $462.00 | E133: Subscription
A134: PCS-MFE10-4Y | B134: PaperCut Subscription, MFD, EduGov 24-49, per device, 4 year | C134: $684.00 | D134: $616.00 | E134: Subscription
A135: PCS-MFE10-5Y | B135: PaperCut Subscription, MFD, EduGov 24-49, per device, 5 year | C135: $783.00 | D135: $705.00 | E135: Subscription
A136: PCS-MFE10-1M | B136: PaperCut Subscription, MFD, EduGov 24-49, per device, monthly | C136: $15.00 | D136: $14.00 | E136: Subscription
A137: PaperCut Subscription Multifunction Edu/Gov Device Licenses 50-99 Devices (Price per Device)
A138: PCS-MFE50-1Y | B138: PaperCut Subscription, MFD, EduGov 50-99, per device, 1 year | C138: $153.00 | D138: =ROUND(C138*(1-0.1),0) -> $138.00 | E138: Subscription
A139: PCS-MFE50-2Y | B139: PaperCut Subscription, MFD, EduGov 50-99, per device, 2 years | C139: $306.00 | D139: $275.00 | E139: Subscription
A140: PCS-MFE50-3Y | B140: PaperCut Subscription, MFD, EduGov 50-99, per device, 3 years | C140: $436.00 | D140: $392.00 | E140: Subscription
A141: PCS-MFE50-4Y | B141: PaperCut Subscription, MFD, EduGov 50-99, per device, 4 years | C141: $581.00 | D141: $523.00 | E141: Subscription
A142: PCS-MFE50-5Y | B142: PaperCut Subscription, MFD, EduGov 50-99, per device, 5 years | C142: $666.00 | D142: $599.00 | E142: Subscription
A143: PCS-MFE50-1M | B143: PaperCut Subscription, MFD, EduGov 50-99, per device, monthly | C143: $13.00 | D143: $12.00 | E143: Subscription
A144: PaperCut Subscription Multifunction Edu/Gov Device Licenses 100-499 Devices (Price per Device)
A145: PCS-MFE100-1Y | B145: PaperCut Subscription, MFD, EduGov 100-499, per device, 1 year | C145: $127.00 | D145: =ROUND(C145*(1-0.1),0) -> $114.00 | E145: Subscription
A146: PCS-MFE100-2Y | B146: PaperCut Subscription, MFD, EduGov 100-499, per device, 2 years | C146: $254.00 | D146: $229.00 | E146: Subscription
A147: PCS-MFE100-3Y | B147: PaperCut Subscription, MFD, EduGov 100-499, per device, 3 years | C147: $362.00 | D147: $326.00 | E147: Subscription
A148: PCS-MFE100-4Y | B148: PaperCut Subscription, MFD, EduGov 100-499, per device, 4 years | C148: $483.00 | D148: $435.00 | E148: Subscription
A149: PCS-MFE100-5Y | B149: PaperCut Subscription, MFD, EduGov 100-499, per device, 5 years | C149: $552.00 | D149: $497.00 | E149: Subscription
A150: PCS-MFE100-1M | B150: PaperCut Subscription, MFD, EduGov 100-499, per device, monthly | C150: $10.50 | D150: $9.00 | E150: Subscription
A151: PaperCut Subscription Multifunction Edu/Gov Device Licenses 500-999 Devices (Price per Device)
A152: PCS-MFE500-1Y | B152: PaperCut Subscription, MFD, EduGov 500-999, per device, 1 year | C152: $123.00 | D152: =ROUND(C152*(1-0.1),0) -> $111.00 | E152: Subscription
A153: PCS-MFE500-2Y | B153: PaperCut Subscription, MFD, EduGov 500-999, per device, 2 years | C153: $246.00 | D153: $221.00 | E153: Subscription
A154: PCS-MFE500-3Y | B154: PaperCut Subscription, MFD, EduGov 500-999, per device, 3 years | C154: $351.00 | D154: $316.00 | E154: Subscription
A155: PCS-MFE500-4Y | B155: PaperCut Subscription, MFD, EduGov 500-999, per device, 4 years | C155: $467.00 | D155: $420.00 | E155: Subscription
A156: PCS-MFE500-5Y | B156: PaperCut Subscription, MFD, EduGov 500-999, per device, 5 years | C156: $535.00 | D156: $482.00 | E156: Subscription
A157: PCS-MFC500-1M | B157: PaperCut Subscription, MFD, EduGov 500-999, per device, monthly | C157: $10.50 | D157: $9.00 | E157: Subscription
A158: PaperCut Subscription Multifunction Edu/Gov Device Licenses 1000+ Devices (Price per Device)
A159: PCS-MFC1K-1Y | B159: PaperCut Subscription, MFD, EduGov 1000+, per device, 1 year | C159: $113.00 | D159: =ROUND(C159*(1-0.1),0) -> $102.00 | E159: Subscription
A160: PCS-MFC1K-2Y | B160: PaperCut Subscription, MFD, EduGov 1000+, per device, 2 years | C160: $226.00 | D160: =ROUND(C160*(1-0.1),0) -> $203.00 | E160: Subscription
A161: PCS-MFC1K-3Y | B161: PaperCut Subscription, MFD, EduGov 1000+, per device, 3 years | C161: $322.00 | D161: =ROUND(C161*(1-0.1),0) -> $290.00 | E161: Subscription
A162: PCS-MFC1K-4Y | B162: PaperCut Subscription, MFD, EduGov 1000+, per device, 4 years | C162: $429.00 | D162: =ROUND(C162*(1-0.1),0) -> $386.00 | E162: Subscription
A163: PCS-MFC1K-5Y | B163: PaperCut Subscription, MFD, EduGov 1000+, per device, 5 years | C163: $492.00 | D163: =ROUND(C163*(1-0.1),0) -> $443.00 | E163: Subscription
A164: PCS-MFC1K-1M | B164: PaperCut Subscription, MFD, EduGov 1000+, per device, monthly | C164: $9.50 | D164: =ROUND(C164*(1-0.05),0) -> $9.00 | E164: Subscription
A165: PaperCut Subscription Single Function Edu/Gov Device Licenses
A166: PaperCut Subscription Single Edu/Gov Device Licenses 1-9 Devices (Price per Device)
A167: PCS-SFE-1Y | B167: PaperCut Subscription, SFD, EduGov 1-9, per device, 1 year | C167: $127.00 | D167: =ROUND(C167*(1-0.1),0) -> $114.00 | E167: Subscription
A168: PCS-SFE-2Y | B168: PaperCut Subscription, SFD, EduGov 1-9, per device, 2 years | C168: $241.00 | D168: $217.00 | E168: Subscription
A169: PCS-SFE-3Y | B169: PaperCut Subscription, SFD, EduGov 1-9, per device, 3 years | C169: $343.00 | D169: $309.00 | E169: Subscription
A170: PCS-SFE-4Y | B170: PaperCut Subscription, SFD, EduGov 1-9, per device, 4 years | C170: $457.00 | D170: $411.00 | E170: Subscription
A171: PCS-SFE-5Y | B171: PaperCut Subscription, SFD, EduGov 1-9, per device, 5 years | C171: $552.00 | D171: $497.00 | E171: Subscription
A172: PCS-SFE-1M | B172: PaperCut Subscription, SFD, EduGov 1-9, per device, monthly | C172: $10.50 | D172: $9.00 | E172: Subscription
A173: PaperCut Subscription Single Edu/Gov Device Licenses 10-24 Devices (Price per Device)
A174: PCS-SFE10-1Y | B174: PaperCut Subscription, SFD, EduGov 10-24, per device, 1 year | C174: $103.00 | D174: =ROUND(C174*(1-0.1),0) -> $93.00 | E174: Subscription
A175: PCS-SFE10-2Y | B175: PaperCut Subscription, SFD, EduGov 10-24, per device, 2 years | C175: $196.00 | D175: $176.00 | E175: Subscription
A176: PCS-SFE10-3Y | B176: PaperCut Subscription, SFD, EduGov 10-24, per device, 3 years | C176: $278.00 | D176: $250.00 | E176: Subscription
A177: PCS-SFE10-4Y | B177: PaperCut Subscription, SFD, EduGov 10-24, per device, 4 years | C177: $371.00 | D177: $334.00 | E177: Subscription
A178: PCS-SFE10-5Y | B178: PaperCut Subscription, SFD, EduGov 10-24, per device, 5 years | C178: $448.00 | D178: $403.00 | E178: Subscription
A179: PCS-SFE10-1M | B179: PaperCut Subscription, SFD, EduGov 10-24, per device, monthly | C179: $8.50 | D179: $8.00 | E179: Subscription
A180: PaperCut Subscription Single Edu/Gov Device Licenses 24-49 Devices (Price per Device)
A181: PCS-SFE25-1Y | B181: PaperCut Subscription, SFD, EduGov 24-49, per device, 1 year | C181: $99.00 | D181: $89.00 | E181: Subscription
A182: PCS-SFE25-2Y | B182: PaperCut Subscription, SFD, EduGov 24-49, per device, 2 years | C182: $198.00 | D182: $178.00 | E182: Subscription
A183: PCS-SFE25-3Y | B183: PaperCut Subscription, SFD, EduGov 24-49, per device, 3 years | C183: $282.00 | D183: $254.00 | E183: Subscription
A184: PCS-SFE25-4Y | B184: PaperCut Subscription, SFD, EduGov 24-49, per device, 4 years | C184: $376.00 | D184: $338.00 | E184: Subscription
A185: PCS-SFE25-5Y | B185: PaperCut Subscription, SFD, EduGov 24-49, per device, 5 years | C185: $431.00 | D185: $388.00 | E185: Subscription
A186: PCS-SFE25-1M | B186: PaperCut Subscription, SFD, EduGov 24-49, per device, monthly | C186: $8.50 | D186: $8.00 | E186: Subscription
A187: PaperCut Subscription Single Edu/Gov Device Licenses 50-99 Devices (Price per Device)
A188: PCS-SFE50-1Y | B188: PaperCut Subscription, SFD, EduGov 50-99, per device, 1 year | C188: $84.00 | D188: =ROUND(C188*(1-0.1),0) -> $76.00 | E188: Subscription
A189: PCS-SFE50-2Y | B189: PaperCut Subscription, SFD, EduGov 50-99, per device, 2 years | C189: $168.00 | D189: $151.00 | E189: Subscription
A190: PCS-SFE50-3Y | B190: PaperCut Subscription, SFD, EduGov 50-99, per device, 3 years | C190: $239.00 | D190: $215.00 | E190: Subscription
A191: PCS-SFE50-4Y | B191: PaperCut Subscription, SFD, EduGov 50-99, per device, 4 years | C191: $319.00 | D191: $287.00 | E191: Subscription
A192: PCS-SFE50-5Y | B192: PaperCut Subscription, SFD, EduGov 50-99, per device, 5 years | C192: $365.00 | D192: $329.00 | E192: Subscription
A193: PCS-SFE50-1M | B193: PaperCut Subscription, SFD, EduGov 50-99, per device, monthly | C193: $7.00 | D193: $6.00 | E193: Subscription
A194: PaperCut Subscription Single Edu/Gov Device Licenses 100-499 Devices (Price per Device)
A195: PCS-SFE100-1Y | B195: PaperCut Subscription, SFD, EduGov 100-499, per device, 1 year | C195: $70.00 | D195: =ROUND(C195*(1-0.1),0) -> $63.00 | E195: Subscription
A196: PCS-SFE100-2Y | B196: PaperCut Subscription, SFD, EduGov 100-499, per device, 2 years | C196: $140.00 | D196: $126.00 | E196: Subscription
A197: PCS-SFE100-3Y | B197: PaperCut Subscription, SFD, EduGov 100-499, per device, 3 years | C197: $199.00 | D197: $179.00 | E197: Subscription
A198: PCS-SFE100-4Y | B198: PaperCut Subscription, SFD, EduGov 100-499, per device, 4 years | C198: $266.00 | D198: $239.00 | E198: Subscription
A199: PCS-SFE100-5Y | B199: PaperCut Subscription, SFD, EduGov 100-499, per device, 5 years | C199: $305.00 | D199: $275.00 | E199: Subscription
A200: PCS-SFE100-1M | B200: PaperCut Subscription, SFD, EduGov 100-499, per device, monthly | C200: $6.00 | D200: $5.00 | E200: Subscription
A201: PaperCut Subscription Single Edu/Gov Device Licenses 500-999 Devices (Price per Device)
A202: PCS-SFE500-1Y | B202: PaperCut Subscription, SFD, EduGov 500-999, per device, 1 year | C202: $68.00 | D202: =ROUND(C202*(1-0.1),0) -> $61.00 | E202: Subscription
A203: PCS-SFE500-2Y | B203: PaperCut Subscription, SFD, EduGov 500-999, per device, 2 years | C203: $136.00 | D203: $122.00 | E203: Subscription
A204: PCS-SFE500-3Y | B204: PaperCut Subscription, SFD, EduGov 500-999, per device, 3 years | C204: $194.00 | D204: $175.00 | E204: Subscription
A205: PCS-SFE500-4Y | B205: PaperCut Subscription, SFD, EduGov 500-999, per device, 4 years | C205: $258.00 | D205: $232.00 | E205: Subscription
A206: PCS-SFE500-5Y | B206: PaperCut Subscription, SFD, EduGov 500-999, per device, 5 years | C206: $296.00 | D206: $266.00 | E206: Subscription
A207: PCS-SFE500-1M | B207: PaperCut Subscription, SFD, EduGov 500-999, per device, monthly | C207: $5.50 | D207: =ROUND(C207*(1-0.05),1) -> $5.20 | E207: Subscription
... 231 more rows

Sheet PaperCut Hive
A1: Return To Table of Contents
A2: PaperCut Hive
A5: PaperCut Hive is a cloud-native, full embedded print management software for businesses that need secure and flexible printing solution to track, control, and enable print copy scan.
A8: PAPERCUT HIVE FULL EMBEDDED (M&S INCLUDED)
A9: Vendor Part # | B9: Description | C9: MSRP | D9: NASPO Price | E9: Type
A10: PaperCut Hive Commercial Device Licenses 1-9 Devices (Price per Device)
A11: PCH-FULLC-1Y | B11: PaperCut Hive Full Embedded Subscription, Comm 1-9, per device, 1 year | C11: $252.00 | D11: =ROUND(C11*(1-0.1),0) -> $227.00 | E11: Subscription
A12: PCH-FULLC-2Y | B12: PaperCut Hive Full Embedded Subscription, Comm 1-9, per device, 2 years | C12: $504.00 | D12: $454.00 | E12: Subscription
A13: PCH-FULLC-3Y | B13: PaperCut Hive Full Embedded Subscription, Comm 1-9, per device, 3 years | C13: $718.00 | D13: $646.00 | E13: Subscription
A14: PCH-FULLC-4Y | B14: PaperCut Hive Full Embedded Subscription, Comm 1-9, per device, 4 years | C14: $958.00 | D14: $862.00 | E14: Subscription
A15: PCH-FULLC-5Y | B15: PaperCut Hive Full Embedded Subscription, Comm 1-9, per device, 5 years | C15: $1,096.00 | D15: $986.00 | E15: Subscription
A16: PCH-FULLC-1M | B16: PaperCut Hive Full Embedded Subscription, Comm 1-9, per device, monthly | C16: $21.00 | D16: $19.00 | E16: Subscription
A17: PaperCut Hive Commercial Device Licenses 10-24 Devices (Price per Device)
A18: PCH-FULLC10-1Y | B18: PaperCut Hive Full Embedded Subscription, Comm 10-24, per device, 1 year | C18: $221.00 | D18: $199.00 | E18: Subscription
A19: PCH-FULLC10-2Y | B19: PaperCut Hive Full Embedded Subscription, Comm 10-24, per device, 2 years | C19: $442.00 | D19: $398.00 | E19: Subscription
A20: PCH-FULLC10-3Y | B20: PaperCut Hive Full Embedded Subscription, Comm 10-24, per device, 3 years | C20: $630.00 | D20: $567.00 | E20: Subscription
A21: PCH-FULLC10-4Y | B21: PaperCut Hive Full Embedded Subscription, Comm 10-24, per device, 4 years | C21: $840.00 | D21: $756.00 | E21: Subscription
A22: PCH-FULLC10-5Y | B22: PaperCut Hive Full Embedded Subscription, Comm 10-24, per device, 5 years | C22: $961.00 | D22: $865.00 | E22: Subscription
A23: PCH-FULLC10-1M | B23: PaperCut Hive Full Embedded Subscription, Comm 10-24, per device, monthly | C23: $18.50 | D23: $17.00 | E23: Subscription
A24: PaperCut Hive Commercial Device Licenses 25-49 Devices (Price per Device)
A25: PCH-FULLC25-1Y | B25: PaperCut Hive Full Embedded Subscription, Comm 25-49, per device, 1 year | C25: $193.00 | D25: $174.00 | E25: Subscription
A26: PCH-FULLC25-2Y | B26: PaperCut Hive Full Embedded Subscription, Comm 25-49, per device, 2 years | C26: $386.00 | D26: $347.00 | E26: Subscription
A27: PCH-FULLC25-3Y | B27: PaperCut Hive Full Embedded Subscription, Comm 25-49, per device, 3 years | C27: $550.00 | D27: $495.00 | E27: Subscription
A28: PCH-FULLC25-4Y | B28: PaperCut Hive Full Embedded Subscription, Comm 25-49, per device, 4 years | C28: $733.00 | D28: $660.00 | E28: Subscription
A29: PCH-FULLC25-5Y | B29: PaperCut Hive Full Embedded Subscription, Comm 25-49, per device, 5 years | C29: $840.00 | D29: $756.00 | E29: Subscription
A30: PCH-FULLC25-1M | B30: PaperCut Hive Full Embedded Subscription, Comm 25-49, per device, monthly | C30: $16.00 | D30: $14.00 | E30: Subscription
A31: PaperCut Hive Commercial Device Licenses 50-99 Devices (Price per Device)
A32: PCH-FULLC50-1Y | B32: PaperCut Hive Full Embedded Subscription, Comm 50-99, per device, 1 year | C32: $163.00 | D32: $147.00 | E32: Subscription
A33: PCH-FULLC50-2Y | B33: PaperCut Hive Full Embedded Subscription, Comm 50-99, per device, 2 years | C33: $326.00 | D33: $293.00 | E33: Subscription
A34: PCH-FULLC50-3Y | B34: PaperCut Hive Full Embedded Subscription, Comm 50-99, per device, 3 years | C34: $465.00 | D34: $419.00 | E34: Subscription
A35: PCH-FULLC50-4Y | B35: PaperCut Hive Full Embedded Subscription, Comm 50-99, per device, 4 years | C35: $619.00 | D35: $557.00 | E35: Subscription
A36: PCH-FULLC50-5Y | B36: PaperCut Hive Full Embedded Subscription, Comm 50-99, per device, 5 years | C36: $709.00 | D36: $638.00 | E36: Subscription
A37: PCH-FULLC50-1M | B37: PaperCut Hive Full Embedded Subscription, Comm 50-99, per device, monthly | C37: $13.50 | D37: $12.00 | E37: Subscription
A38: PaperCut Hive Commercial Device Licenses 100-499 Devices (Price per Device)
A39: PCH-FULLC100-1Y | B39: PaperCut Hive Full Embedded Subscription, Comm 100-499, per device, 1 year | C39: $136.00 | D39: $122.00 | E39: Subscription
A40: PCH-FULLC100-2Y | B40: PaperCut Hive Full Embedded Subscription, Comm 100-499, per device, 2 years | C40: $272.00 | D40: $245.00 | E40: Subscription
A41: PCH-FULLC100-3Y | B41: PaperCut Hive Full Embedded Subscription, Comm 100-499, per device, 3 years | C41: $388.00 | D41: $349.00 | E41: Subscription
A42: PCH-FULLC100-4Y | B42: PaperCut Hive Full Embedded Subscription, Comm 100-499, per device, 4 years | C42: $517.00 | D42: $465.00 | E42: Subscription
A43: PCH-FULLC100-5Y | B43: PaperCut Hive Full Embedded Subscription, Comm 100-499, per device, 5 years | C43: $592.00 | D43: $533.00 | E43: Subscription
A44: PCH-FULLC100-1M | B44: PaperCut Hive Full Embedded Subscription, Comm 100-499, per device, monthly | C44: $11.50 | D44: $10.00 | E44: Subscription
A45: PaperCut Hive Commercial Device Licenses 500-999 Devices (Price per Device)
A46: PCH-FULLC500-1Y | B46: PaperCut Hive Full Embedded Subscription, Comm 500-999, per device, 1 year | C46: $131.00 | D46: $118.00 | E46: Subscription
A47: PCH-FULLC500-2Y | B47: PaperCut Hive Full Embedded Subscription, Comm 500-999, per device, 2 years | C47: $262.00 | D47: $236.00 | E47: Subscription
A48: PCH-FULLC500-3Y | B48: PaperCut Hive Full Embedded Subscription, Comm 500-999, per device, 3 years | C48: $373.00 | D48: $336.00 | E48: Subscription
A49: PCH-FULLC500-4Y | B49: PaperCut Hive Full Embedded Subscription, Comm 500-999, per device, 4 years | C49: $498.00 | D49: $448.00 | E49: Subscription
A50: PCH-FULLC500-5Y | B50: PaperCut Hive Full Embedded Subscription, Comm 500-999, per device, 5 years | C50: $570.00 | D50: $513.00 | E50: Subscription
A51: PCH-FULLC500-1M | B51: PaperCut Hive Full Embedded Subscription, Comm 500-999, per device, monthly | C51: $11.00 | D51: $10.00 | E51: Subscription
A52: PaperCut Hive Commercial Device Licenses 1000+ Devices (Price per Device)
A53: PCH-FULLC1K-1Y | B53: PaperCut Hive Full Embedded Subscription, Comm 1000+, per device, 1 year | C53: $121.00 | D53: $109.00 | E53: Subscription
A54: PCH-FULLC1K-2Y | B54: PaperCut Hive Full Embedded Subscription, Comm 1000+, per device, 2 years | C54: $242.00 | D54: $218.00 | E54: Subscription
A55: PCH-FULLC1K-3Y | B55: PaperCut Hive Full Embedded Subscription, Comm 1000+, per device, 3 years | C55: $345.00 | D55: $311.00 | E55: Subscription
A56: PCH-FULLC1K-4Y | B56: PaperCut Hive Full Embedded Subscription, Comm 1000+, per device, 4 years | C56: $460.00 | D56: $414.00 | E56: Subscription
A57: PCH-FULLC1K-5Y | B57: PaperCut Hive Full Embedded Subscription, Comm 1000+, per device, 5 years | C57: $526.00 | D57: $473.00 | E57: Subscription
A58: PCH-FULLC1K-1M | B58: PaperCut Hive Full Embedded Subscription, Comm 1000+, per device, monthly | C58: $10.00 | D58: $9.00 | E58: Subscription
A60: PAPERCUT HIVE COMMERCIAL LITE RELEASE
A61: Vendor Part # | B61: Description | C61: MSRP | D61: NASPO Price | E61: Type
A62: PaperCut Hive Lite Commercial Device Licenses 1-9 Devices (Price per Device)
A63: PCH-LITEC-1Y | B63: PaperCut Hive Lite Release Subscription, Comm 1-9, per device, 1 year | C63: $126.00 | D63: =ROUND(C63*(1-0.1),0) -> $113.00 | E63: Subscription
A64: PCH-LITEC-2Y | B64: PaperCut Hive Lite Release Subscription, Comm 1-9, per device, 2 years | C64: $252.00 | D64: $227.00 | E64: Subscription
A65: PCH-LITEC-3Y | B65: PaperCut Hive Lite Release Subscription, Comm 1-9, per device, 3 years | C65: $359.00 | D65: $323.00 | E65: Subscription
A66: PCH-LITEC-4Y | B66: PaperCut Hive Lite Release Subscription, Comm 1-9, per device, 4 years | C66: $479.00 | D66: $431.00 | E66: Subscription
A67: PCH-LITEC-5Y | B67: PaperCut Hive Lite Release Subscription, Comm 1-9, per device, 5 years | C67: $548.00 | D67: $493.00 | E67: Subscription
A68: PCH-LITEC-1M | B68: PaperCut Hive Lite Release Subscription, Comm 1-9, per device, monthly | C68: $10.50 | D68: $9.00 | E68: Subscription
A69: PaperCut Hive Lite Commercial Device Licenses 10-24 Devices (Price per Device)
A70: PCH-LITEC10-1Y | B70: PaperCut Hive Lite Release Subscription, Comm 10-24, per device, 1 year | C70: $111.00 | D70: =ROUND(C70*(1-0.1),0) -> $100.00 | E70: Subscription
A71: PCH-LITEC10-2Y | B71: PaperCut Hive Lite Release Subscription, Comm 10-24, per device, 2 years | C71: $222.00 | D71: $200.00 | E71: Subscription
A72: PCH-LITEC10-3Y | B72: PaperCut Hive Lite Release Subscription, Comm 10-24, per device, 3 years | C72: $316.00 | D72: $284.00 | E72: Subscription
A73: PCH-LITEC10-4Y | B73: PaperCut Hive Lite Release Subscription, Comm 10-24, per device, 4 years | C73: $422.00 | D73: $380.00 | E73: Subscription
A74: PCH-LITEC10-5Y | B74: PaperCut Hive Lite Release Subscription, Comm 10-24, per device, 5 years | C74: $483.00 | D74: $435.00 | E74: Subscription
A75: PCH-LITEC10-1M | B75: PaperCut Hive Lite Release Subscription, Comm 10-24, per device, monthly | C75: $9.50 | D75: $9.00 | E75: Subscription
A76: PaperCut Hive Lite Commercial Device Licenses 25-49 Devices (Price per Device)
A77: PCH-LITEC25-1Y | B77: PaperCut Hive Lite Release Subscription, Comm 25-49, per device, 1 year | C77: $96.00 | D77: $86.00 | E77: Subscription
A78: PCH-LITEC25-2Y | B78: PaperCut Hive Lite Release Subscription, Comm 25-49, per device, 2 years | C78: $192.00 | D78: $173.00 | E78: Subscription
A79: PCH-LITEC25-3Y | B79: PaperCut Hive Lite Release Subscription, Comm 25-49, per device, 3 years | C79: $274.00 | D79: $247.00 | E79: Subscription
A80: PCH-LITEC25-4Y | B80: PaperCut Hive Lite Release Subscription, Comm 25-49, per device, 4 years | C80: $365.00 | D80: $329.00 | E80: Subscription
A81: PCH-LITEC25-5Y | B81: PaperCut Hive Lite Release Subscription, Comm 25-49, per device, 5 years | C81: $418.00 | D81: $376.00 | E81: Subscription
A82: PCH-LITEC25-1M | B82: PaperCut Hive Lite Release Subscription, Comm 25-49, per device, monthly | C82: $8.00 | D82: $7.00 | E82: Subscription
A83: PaperCut Hive Lite Commercial Device Licenses 50-99 Devices (Price per Device)
A84: PCH-LITEC50-1Y | B84: PaperCut Hive Lite Release Subscription, Comm 50-99, per device, 1 year | C84: $81.00 | D84: =ROUND(C84*(1-0.1),0) -> $73.00 | E84: Subscription
A85: PCH-LITEC50-2Y | B85: PaperCut Hive Lite Release Subscription, Comm 50-99, per device, 2 years | C85: $162.00 | D85: $146.00 | E85: Subscription
A86: PCH-LITEC50-3Y | B86: PaperCut Hive Lite Release Subscription, Comm 50-99, per device, 3 years | C86: $231.00 | D86: $208.00 | E86: Subscription
A87: PCH-LITEC50-4Y | B87: PaperCut Hive Lite Release Subscription, Comm 50-99, per device, 4 years | C87: $308.00 | D87: $277.00 | E87: Subscription
A88: PCH-LITEC50-5Y | B88: PaperCut Hive Lite Release Subscription, Comm 50-99, per device, 5 years | C88: $352.00 | D88: $317.00 | E88: Subscription
A89: PCH-LITEC50-1M | B89: PaperCut Hive Lite Release Subscription, Comm 50-99, per device, monthly | C89: $7.00 | D89: $6.00 | E89: Subscription
A90: PaperCut Hive Lite Commercial Device Licenses 100-499 Devices (Price per Device)
A91: PCH-LITEC100-1Y | B91: PaperCut Hive Lite Release Subscription, Comm 100-499, per device, 1 year | C91: $68.00 | D91: =ROUND(C91*(1-0.1),0) -> $61.00 | E91: Subscription
A92: PCH-LITEC100-2Y | B92: PaperCut Hive Lite Release Subscription, Comm 100-499, per device, 2 years | C92: $136.00 | D92: =ROUND(C92*(1-0.1),0) -> $122.00 | E92: Subscription
A93: PCH-LITEC100-3Y | B93: PaperCut Hive Lite Release Subscription, Comm 100-499, per device, 3 years | C93: $194.00 | D93: =ROUND(C93*(1-0.1),0) -> $175.00 | E93: Subscription
A94: PCH-LITEC100-4Y | B94: PaperCut Hive Lite Release Subscription, Comm 100-499, per device, 4 years | C94: $258.00 | D94: =ROUND(C94*(1-0.1),0) -> $232.00 | E94: Subscription
A95: PCH-LITEC100-5Y | B95: PaperCut Hive Lite Release Subscription, Comm 100-499, per device, 5 years | C95: $296.00 | D95: =ROUND(C95*(1-0.1),0) -> $266.00 | E95: Subscription
A96: PCH-LITEC100-1M | B96: PaperCut Hive Lite Release Subscription, Comm 100-499, per device, monthly | C96: $5.50 | D96: =ROUND(C96*(1-0.05),2) -> $5.23 | E96: Subscription
A97: PaperCut Hive Lite Commercial Device Licenses 500-999 Devices (Price per Device)
A98: PCH-LITEC500-1Y | B98: PaperCut Hive Lite Release Subscription, Comm 500-999, per device, 1 year | C98: $66.00 | D98: =ROUND(C98*(1-0.1),0) -> $59.00 | E98: Subscription
A99: PCH-LITEC500-2Y | B99: PaperCut Hive Lite Release Subscription, Comm 500-999, per device, 2 years | C99: $132.00 | D99: =ROUND(C99*(1-0.1),0) -> $119.00 | E99: Subscription
A100: PCH-LITEC500-3Y | B100: PaperCut Hive Lite Release Subscription, Comm 500-999, per device, 3 years | C100: $188.00 | D100: =ROUND(C100*(1-0.1),0) -> $169.00 | E100: Subscription
A101: PCH-LITEC500-4Y | B101: PaperCut Hive Lite Release Subscription, Comm 500-999, per device, 4 years | C101: $251.00 | D101: =ROUND(C101*(1-0.1),0) -> $226.00 | E101: Subscription
A102: PCH-LITEC500-5Y | B102: PaperCut Hive Lite Release Subscription, Comm 500-999, per device, 5 years | C102: $287.00 | D102: =ROUND(C102*(1-0.1),0) -> $258.00 | E102: Subscription
A103: PCH-LITEC500-1M | B103: PaperCut Hive Lite Release Subscription, Comm 500-999, per device, monthly | C103: $5.50 | D103: =ROUND(C103*(1-0.05),2) -> $5.23 | E103: Subscription
A104: PaperCut Hive Lite Commercial Device Licenses 1000+Devices (Price per Device)
A105: PCH-LITEC1K-1Y | B105: PaperCut Hive Lite Release Subscription, Comm 1000+, per device, 1 year | C105: $60.00 | D105: =ROUND(C105*(1-0.1),0) -> $54.00 | E105: Subscription
A106: PCH-LITEC1K-2Y | B106: PaperCut Hive Lite Release Subscription, Comm 1000+, per device, 2 years | C106: $120.00 | D106: =ROUND(C106*(1-0.1),0) -> $108.00 | E106: Subscription
A107: PCH-LITEC1K-3Y | B107: PaperCut Hive Lite Release Subscription, Comm 1000+, per device, 3 years | C107: $171.00 | D107: =ROUND(C107*(1-0.1),0) -> $154.00 | E107: Subscription
A108: PCH-LITEC1K-4Y | B108: PaperCut Hive Lite Release Subscription, Comm 1000+, per device, 4 years | C108: $228.00 | D108: =ROUND(C108*(1-0.1),0) -> $205.00 | E108: Subscription
A109: PCH-LITEC1K-5Y | B109: PaperCut Hive Lite Release Subscription, Comm 1000+, per device, 5 years | C109: $261.00 | D109: =ROUND(C109*(1-0.1),0) -> $235.00 | E109: Subscription
A110: PCH-LITEC1K-1M | B110: PaperCut Hive Lite Release Subscription, Comm 1000+, per device, monthly | C110: $5.00 | D110: =ROUND(C110*(1-0.05),2) -> $4.75 | E110: Subscription
A112: PAPERCUT HIVE COMMERCIAL PRINTER
A113: Vendor Part # | B113: Description | C113: MSRP | D113: NASPO Price | E113: Type
A114: PaperCut Hive Commercial Printer Subscription 1-9 Devices (Price per Device)
A115: PCH-PRTC-1Y | B115: PaperCut Hive Printer Subscription, Comm 1-9, per device, 1 year | C115: $102.00 | D115: =ROUND(C115*(1-0.1),0) -> $92.00 | E115: Subscription
A116: PCH-PRTC-2Y | B116: PaperCut Hive Printer Subscription, Comm 1-9, per device, 2 years | C116: $204.00 | D116: =ROUND(C116*(1-0.1),0) -> $184.00 | E116: Subscription
A117: PCH-PRTC-3Y | B117: PaperCut Hive Printer Subscription, Comm 1-9, per device, 3 years | C117: $291.00 | D117: =ROUND(C117*(1-0.1),0) -> $262.00 | E117: Subscription
A118: PCH-PRTC-4Y | B118: PaperCut Hive Printer Subscription, Comm 1-9, per device, 4 years | C118: $388.00 | D118: =ROUND(C118*(1-0.1),0) -> $349.00 | E118: Subscription
A119: PCH-PRTC-5Y | B119: PaperCut Hive Printer Subscription, Comm 1-9, per device, 5 years | C119: $444.00 | D119: =ROUND(C119*(1-0.1),0) -> $400.00 | E119: Subscription
A120: PCH-PRTC-1M | B120: PaperCut Hive Printer Subscription, Comm 1-9, per device, monthly | C120: $8.50 | D120: =ROUND(C120*(1-0.05),2) -> $8.08 | E120: Subscription
A121: PaperCut Hive Commercial Printer Subscription 10-24 Devices (Price per Device)
A122: PCH-PRTC10-1Y | B122: PaperCut Hive Printer Subscription, Comm 10-24, per device, 1 year | C122: $90.00 | D122: =ROUND(C122*(1-0.1),0) -> $81.00 | E122: Subscription
A123: PCH-PRTC10-2Y | B123: PaperCut Hive Printer Subscription, Comm 10-24, per device, 2 years | C123: $180.00 | D123: =ROUND(C123*(1-0.1),0) -> $162.00 | E123: Subscription
A124: PCH-PRTC10-3Y | B124: PaperCut Hive Printer Subscription, Comm 10-24, per device, 3 years | C124: $256.00 | D124: =ROUND(C124*(1-0.1),0) -> $230.00 | E124: Subscription
A125: PCH-PRTC10-4Y | B125: PaperCut Hive Printer Subscription, Comm 10-24, per device, 4 years | C125: $342.00 | D125: =ROUND(C125*(1-0.1),0) -> $308.00 | E125: Subscription
A126: PCH-PRTC10-5Y | B126: PaperCut Hive Printer Subscription, Comm 10-24, per device, 5 years | C126: $391.00 | D126: =ROUND(C126*(1-0.1),0) -> $352.00 | E126: Subscription
A127: PCH-PRTC10-1M | B127: PaperCut Hive Printer Subscription, Comm 10-24, per device, monthly | C127: $7.50 | D127: =ROUND(C127*(1-0.05),2) -> $7.13 | E127: Subscription
A128: PaperCut Hive Commercial Printer Subscription 24-49 Devices (Price per Device)
A129: PCH-PRTC25-1Y | B129: PaperCut Hive Printer Subscription, Comm 24-49, per device, 1 year | C129: $78.00 | D129: =ROUND(C129*(1-0.1),0) -> $70.00 | E129: Subscription
A130: PCH-PRTC25-2Y | B130: PaperCut Hive Printer Subscription, Comm 24-49, per device, 2 years | C130: $156.00 | D130: =ROUND(C130*(1-0.1),0) -> $140.00 | E130: Subscription
A131: PCH-PRTC25-3Y | B131: PaperCut Hive Printer Subscription, Comm 24-49, per device, 3 years | C131: $222.00 | D131: =ROUND(C131*(1-0.1),0) -> $200.00 | E131: Subscription
A132: PCH-PRTC25-4Y | B132: PaperCut Hive Printer Subscription, Comm 24-49, per device, 4 years | C132: $296.00 | D132: =ROUND(C132*(1-0.1),0) -> $266.00 | E132: Subscription
A133: PCH-PRTC25-5Y | B133: PaperCut Hive Printer Subscription, Comm 24-49, per device, 5 years | C133: $339.00 | D133: =ROUND(C133*(1-0.1),0) -> $305.00 | E133: Subscription
A134: PCH-PRTC25-1M | B134: PaperCut Hive Printer Subscription, Comm 24-49, per device, monthly | C134: $6.50 | D134: =ROUND(C134*(1-0.05),2) -> $6.18 | E134: Subscription
A135: PaperCut Hive Commercial Printer Subscription 50-99 Devices (Price per Device)
A136: PCH-PRTC50-1Y | B136: PaperCut Hive Printer Subscription, Comm 50-99, per device, 1 year | C136: $66.00 | D136: =ROUND(C136*(1-0.1),0) -> $59.00 | E136: Subscription
A137: PCH-PRTC50-2Y | B137: PaperCut Hive Printer Subscription, Comm 50-99, per device, 2 years | C137: $132.00 | D137: =ROUND(C137*(1-0.1),0) -> $119.00 | E137: Subscription
A138: PCH-PRTC50-3Y | B138: PaperCut Hive Printer Subscription, Comm 50-99, per device, 3 years | C138: $188.00 | D138: =ROUND(C138*(1-0.1),0) -> $169.00 | E138: Subscription
A139: PCH-PRTC50-4Y | B139: PaperCut Hive Printer Subscription, Comm 50-99, per device, 4 years | C139: $251.00 | D139: =ROUND(C139*(1-0.1),0) -> $226.00 | E139: Subscription
A140: PCH-PRTC50-5Y | B140: PaperCut Hive Printer Subscription, Comm 50-99, per device, 5 years | C140: $287.00 | D140: =ROUND(C140*(1-0.1),0) -> $258.00 | E140: Subscription
A141: PCH-PRTC50-1M | B141: PaperCut Hive Printer Subscription, Comm 50-99, per device, monthly | C141: $5.50 | D141: =ROUND(C141*(1-0.05),2) -> $5.23 | E141: Subscription
A142: PaperCut Hive Commercial Printer Subscription 100-499 Devices (Price per Device)
A143: PCH-PRTC100-1Y | B143: PaperCut Hive Printer Subscription, Comm 100-499, per device, 1 year | C143: $55.00 | D143: =ROUND(C143*(1-0.1),0) -> $50.00 | E143: Subscription
A144: PCH-PRTC100-2Y | B144: PaperCut Hive Printer Subscription, Comm 100-499, per device, 2 years | C144: $110.00 | D144: =ROUND(C144*(1-0.1),0) -> $99.00 | E144: Subscription
A145: PCH-PRTC100-3Y | B145: PaperCut Hive Printer Subscription, Comm 100-499, per device, 3 years | C145: $157.00 | D145: =ROUND(C145*(1-0.1),0) -> $141.00 | E145: Subscription
A146: PCH-PRTC100-4Y | B146: PaperCut Hive Printer Subscription, Comm 100-499, per device, 4 years | C146: $209.00 | D146: =ROUND(C146*(1-0.1),0) -> $188.00 | E146: Subscription
A147: PCH-PRTC100-5Y | B147: PaperCut Hive Printer Subscription, Comm 100-499, per device, 5 years | C147: $239.00 | D147: =ROUND(C147*(1-0.1),0) -> $215.00 | E147: Subscription
A148: PCH-PRTC100-1M | B148: PaperCut Hive Printer Subscription, Comm 100-499, per device, monthly | C148: $4.50 | D148: =ROUND(C148*(1-0.05),2) -> $4.28 | E148: Subscription
A149: PaperCut Hive Commercial Printer Subscription 500-999 Devices (Price per Device)
A150: PCH-PRTC500-1Y | B150: PaperCut Hive Printer Subscription, Comm 500-999, per device, 1 year | C150: $53.00 | D150: =ROUND(C150*(1-0.05),2) -> $50.35 | E150: Subscription
A151: PCH-PRTC500-2Y | B151: PaperCut Hive Printer Subscription, Comm 500-999, per device, 2 years | C151: $106.00 | D151: $100.70 | E151: Subscription
A152: PCH-PRTC500-3Y | B152: PaperCut Hive Printer Subscription, Comm 500-999, per device, 3 years | C152: $151.00 | D152: $143.45 | E152: Subscription
A153: PCH-PRTC500-4Y | B153: PaperCut Hive Printer Subscription, Comm 500-999, per device, 4 years | C153: $201.00 | D153: $190.95 | E153: Subscription
A154: PCH-PRTC500-5Y | B154: PaperCut Hive Printer Subscription, Comm 500-999, per device, 5 years | C154: $231.00 | D154: $219.45 | E154: Subscription
A155: PCH-PRTC500-1M | B155: PaperCut Hive Printer Subscription, Comm 500-999, per device, monthly | C155: $4.50 | D155: $4.28 | E155: Subscription
A156: PaperCut Hive Commercial Printer Subscription 1000+ Devices (Price per Device)
A157: PCH-PRTC1K-1Y | B157: PaperCut Hive Printer Subscription, Comm 1000+, per device, 1 year | C157: $49.00 | D157: =ROUND(C157*(1-0.1),0) -> $44.00 | E157: Subscription
A158: PCH-PRTC1K-2Y | B158: PaperCut Hive Printer Subscription, Comm 1000+, per device, 2 years | C158: $98.00 | D158: =ROUND(C158*(1-0.1),0) -> $88.00 | E158: Subscription
A159: PCH-PRTC1K-3Y | B159: PaperCut Hive Printer Subscription, Comm 1000+, per device, 3 years | C159: $140.00 | D159: =ROUND(C159*(1-0.1),0) -> $126.00 | E159: Subscription
A160: PCH-PRTC1K-4Y | B160: PaperCut Hive Printer Subscription, Comm 1000+, per device, 4 years | C160: $186.00 | D160: =ROUND(C160*(1-0.1),0) -> $167.00 | E160: Subscription
A161: PCH-PRTC1K-5Y | B161: PaperCut Hive Printer Subscription, Comm 1000+, per device, 5 years | C161: $213.00 | D161: =ROUND(C161*(1-0.1),0) -> $192.00 | E161: Subscription
A162: PCH-PRTC1K-1M | B162: PaperCut Hive Printer Subscription, Comm 1000+, per device, monthly | C162: $4.00 | D162: =ROUND(C162*(1-0.05),2) -> $3.80 | E162: Subscription
A164: PAPERCUT HIVE EDU /GOV FULL EMBEDDED
A165: Vendor Part # | B165: Description | C165: MSRP | D165: NASPO Price | E165: Type
A166: PaperCut Hive Full Embedded Subscription, EduGov 1-9 Devices (Price per Device)
A167: PCH-FULLE-1Y | B167: PaperCut Hive Full Embedded Subscription, EduGov 1-9, per device, 1 year | C167: $236.00 | D167: =ROUND(C167*(1-0.05),2) -> $224.20 | E167: Subscription
A168: PCH-FULLE-2Y | B168: PaperCut Hive Full Embedded Subscription, EduGov 1-9, per device, 2 years | C168: $472.00 | D168: $448.40 | E168: Subscription
A169: PCH-FULLE-3Y | B169: PaperCut Hive Full Embedded Subscription, EduGov 1-9, per device, 3 years | C169: $673.00 | D169: $639.35 | E169: Subscription
A170: PCH-FULLE-4Y | B170: PaperCut Hive Full Embedded Subscription, EduGov 1-9, per device, 4 years | C170: $897.00 | D170: $852.15 | E170: Subscription
A171: PCH-FULLE-5Y | B171: PaperCut Hive Full Embedded Subscription, EduGov 1-9, per device, 5 years | C171: $1,027.00 | D171: $975.65 | E171: Subscription
A172: PCH-FULLE-1M | B172: PaperCut Hive Full Embedded Subscription, EduGov 1-9, per device, monthly | C172: $19.50 | D172: $18.53 | E172: Subscription
A173: PaperCut Hive Full Embedded Subscription, EduGov 10-24 Devices (Price per Device)
A174: PCH-FULLE10-1Y | B174: PaperCut Hive Full Embedded Subscription, EduGov 10-24, per device, 1 year | C174: $207.00 | D174: $196.65 | E174: Subscription
A175: PCH-FULLE10-2Y | B175: PaperCut Hive Full Embedded Subscription, EduGov 10-24, per device, 2 years | C175: $414.00 | D175: $393.30 | E175: Subscription
A176: PCH-FULLE10-3Y | B176: PaperCut Hive Full Embedded Subscription, EduGov 10-24, per device, 3 years | C176: $590.00 | D176: $560.50 | E176: Subscription
A177: PCH-FULLE10-4Y | B177: PaperCut Hive Full Embedded Subscription, EduGov 10-24, per device, 4 years | C177: $787.00 | D177: $747.65 | E177: Subscription
A178: PCH-FULLE10-5Y | B178: PaperCut Hive Full Embedded Subscription, EduGov 10-24, per device, 5 years | C178: $900.00 | D178: $855.00 | E178: Subscription
A179: PCH-FULLE10-1M | B179: PaperCut Hive Full Embedded Subscription, EduGov 10-24, per device, monthly | C179: $17.50 | D179: $16.63 | E179: Subscription
A180: PaperCut Hive Full Embedded Subscription, EduGov 24-49 Devices (Price per Device)
A181: PCH-FULLE25-1Y | B181: PaperCut Hive Full Embedded Subscription, EduGov 24-49, per device, 1 year | C181: $180.00 | D181: $171.00 | E181: Subscription
A182: PCH-FULLE25-2Y | B182: PaperCut Hive Full Embedded Subscription, EduGov 24-49, per device, 2 years | C182: $360.00 | D182: $342.00 | E182: Subscription
A183: PCH-FULLE25-3Y | B183: PaperCut Hive Full Embedded Subscription, EduGov 24-49, per device, 3 years | C183: $513.00 | D183: $487.35 | E183: Subscription
A184: PCH-FULLE25-4Y | B184: PaperCut Hive Full Embedded Subscription, EduGov 24-49, per device, 4 years | C184: $684.00 | D184: $649.80 | E184: Subscription
A185: PCH-FULLE25-5Y | B185: PaperCut Hive Full Embedded Subscription, EduGov 24-49, per device, 5 years | C185: $783.00 | D185: $743.85 | E185: Subscription
A186: PCH-FULLE25-1M | B186: PaperCut Hive Full Embedded Subscription, EduGov 24-49, per device, monthly | C186: $15.00 | D186: $14.25 | E186: Subscription
A187: PaperCut Hive Full Embedded Subscription, EduGov 50-99 Devices (Price per Device)
A188: PCH-FULLE50-1Y | B188: PaperCut Hive Full Embedded Subscription, EduGov 50-99, per device, 1 year | C188: $153.00 | D188: $145.35 | E188: Subscription
A189: PCH-FULLE50-2Y | B189: PaperCut Hive Full Embedded Subscription, EduGov 50-99, per device, 2 years | C189: $306.00 | D189: $290.70 | E189: Subscription
A190: PCH-FULLE50-3Y | B190: PaperCut Hive Full Embedded Subscription, EduGov 50-99, per device, 3 years | C190: $436.00 | D190: $414.20 | E190: Subscription
A191: PCH-FULLE50-4Y | B191: PaperCut Hive Full Embedded Subscription, EduGov 50-99, per device, 4 years | C191: $581.00 | D191: $551.95 | E191: Subscription
A192: PCH-FULLE50-5Y | B192: PaperCut Hive Full Embedded Subscription, EduGov 50-99, per device, 5 years | C192: $666.00 | D192: $632.70 | E192: Subscription
A193: PCH-FULLE50-1M | B193: PaperCut Hive Full Embedded Subscription, EduGov 50-99, per device, monthly | C193: $13.00 | D193: =ROUND(C193*(1-0.05),2) -> $12.35 | E193: Subscription
A194: PaperCut Hive Full Embedded Subscription, EduGov 100-499 Devices (Price per Device)
A195: PCH-FULLE100-1Y | B195: PaperCut Hive Full Embedded Subscription, EduGov 100-499, per device, 1 year | C195: $127.00 | D195: =ROUND(C195*(1-0.05),2) -> $120.65 | E195: Subscription
A196: PCH-FULLE100-2Y | B196: PaperCut Hive Full Embedded Subscription, EduGov 100-499, per device, 2 years | C196: $254.00 | D196: $241.30 | E196: Subscription
A197: PCH-FULLE100-3Y | B197: PaperCut Hive Full Embedded Subscription, EduGov 100-499, per device, 3 years | C197: $362.00 | D197: $343.90 | E197: Subscription
A198: PCH-FULLE100-4Y | B198: PaperCut Hive Full Embedded Subscription, EduGov 100-499, per device, 4 years | C198: $483.00 | D198: $458.85 | E198: Subscription
A199: PCH-FULLE100-5Y | B199: PaperCut Hive Full Embedded Subscription, EduGov 100-499, per device, 5 years | C199: $552.00 | D199: $524.40 | E199: Subscription
A200: PCH-FULLE100-1M | B200: PaperCut Hive Full Embedded Subscription, EduGov 100-499, per device, monthly | C200: $10.50 | D200: $9.98 | E200: Subscription
A201: PaperCut Hive Full Embedded Subscription, EduGov 500-999 Devices (Price per Device)
A202: PCH-FULLE500-1Y | B202: PaperCut Hive Full Embedded Subscription, EduGov 500-999, per device, 1 year | C202: $123.00 | D202: $116.85 | E202: Subscription
A203: PCH-FULLE500-2Y | B203: PaperCut Hive Full Embedded Subscription, EduGov 500-999, per device, 2 years | C203: $246.00 | D203: $233.70 | E203: Subscription
A204: PCH-FULLE500-3Y | B204: PaperCut Hive Full Embedded Subscription, EduGov 500-999, per device, 3 years | C204: $351.00 | D204: $333.45 | E204: Subscription
A205: PCH-FULLE500-4Y | B205: PaperCut Hive Full Embedded Subscription, EduGov 500-999, per device, 4 years | C205: $467.00 | D205: $443.65 | E205: Subscription
A206: PCH-FULLE500-5Y | B206: PaperCut Hive Full Embedded Subscription, EduGov 500-999, per device, 5 years | C206: $535.00 | D206: $508.25 | E206: Subscription
A207: PCH-FULLE500-1M | B207: PaperCut Hive Full Embedded Subscription, EduGov 500-999, per device, monthly | C207: $10.50 | D207: $9.98 | E207: Subscription
... 180 more rows

Sheet Scanshare
A1: Return To Table of Contents
A2: Scanshare
A5: Scanshare Capture is a powerful yet easy-to-use solution that lets you integrate your paper-based workflows, inbound emails, and faxes to your document management systems, databases, corporate file servers, and content management applications.
A6: Capture and convert your paper documents using your Sharp multifunctional device (with apps for most popular brands) via the Scanshare Capture embedded client.
A9: SCANSHARE ESSENTIALS (1 YEAR M&S INCLUDED)
A10: Vendor Part # | B10: Description | C10: MSRP | D10: NASPO Price | E10: Type
A11: SS-SRV-ESS | B11: Scanshare Essentials Server, incl. 1 yr m&s | C11: $495.00 | D11: =ROUND(C11*(1-0.1),0) -> $446.00 | E11: One Time Fee
A12: SS-SRV-ESSVM | B12: Scanshare Essentials VM Server, incl. 1 yr m&s | C12: $495.00 | D12: =ROUND(C12*(1-0.1),0) -> $446.00 | E12: One Time Fee
A14: ESSENTIALS CLIENTS (1 YEAR M&S INCLUDED)
A15: Vendor Part # | B15: Description | C15: MSRP | D15: NASPO Price | E15: Type
A16: ESSClient | B16: Essentials Client, 1-24, per device, incl. 1 yr m&s | C16: $295.00 | D16: =ROUND(C16*(1-0.1),0) -> $266.00 | E16: One Time Fee
A17: ESSClient-25 | B17: Essentials Client, 25-49, per device, incl. 1 yr m&s | C17: $205.00 | D17: =ROUND(C17*(1-0.1),0) -> $185.00 | E17: One Time Fee
A18: ESSClient-50 | B18: Essentials Client, 50+, per device, incl. 1 yr m&s | C18: $175.00 | D18: =ROUND(C18*(1-0.1),0) -> $158.00 | E18: One Time Fee
A20: SCANSHARE ENTERPRISE (1 YEAR M&S INCLUDED)
A21: Vendor Part # | B21: Description | C21: MSRP | D21: NASPO Price | E21: Type
A22: SS-SRV-ENT | B22: Scanshare Enterprise Server, incl. 1 yr m&s | C22: $1,150.00 | D22: =ROUND(C22*(1-0.1),0) -> $1,035.00 | E22: One Time Fee
A23: SS-SRV-ENTVM | B23: Scanshare Enterprise VM Server, incl. 1 yr m&s | C23: $1,150.00 | D23: =ROUND(C23*(1-0.1),0) -> $1,035.00 | E23: One Time Fee
A24: SS-FR-SRV | B24: Scanshare File Repository, incl. 1 yr m&s | C24: $1,500.00 | D24: =ROUND(C24*(1-0.1),0) -> $1,350.00 | E24: One Time Fee
A26: ENTERPRISE CLIENTS (1 YEAR M&S INCLUDED)
A27: Vendor Part # | B27: Description | C27: MSRP | D27: NASPO Price | E27: Type
A28: Enterprise Client (Price per Device) - Includes 1 year M&S
A29: ENTClient | B29: Enterprise Client 1-24, per device, incl. 1 yr m&s | C29: $595.00 | D29: =ROUND(C29*(1-0.1),0) -> $536.00 | E29: One Time Fee
A30: ENTClient-25 | B30: Enterprise Client 25-99, per device, incl. 1 yr m&s | C30: $400.00 | D30: $360.00 | E30: One Time Fee
A31: ENTClient-100 | B31: Enterprise Client 100-399, per device, incl. 1 yr m&s | C31: $270.00 | D31: $243.00 | E31: One Time Fee
A32: ENTClient-400 | B32: Enterprise Client 400+, per device, incl. 1 yr m&s | C32: $250.00 | D32: $225.00 | E32: One Time Fee
A33: Enterprise PC Professional Client (Price per Device) - Includes 1 year M&S
A34: PC-DTP | B34: Enterprise PC Professional Client, 1-24, per device incl. 1 yr m&s | C34: $595.00 | D34: $536.00 | E34: One Time Fee
A35: PC-DTP-25 | B35: Enterprise PC Professional Client, 25 -99, per device incl. 1 yr m&s | C35: $400.00 | D35: $360.00 | E35: One Time Fee
A36: PC-DTP-100 | B36: Enterprise PC Professional Client, 100-399, per device incl. 1 yr m&s | C36: $270.00 | D36: $243.00 | E36: One Time Fee
A37: PC-DTP-400 | B37: Enterprise PC Professional Client, 400+, per device incl. 1 yr m&s | C37: $250.00 | D37: $225.00 | E37: One Time Fee
A38: Enterprise PC Standard Client (Price per Device) - Includes 1 year M&S
A39: PC-DTS | B39: Enterprise PC Standard Client, 1-24, per device incl. 1 yr m&s | C39: $325.00 | D39: $293.00 | E39: One Time Fee
A40: PC-DTS-25 | B40: Enterprise PC Standard Client, 25-99, per device incl. 1 yr m&s | C40: $195.00 | D40: $176.00 | E40: One Time Fee
A41: PC-DTS-100 | B41: Enterprise PC Standard Client, 100-399, per device incl. 1 yr m&s | C41: $150.00 | D41: $135.00 | E41: One Time Fee
A42: PC-DTS-400 | B42: Enterprise PC Standard Client, 400+, per device incl. 1 yr m&s | C42: $138.00 | D42: $124.00 | E42: One Time Fee
A43: Clientpack for Mobile Devices (10 pack) - Includes 1 year M&S
A44: MO-AND | B44: Clientpack for 10 mobile devices incl. 1 yr m&s | C44: $595.00 | D44: $536.00 | E44: One Time Fee
A46: ADDITIONAL LICENSE ADD-ONS
A47: Vendor Part # | B47: Description | C47: MSRP | D47: NASPO Price | E47: Type
A48: MOD-OMR | B48: OMR | C48: $720.00 | D48: =ROUND(C48*(1-0.1),0) -> $648.00 | E48: One Time Fee
A49: MOD-FFR | B49: Free Form | C49: $1,790.00 | D49: $1,611.00 | E49: One Time Fee
A50: MOD-BCA | B50: Barcode writer / annotation | C50: $720.00 | D50: $648.00 | E50: One Time Fee
A51: MOD-VER_1 | B51: Verification Module 1 concurrent user | C51: $145.00 | D51: $131.00 | E51: One Time Fee
A52: MOD-VER_10 | B52: Verification Module 10 concurrent users | C52: $185.00 | D52: $167.00 | E52: One Time Fee
A53: MOD-WCL_1 | B53: Webclient Standard 1 concurrent user | C53: $1,425.00 | D53: $1,283.00 | E53: One Time Fee
A54: MOD-WCL_10 | B54: Webclient Standard 10 concurrent users | C54: $245.00 | D54: $221.00 | E54: One Time Fee
A55: MOD-LBS | B55: Load Balancing incl. 3 Connections | C55: $1,880.00 | D55: $1,692.00 | E55: One Time Fee
A56: MOD-LBC | B56: Load Balancing additional Connection | C56: $2,150.00 | D56: $1,935.00 | E56: One Time Fee
A57: MOD-ADR | B57: Automatic Document Recognition | C57: $720.00 | D57: $648.00 | E57: One Time Fee
A58: MOD-RGR | B58: MS Word Report Generator module | C58: $575.00 | D58: $518.00 | E58: One Time Fee
A59: MOD-PAS | B59: PDF Advanced Signing | C59: $2,000.00 | D59: $1,800.00 | E59: One Time Fee
A60: MOD-WEB | B60: WEB Capture module | C60: $720.00 | D60: $648.00 | E60: One Time Fee
A61: MOD-MIC | B61: MICR Module | C61: $720.00 | D61: $648.00 | E61: One Time Fee
A62: MOD-HL7 | B62: HL7 Module | C62: $1,450.00 | D62: $1,305.00 | E62: One Time Fee
A63: AI-SF-1K | B63: Smart Forms incl. ICR - (1,000 images) | C63: $55.00 | D63: $50.00 | E63: One Time Fee
A64: AI-SF-20K | B64: Smart Forms incl. ICR - (20,000 images) | C64: $770.00 | D64: $693.00 | E64: One Time Fee
A65: AI-SF-100K | B65: Smart Forms incl. ICR - (100,000 images) | C65: $3,295.00 | D65: $2,966.00 | E65: One Time Fee
A66: AI-SD-1K | B66: Smart Documents incl. Summary / Classification / Personal Information - (1,000 images) | C66: $30.00 | D66: $27.00 | E66: One Time Fee
A67: AI-SD-20K | B67: Smart Docuemnts incl. Summary / Classification / Personal Information - (20,000 images) | C67: $500.00 | D67: $450.00 | E67: One Time Fee
A68: AI-SD-100K | B68: Smart Documents incl. Summary / Classification / Personal Information - (100,000 images) | C68: $2,000.00 | D68: $1,800.00 | E68: One Time Fee
A69: AI-TR-1K | B69: Smart Translation - (1,000 images) | C69: $240.00 | D69: $216.00 | E69: One Time Fee
A70: AI-TR-20K | B70: Smart Translation - (20,000 images) | C70: $4,000.00 | D70: $3,600.00 | E70: One Time Fee
A71: AI-TR-100K | B71: Smart Translation - (100,000 images) | C71: $18,000.00 | D71: $16,200.00 | E71: One Time Fee
A73: CONNECTORS (1 YEAR M&S INCLUDED)
A74: Vendor Part # | B74: Description | C74: MSRP | D74: NASPO Price | E74: Type
A75: PACK-FIN | B75: Enterprise Financial Systems connectors, incl. 1 yr m&s | C75: $1,200.00 | D75: =ROUND(C75*(1-0.1),0) -> $1,080.00 | E75: One Time Fee
A76: PACK-LEG | B76: Enterprise Legal Systems connectors, incl. 1 yr m&s | C76: $1,200.00 | D76: =ROUND(C76*(1-0.1),0) -> $1,080.00 | E76: One Time Fee
A77: PACK-ECM | B77: Enterprise ECM/DMS Systems connectors, incl. 1 yr m&s | C77: $1,200.00 | D77: =ROUND(C77*(1-0.1),0) -> $1,080.00 | E77: One Time Fee
A78: PACK-CLO | B78: Enterprise Cloud Systems connectors, incl. 1 yr m&s | C78: $1,200.00 | D78: =ROUND(C78*(1-0.1),0) -> $1,080.00 | E78: One Time Fee
A79: PACK-EXC | B79: Enterprise Exclusive Systems connectors, incl. 1 yr m&s | C79: $1,800.00 | D79: =ROUND(C79*(1-0.1),0) -> $1,620.00 | E79: One Time Fee
A81: SCANSHARE SUBSCRIPTION
A82: Vendor Part # | B82: Description | C82: MSRP | D82: NASPO Price | E82: Type
A83: Scanshare Client Workflow (Price per Device)
A84: SS-SUB | B84: Scanshare Client Workflow Subscription for 1-24 client/pc licenses, per device, yearly | C84: $480.00 | D84: =ROUND(C84*(1-0.1),0) -> $432.00 | E84: Subscription
A85: SS-SUB-25 | B85: Scanshare Client Workflow Subscription for 25-99 client/pc licenses, per device, yearly | C85: $300.00 | D85: =ROUND(C85*(1-0.1),0) -> $270.00 | E85: Subscription
A86: SS-SUB-100 | B86: Scanshare Client Workflow Subscription for 100-399 client/pc licenses, per device, yearly | C86: $180.00 | D86: =ROUND(C86*(1-0.1),0) -> $162.00 | E86: Subscription
A87: SS-SUB-400 | B87: Scanshare Client Workflow Subscription for 400+ client/pc licenses, per device, yearly | C87: $144.00 | D87: =ROUND(C87*(1-0.1),0) -> $130.00 | E87: Subscription
A88: Scanshare User Access (Price per User)
A89: SS-USER | B89: Scanshare user access for Repository, Verification, WEB client, or Mobile client access 1-49, per user, yearly | C89: $48.00 | D89: =ROUND(C89*(1-0.1),1) -> $43.20 | E89: Subscription
A90: SS-USER-50 | B90: Scanshare user access for Repository, Verification, WEB client, or Mobile client access 50-249, per user, yearly | C90: $42.00 | D90: =ROUND(C90*(1-0.1),1) -> $37.80 | E90: Subscription
A91: SS-USER-250 | B91: Scanshare user access for Repository, Verification, WEB client, or Mobile client access 250-499, per user, yearly | C91: $36.00 | D91: =ROUND(C91*(1-0.1),1) -> $32.40 | E91: Subscription
A92: SS-USER-500 | B92: Scanshare user access for Repository, Verification, WEB client, or Mobile client access 500+, per user, yearly | C92: $30.00 | D92: =ROUND(C92*(1-0.1),1) -> $27.00 | E92: Subscription
A94: SCANSHARE CLOUD SUBSCRIPTION
A95: Vendor Part # | B95: Description | C95: MSRP | D95: NASPO Price | E95: Type
A96: Scanshare Cloud Subscription
A97: SS-SUBCLD-12K | B97: Scanshare Subscription - Hosted - (12,000 images), yearly | C97: $720.00 | D97: =ROUND(C97*(1-0.1),1) -> $648.00 | E97: Subscription
A98: SS-SUBCLD-24K | B98: Scanshare Subscription - Hosted - (24,000 images), yearly | C98: $1,220.00 | D98: $1,098.00 | E98: Subscription
A99: SS-SUBCLD-48K | B99: Scanshare Subscription - Hosted - (48,000 images), yearly | C99: $2,300.00 | D99: $2,070.00 | E99: Subscription
A100: SS-SUBCLD-96K | B100: Scanshare Subscription - Hosted - (96,000 images), yearly | C100: $4,320.00 | D100: $3,888.00 | E100: Subscription
A101: SS-SUBCLD-120K | B101: Scanshare Subscription - Hosted - (120,000 images), yearly | C101: $5,000.00 | D101: $4,500.00 | E101: Subscription
A102: SS-SUBCLD-240K | B102: Scanshare Subscription - Hosted - (240,000 images), yearly | C102: $9,360.00 | D102: $8,424.00 | E102: Subscription
A103: Scanshare One Time Addon Images
A104: SS-ADD-1K | B104: Scanshare one time addon images - Hosted - (1,000 images) | C104: $60.00 | D104: $54.00 | E104: One Time Fee
A105: SS-ADD-5K | B105: Scanshare one time addon images - Hosted - (5,000 images) | C105: $240.00 | D105: $216.00 | E105: One Time Fee
A106: Scanshare Reconnection Fee
A107: SUB-CLD-REC | B107: Reconnection fee Scanshare Subscription - Hosted, one time | C107: $200.00 | D107: $180.00 | E107: One Time Fee
A109: ADDITIONAL LICENSING - AI PAGES
A110: Vendor Part # | B110: Description | C110: MSRP | D110: NASPO Price | E110: Type
A111: AI-SF-1K | B111: Smart Forms incl. ICR - (1,000 images) | C111: $55.00 | D111: $49.50 | E111: One Time Fee
A112: AI-SF-20K | B112: Smart Forms incl. ICR - (20,000 images) | C112: $770.00 | D112: $693.00 | E112: One Time Fee
A113: AI-SF-100K | B113: Smart Forms incl. ICR - (100,000 images) | C113: $3,295.00 | D113: $2,965.50 | E113: One Time Fee
A114: AI-SD-1K | B114: Smart Documents incl. Summary / Classification / Personal Information - (1,000 images) | C114: $30.00 | D114: =ROUND(C114*(1-0.1),1) -> $27.00 | E114: One Time Fee
A115: AI-SD-20K | B115: Smart Documents incl. Summary / Classification / Personal Information - (20,000 images) | C115: $500.00 | D115: $450.00 | E115: One Time Fee
A116: AI-SD-100K | B116: Smart Documents incl. Summary / Classification / Personal Information - (100,000 images) | C116: $2,000.00 | D116: $1,800.00 | E116: One Time Fee
A117: AI-TR-1K | B117: Smart Translation - (1,000 images) | C117: $240.00 | D117: $216.00 | E117: One Time Fee
A118: AI-TR-20K | B118: Smart Translation - (20,000 images) | C118: $4,000.00 | D118: $3,600.00 | E118: One Time Fee
A119: AI-TR-100K | B119: Smart Translation - (100,000 images) | C119: $18,000.00 | D119: $16,200.00 | E119: One Time Fee
A121: PROFESSIONAL SERVICES
A122: Vendor Part # | B122: Description | C122: MSRP | D122: NASPO Price | E122: Type
A123: SS-AMSPlus-1 | B123: Scanshare Annual Maintenance and Support, 1 year | C123: $0.20 | D123: =ROUND(C123*(1-0.05),2) -> $0.19 | E123: One Time Fee
A124: SS-AMSPlus-2 | B124: Scanshare Annual Maintenance and Support, 2 years | C124: $0.40 | D124: =ROUND(C124*(1-0.05),2) -> $0.38 | E124: One Time Fee
A125: SS-AMSPlus-3 | B125: Scanshare Annual Maintenance and Support, 3 years | C125: $0.45 | D125: =ROUND(C125*(1-0.05),2) -> $0.43 | E125: One Time Fee
A126: SS-AMSPlus-4 | B126: Scanshare Annual Maintenance and Support, 4 years | C126: $0.60 | D126: =ROUND(C126*(1-0.05),2) -> $0.57 | E126: One Time Fee
A127: SS-AMSPlus-5 | B127: Scanshare Annual Maintenance and Support, 5 years | C127: $0.75 | D127: =ROUND(C127*(1-0.05),2) -> $0.71 | E127: One Time Fee
A128: SS-RmtServer | B128: Scanshare remote server configuration and training | C128: $595.00 | D128: =ROUND(C128*(1-0.1),0) -> $536.00 | E128: One Time Fee
A129: SS-Manual-WF | B129: Scanshare manual classification workflow, no data extraction, per workflow | C129: $290.00 | D129: $261.00 | E129: One Time Fee
A130: SS-Static-WF | B130: Scanshare static document workflow includes basic data extraction, up to 5 fields per document, per workflow | C130: $480.00 | D130: $432.00 | E130: One Time Fee
A131: SS-ACDI-PS | B131: ACDI Remote Professional Services for Scanshare (hourly) | C131: $200.00 | D131: $180.00 | E131: One Time Fee
A132: SS-RmtServer-Mig | B132: Scanshare remote server migration | C132: $525.00 | D132: $473.00 | E132: One Time Fee
A133: SS-RmtClient | B133: Scanshare client set up 1-24, per device | C133: $40.00 | D133: $36.00 | E133: One Time Fee
A134: SS-RmtClient-25 | B134: Scanshare client set up 25-99, per device | C134: $34.00 | D134: $31.00 | E134: One Time Fee
A135: SS-RmtClient-100 | B135: Scanshare client set up 100-399, per device | C135: $30.00 | D135: $27.00 | E135: One Time Fee
A136: SS-RmtClient-400 | B136: Scanshare client set up 400+, per device | C136: $24.00 | D136: $22.00 | E136: One Time Fee

Sheet Intuitive _PC
A1: Return To Table of Contents
A2: Intuitive
A4: Intuitive is an advanced dashboard and analytics tool that transforms print data into interactive, easy-to-understand visual reports. Powered by Intuitive Business Intelligence and offered through ACDI, it helps organizations monitor usage, track costs, and uncover opportunities to reduce waste and improve sustainability.
A7: INTUITIVE FOR PAPERCUT MF (12 MONTH MINIMUM, 5 DEVICE MINIMUM)
A8: Vendor Part # | B8: Description | C8: MSRP | D8: NASPO Price | E8: Type
A9: Intuitive for PaperCut MF 5-9 Devices (Price Per Device)
A10: INTPCMF09U-1Y | B10: Intuitive for Papercut MF 5-9 devices, per device, yearly | C10: $42.00 | D10: =ROUND(C10*(1-0.1),0) -> $38.00 | E10: Subscription
A11: INTPCMF09U-1M | B11: Intuitive for Papercut MF 5-9 devices, per device, monthly | C11: =C10/12 -> $3.50 | D11: =ROUND(C11*(1-0.1),0) -> $3.00 | E11: Subscription
A12: Intuitive for PaperCut MF 10-49 Devices (Price Per Device)
A13: INTPCMF49U-1Y | B13: Intuitive for Papercut MF 10-49 devices, per device, yearly | C13: $40.00 | D13: =ROUND(C13*(1-0.1),0) -> $36.00 | E13: Subscription
A14: INTPCMF49U-1M | B14: Intuitive for Papercut MF 10-49 devices, per device, monthly | C14: =C13/12 -> $3.33 | D14: $3.00 | E14: Subscription
A15: Intuitive for PaperCut MF 50-99 Devices (Price Per Device)
A16: INTPCMF99U-1Y | B16: Intuitive for Papercut MF 50-99 devices, per device, yearly | C16: $38.40 | D16: $35.00 | E16: Subscription
A17: INTPCMF99U-1M | B17: Intuitive for Papercut MF 50-99 devices, per device, monthly | C17: =C16/12 -> $3.20 | D17: $3.00 | E17: Subscription
A18: Intuitive for PaperCut MF 100-499 Devices (Price Per Device)
A19: INTPCMF499U-1Y | B19: Intuitive for Papercut MF 100-499 devices, per device, yearly | C19: $32.00 | D19: $29.00 | E19: Subscription
A20: INTPCMF499U-1M | B20: Intuitive for Papercut MF 100-499 devices, per device, monthly | C20: =C19/12 -> $2.67 | D20: =ROUND(C20*(1-0.05),1) -> $2.50 | E20: Subscription
A21: Intuitive for PaperCut MF 500+ Devices (Price Per Device)
A22: INTPCMF500U-1Y | B22: Intuitive for Papercut MF 500+ devices, per device, yearly | C22: $26.50 | D22: $24.00 | E22: Subscription
A23: INTPCMF500U-1M | B23: Intuitive for Papercut MF 500+ devices, per device, monthly | C23: =C22/12 -> $2.21 | D23: =ROUND(C23*(1-0.05),1) -> $2.10 | E23: Subscription
A25: INTUITIVE FOR PAPERCUT HIVE -12 MONTH MINIMUM, 5 DEVICE MINIMUM (includes 25 viewers and PC Hive API Connection)
A26: Vendor Part # | B26: Description | C26: MSRP Retail | D26: NASPO Price | E26: Type
A27: Intuitive for PaperCut Hive 5-9 Devices (Price Per Device)
A28: INTPCHV09U-1Y | B28: Intuitive for Papercut Hive* 5-9 devices, per device, yearly | C28: $66.00 | D28: $59.00 | E28: Subscription
A29: INTPCHV09U-1M | B29: Intuitive for Papercut Hive* 5-9 devices, per device, monthly | C29: =C28/12 -> $5.50 | D29: $5.00 | E29: Subscription
A30: Intuitive for PaperCut Hive 10-49 Devices (Price Per Device)
A31: INTPCHV49U-1Y | B31: Intuitive for Papercut Hive* 10-49 devices, per device, yearly | C31: $50.00 | D31: $45.00 | E31: Subscription
A32: INTPCHV49U-1M | B32: Intuitive for Papercut Hive* 10-49 devices, per device, monthly | C32: =C31/12 -> $4.17 | D32: $4.00 | E32: Subscription
A33: Intuitive for PaperCut Hive 50-99 Devices (Price Per Device)
A34: INTPCHV99U-1Y | B34: Intuitive for Papercut Hive* 50-99 devices, per device, yearly | C34: $38.40 | D34: $35.00 | E34: Subscription
A35: INTPCHV99U-1M | B35: Intuitive for Papercut Hive* 50-99 devices, per device, monthly | C35: =C34/12 -> $3.20 | D35: $3.00 | E35: Subscription
A36: Intuitive for PaperCut Hive 100-499 Devices (Price Per Device)
A37: INTPCHV499U-1Y | B37: Intuitive for Papercut Hive* 100-499 devices, per device, yearly | C37: $32.00 | D37: $29.00 | E37: Subscription
A38: INTPCHV499U-1M | B38: Intuitive for Papercut Hive* 100-499 devices, per device, monthly | C38: =C37/12 -> $2.67 | D38: =ROUND(C38*(1-0.05),1) -> $2.50 | E38: Subscription
A39: Intuitive for PaperCut Hive 500+ Devices (Price Per Device)
A40: INTPCHV500U-1Y | B40: Intuitive for Papercut Hive* 500+ devices, per device, yearly | C40: $26.50 | D40: $24.00 | E40: Subscription
A41: INTPCHV500U-1M | B41: Intuitive for Papercut Hive* 500+ devices, per device, monthly | C41: =C40/12 -> $2.21 | D41: =ROUND(C41*(1-0.05),1) -> $2.10 | E41: Subscription
A42: *The standard version of Intuitive for PaperCut Hive includes all dashboards being issued according to a standard design and cannot be modified either by the customer/partner or by Intuitive. Intuitive will create and issue Licenses using a secure password management platform, and all user management is performed by Intuitive.
A45: INTUITIVE FOR DOCUWARE -12 MONTH MINIMUM, (includes 2 Administrators and Docuware API Connection)
A47: Vendor Part # | B47: Description | C47: MSRP Retail | D47: NASPO Price | E47: Type
A48: Intuitive for Docuware Cloud 4 (4 named viewers)
A49: INTDW4U-1Y | B49: Intuitive for Docuware Cloud 4, per year (4 named viewers) | C49: $2,895.00 | D49: $2,606.00 | E49: Subscription
A50: INTDW4U-1M | B50: Intuitive for Docuware Cloud 4, per month | C50: =C49/12 -> $241.25 | D50: $217.00 | E50: Subscription
A51: Intuitive for Docuware Cloud 15 (15 named viewers + 1 add. admin)
A52: INTDW15U-1Y | B52: Intuitive for Docuware Cloud 15, per year (15 named viewers + 1 additional admin) | C52: $4,985.00 | D52: $4,487.00 | E52: Subscription
A53: INTDW15U-1M | B53: Intuitive for Docuware Cloud 15, per month | C53: =C52/12 -> $415.42 | D53: $374.00 | E53: Subscription
A54: Intuitive for Docuware Cloud 40 (40 named viewers + 1 add. admin)
A55: INTDW40U-1Y | B55: Intuitive for Docuware Cloud 40, per year (40 named viewers + 2 additional admin) | C55: $7,230.00 | D55: $6,507.00 | E55: Subscription
A56: INTDW40U-1M | B56: Intuitive for Docuware Cloud 40, per month | C56: =C55/12 -> $602.50 | D56: $542.00 | E56: Subscription
A57: Intuitive for Docuware Cloud 100 (100 named viewers + 1 add. admin)
A58: INTDW100U-1Y | B58: Intuitive for Docuware Cloud 100, per year (100 named viewers + 3 additional admin) | C58: $10,765.00 | D58: $9,689.00 | E58: Subscription
A59: INTDW100U-1M | B59: Intuitive for Docuware Cloud 100, per month | C59: =C58/12 -> $897.08 | D59: $807.00 | E59: Subscription
A60: Intuitive Licenses do not need to match Docuware Licenses
A63: INTUITIVE FOR SAFEQ -12 MONTH MINIMUM, 5 DEVICE MINIMUM (includes 25 viewers and SafeQ Database Connection)
A65: Vendor Part # | B65: Description | C65: MSRP Retail | D65: NASPO Price | E65: Type
A66: Intuitive for SafeQ 5-9 Devices (Price Per Device)
A67: INTSQ09U-1Y | B67: Intuitive for SafeQ 5-9 devices, per device, yearly | C67: $42.00 | D67: $38.00 | E67: Subscription
A68: INTSQ09U-1M | B68: Intuitive for SafeQ 5-9 devices, per device, monthly | C68: =C67/12 -> $3.50 | D68: =ROUND(C68*(1-0.1),0) -> $3.00 | E68: Subscription
A69: Intuitive for SafeQ 10-49 Devices (Price Per Device)
A70: INTSQ49U-1Y | B70: Intuitive for SafeQ 10-49 devices, per device, yearly | C70: $40.00 | D70: $36.00 | E70: Subscription
A71: INTSQ49U-1M | B71: Intuitive for SafeQ 10-49 devices, per device, monthly | C71: =C70/12 -> $3.33 | D71: $3.00 | E71: Subscription
A72: Intuitive for SafeQ 50-99 Devices (Price Per Device)
A73: INTSQ99U-1Y | B73: Intuitive for SafeQ 50-99 devices, per device, yearly | C73: $38.40 | D73: $35.00 | E73: Subscription
A74: INTSQ99U-1M | B74: Intuitive for SafeQ 50-99 devices, per device, monthly | C74: =C73/12 -> $3.20 | D74: $3.00 | E74: Subscription
A75: Intuitive for SafeQ 100-499 Devices (Price Per Device)
A76: INTSQ499U-1Y | B76: Intuitive for SafeQ 100-499 devices, per device, yearly | C76: $32.00 | D76: $29.00 | E76: Subscription
A77: INTSQ499U-1M | B77: Intuitive for SafeQ 100-499 devices, per device, monthly | C77: =C76/12 -> $2.67 | D77: =ROUND(C77*(1-0.05),1) -> $2.50 | E77: Subscription
A78: Intuitive for SafeQ 500+ Devices (Price Per Device)
A79: INTSQ500U-1Y | B79: Intuitive for SafeQ* 500+ devices, per device, yearly | C79: $26.50 | D79: $24.00 | E79: Subscription
A80: INTSQ500U-1M | B80: Intuitive for SafeQ* 500+ devices, per device, monthly | C80: =C79/12 -> $2.21 | D80: =ROUND(C80*(1-0.05),1) -> $2.10 | E80: Subscription
A82: INTUITIVE FOR SAFEQ CLOUD -12 MONTH MINIMUM, 5 DEVICE MINIMUM (includes 25 viewers and SafeQ API Connection)
A84: Vendor Part # | B84: Description | C84: MSRP Retail | D84: NASPO Price | E84: Type
A85: Intuitive for SafeQ 5-9 Devices (Price Per Device)
A86: INTSQCL09U-1Y | B86: Intuitive for SafeQ* Cloud 5-9 devices, per device, yearly | C86: $66.00 | D86: =ROUND(C86*(1-0.1),0) -> $59.00 | E86: Subscription
A87: INTSQCL09U-1M | B87: Intuitive for SafeQ* Cloud 5-9 devices, per device, monthly | C87: =C86/12 -> $5.50 | D87: $5.00 | E87: Subscription
A88: Intuitive for SafeQ 10-49 Devices (Price Per Device)
A89: INTSQCL49U-1Y | B89: Intuitive for SafeQ* Cloud 10-49 devices, per device, yearly | C89: $50.00 | D89: $45.00 | E89: Subscription
A90: INTSQCL49U-1M | B90: Intuitive for SafeQ* Cloud 10-49 devices, per device, monthly | C90: =C89/12 -> $4.17 | D90: $4.00 | E90: Subscription
A91: Intuitive for SafeQ 50-99 Devices (Price Per Device)
A92: INTSQCL99U-1Y | B92: Intuitive for SafeQ* Cloud 50-99 devices, per device, yearly | C92: $38.40 | D92: $35.00 | E92: Subscription
A93: INTSQCL99U-1M | B93: Intuitive for SafeQ* Cloud 50-99 devices, per device, monthly | C93: =C92/12 -> $3.20 | D93: $3.00 | E93: Subscription
A94: Intuitive for SafeQ 100-499 Devices (Price Per Device)
A95: INTSQCL499U-1Y | B95: Intuitive for SafeQ* Cloud 100-499 devices, per device, yearly | C95: $32.00 | D95: $29.00 | E95: Subscription
A96: INTSQCL499U-1M | B96: Intuitive for SafeQ* Cloud 100-499 devices, per device, monthly | C96: =C95/12 -> $2.67 | D96: =ROUND(C96*(1-0.05),1) -> $2.50 | E96: Subscription
A97: Intuitive for SafeQ 500+ Devices (Price Per Device)
A98: INTSQCL500U-1Y | B98: Intuitive for SafeQ* Cloud 500+ devices, per device, yearly | C98: $26.50 | D98: $24.00 | E98: Subscription
A99: INTSQCL500U-1M | B99: Intuitive for SafeQ* Cloud 500+ devices, per device, monthly | C99: =C98/12 -> $2.21 | D99: =ROUND(C99*(1-0.05),1) -> $2.10 | E99: Subscription
A100: Intuitive for SafeQ Cloud Enterprise
A101: INTHOSTU - 1Y | B101: Intuitive for SafeQ Cloud Enterprise** (upgrade), yearly | C101: $2,650.00 | D101: =ROUND(C101*(1-0.1),0) -> $2,385.00 | E101: Subscription
A102: INTHOSTU - 1M | B102: Intuitive for SafeQ Cloud Enterprise** (upgrade), monthly | C102: $220.85 | D102: $199.00 | E102: Subscription
A103: *The standard version of Intuitive for SafeQ Cloud includes all dashboards being issued according to a standard design and cannot be modified either by the customer/partner or by Intuitive. Intuitive will create and issue licenses using a secure password management platform, and all user management is performed by Intuitive.
A105: **Intuitive for SafeQ Cloud Enterprise is an upgrade to an enhanced hosting environment which allows customers or partners to retain administration rights including adding/removing users and administration of the system, utilize third party authentication, add customer specific branding, and configure their own unique dashboards. Customer success support includes initial onboarding session to train users on navigating and maximizing the value of the print management dashboards, and an annual consultative review of data.
A108: INTUITIVE FOR PARAGON -12 MONTH MINIMUM, 5 DEVICE MINIMUM (includes 25 viewers and Paragon Database Connection)
A110: Vendor Part # | B110: Description | C110: MSRP Retail | D110: NASPO Price | E110: Type
A111: Intuitive for Paragon 5-9 Devices (Price Per Device)
A112: INTPG09U-1Y | B112: Intuitive for Paragon 5-9 devices, per device, yearly | C112: $42.00 | D112: =ROUND(C112*(1-0.1),0) -> $38.00 | E112: Subscription
A113: INTPG09U-1M | B113: Intuitive for Paragon 5-9 devices, per device, monthly | C113: $3.50 | D113: =ROUND(C113*(1-0.1),0) -> $3.00 | E113: Subscription
A114: Intuitive for Paragon 10-49 Devices (Price Per Device)
A115: INTPG49U-1Y | B115: Intuitive for Paragon 10-49 devices, per device, yearly | C115: $40.00 | D115: $36.00 | E115: Subscription
A116: INTPG49U-1M | B116: Intuitive for Paragon 10-49 devices, per device, monthly | C116: $3.33 | D116: $3.00 | E116: Subscription
A117: Intuitive for Paragon 50-99 Devices (Price Per Device)
A118: INTPG99U-1Y | B118: Intuitive for Paragon 50-99 devices, per device, yearly | C118: $38.40 | D118: $35.00 | E118: Subscription
A119: INTPG99U-1M | B119: Intuitive for Paragon 50-99 devices, per device, monthly | C119: $3.20 | D119: $3.00 | E119: Subscription
A120: Intuitive for Paragon 100-499 Devices (Price Per Device)
A121: INTPG499U-1Y | B121: Intuitive for Paragon 100-499 devices, per device, yearly | C121: $32.00 | D121: $29.00 | E121: Subscription
A122: INTPG499U-1M | B122: Intuitive for Paragon 100-499 devices, per device, monthly | C122: $2.67 | D122: $2.00 | E122: Subscription
A123: Intuitive for Paragon 500+ Devices (Price Per Device)
A124: INTPG500U-1Y | B124: Intuitive for Paragon 500+ devices, per device, yearly | C124: $26.50 | D124: $24.00 | E124: Subscription
A125: INTPG500U-1M | B125: Intuitive for Paragon 500+ devices, per device, monthly | C125: $2.21 | D125: =ROUND(C125*(1-0.05),1) -> $2.10 | E125: Subscription
A127: INTUITIVE FOR PARAGON CLOUD -12 MONTH MINIMUM, 5 DEVICE MINIMUM (includes 25 viewers and Paragon Cloud Connection)
A129: Vendor Part # | B129: Description | C129: MSRP Retail | D129: NASPO Price | E129: Type
A130: Intuitive for Paragon 5-9 Devices (Price Per Device)
A131: INTPG09U-1Y | B131: Intuitive for Paragon Cloud* 5-9 devices, per device, yearly | C131: $66.00 | D131: =ROUND(C131*(1-0.1),0) -> $59.00 | E131: Subscription
A132: INTPG09U-1M | B132: Intuitive for Paragon Cloud* 5-9 devices, per device, monthly | C132: $5.50 | D132: =ROUND(C132*(1-0.1),0) -> $5.00 | E132: Subscription
A133: Intuitive for Paragon 10-49 Devices (Price Per Device)
A134: INTPG49U-1Y | B134: Intuitive for Paragon Cloud* 10-49 devices, per device, yearly | C134: $50.00 | D134: $45.00 | E134: Subscription
A135: INTPG49U-1M | B135: Intuitive for Paragon Cloud* 10-49 devices, per device, monthly | C135: $4.17 | D135: $4.00 | E135: Subscription
A136: Intuitive for Paragon 50-99 Devices (Price Per Device)
A137: INTPG99U-1Y | B137: Intuitive for Paragon Cloud* 50-99 devices, per device, yearly | C137: $23.04 | D137: $21.00 | E137: Subscription
A138: INTPG99U-1M | B138: Intuitive for Paragon Cloud* 50-99 devices, per device, monthly | C138: $1.92 | D138: $2.00 | E138: Subscription
A139: Intuitive for Paragon 100-499 Devices (Price Per Device)
A140: INTPG499U-1Y | B140: Intuitive for Paragon Cloud*100-499 devices, per device, yearly | C140: $19.20 | D140: $17.00 | E140: Subscription
A141: INTPG499U-1M | B141: Intuitive for Paragon Cloud* 100-499 devices, per device, monthly | C141: $1.60 | D141: $1.00 | E141: Subscription
A142: Intuitive for Paragon 500+ Devices (Price Per Device)
A143: INTPG500U-1Y | B143: Intuitive for Paragon Cloud* 500+ devices, per device, yearly | C143: $26.50 | D143: $24.00 | E143: Subscription
A144: INTPG500U-1M | B144: Intuitive for Paragon Cloud* 500+ devices, per device, monthly | C144: $2.21 | D144: =ROUND(C144*(1-0.05),1) -> $2.10 | E144: Subscription
A145: Intuitive for Paragon Enterprise (upgrade)
A146: INTPGCLHOSTU-1Y | B146: Intuitive for Paragon Cloud Enterprise** (upgrade), yearly | C146: $2,650.00 | D146: =ROUND(C146*(1-0.1),0) -> $2,385.00 | E146: Subscription
A147: INTPGCLHOSTU-1M | B147: Intuitive for Paragon Cloud Enterprise** (upgrade), monthly | C147: $220.85 | D147: =ROUND(C147*(1-0.05),1) -> $209.80 | E147: Subscription
A148: *The standard version of Intuitive for Dispatcher Paragon Cloud includes all dashboards being issued according to a standard design and cannot be modified either by the customer/partner or by Intuitive. Intuitive will create and issue Licenses using a secure password management platform, and all user management is performed by Intuitive.
A149: **Intuitive for Dispatched Paragon Cloud Enterprise is an upgrade to an enhanced hosting environment which allows customers or partners to retain administration rights including adding/removing users and administration of the system, utilise third party authentication, add customer specific branding, and configure their own unique dashboards. Customer success support includes initial onboarding session to train users on navigating and maximizing the value of the print management dashboards, and an annual consultative review of data.
A150: **Intuitive for Dispatched Paragon Cloud Enterprise is an upgrade to an enhanced hosting environment which allows customers or partners to retain administration rights including adding/removing users and administration of the system, utilise third party authentication, add customer specific branding, and configure their own unique dashboards. Customer success support includes initial onboarding session to train users on navigating and maximizing the value of the print management dashboards, and an annual consultative review of data.
A152: INTUITIVE - Additional Users
A153: Vendor Part # | B153: Description | C153: MSRP Retail | D153: NASPO Price | E153: Type
A154: INTVWRU-1Y | B154: Intuitive Viewer License, 1 additional viewer user, per year | C154: $100.00 | D154: =ROUND(C154*(1-0.1),0) -> $90.00 | E154: Subscription
A155: INTVWRU25-1Y | B155: Intuitive Viewer License, 25 additional viewer users, per year | C155: $2,210.00 | D155: $1,989.00 | E155: Subscription
A156: INTVWRU50-1Y | B156: Intuitive Viewer License, 50 additional viewer users, per year | C156: $4,415.00 | D156: $3,974.00 | E156: Subscription
A157: INTVWRU100-1Y | B157: Intuitive Viewer License, 100 additional viewer users, per year | C157: $7,230.00 | D157: $6,507.00 | E157: Subscription
A158: INTVWRU-1M | B158: Intuitive Viewer License, 1 additional viewer user, per month | C158: $8.50 | D158: $8.00 | E158: Subscription
A159: INTDESU-1Y | B159: Intuitive Dashboard Designer User License, per year | C159: $1,240.00 | D159: $1,116.00 | E159: Subscription
A160: INTSYSU-1Y | B160: Intuitive System Designer User License, per year | C160: $1,240.00 | D160: $1,116.00 | E160: Subscription
A161: INTADMU-1Y | B161: Intuitive Administrator User License, per year | C161: $1,240.00 | D161: $1,116.00 | E161: Subscription
A162: INTUITIVE SETUP/CONFIGURATION
A163: Vendor Part # | B163: Description | C163: MSRP Retail | D163: NASPO Price | E163: Type
A164: INT-SETUP | B164: Intuitive for PaperCut Configuration/Training | C164: $350.00 | D164: =ROUND(C164*(1-0.1),0) -> $315.00 | E164: One Time Fee

Sheet FaxCore Cloud Faxing
A1: Return To Table of Contents
A3: FaxCore Price List
A5: etherFAX® offers a secure document delivery platform and suite of applications widely used across a broad range of industries to digitize workflows and optimize business processes. As a leading provider of hybrid-cloud fax solutions supporting healthcare enterprises, etherFAX securely transmits protected health information and high-resolution, color documents directly to applications and devices with end-to-end encryption and ultra-fast transmission speeds. Faxcore is an award-winning fax server solution that integrates MFPs and PCs into a cloud based fax solution. FaxCore also integrates with Microsoft® applications and Office 365. FaxCore is also a strategic partner of etherFAX, the fax board in the cloud. FaxCore offers partly-cloudy and fully hosted fax options.
A12: Product Code | B12: Description | C12: MSRP | D12: NASPO PRICE | E12: Type
A13: EtherFax
A14: EF-1000 | B14: 1,000 pages/month | C14: $100.00 | D14: =ROUND(C14*(1-0.1),0) -> $90.00 | E14: Monthly Subscription
A15: EF-10000 | B15: 10,000 pages/month | C15: $880.00 | D15: =ROUND(C15*(1-0.1),0) -> $792.00 | E15: Monthly Subscription
A16: EF-13000 | B16: 13,000 pages/month | C16: $1,000.00 | D16: $900.00 | E16: Monthly Subscription
A17: EF-1500 | B17: 1500 Pages/Month | C17: $143.00 | D17: $129.00 | E17: Monthly Subscription
A18: EF-16000 | B18: 16,000 pages/month | C18: $1,144.00 | D18: $1,030.00 | E18: Monthly Subscription
A19: EF-2000 | B19: 2,000 pages/month | C19: $176.00 | D19: $158.00 | E19: Monthly Subscription
A20: EF-20000 | B20: 20,000 pages/month | C20: $1,320.00 | D20: $1,188.00 | E20: Monthly Subscription
A21: EF-3000 | B21: 3,000 pages/month | C21: $264.00 | D21: $238.00 | E21: Monthly Subscription
A22: EF-4000 | B22: 4,000 pages/month | C22: $352.00 | D22: $317.00 | E22: Monthly Subscription
A23: EF-500 | B23: 500 pages/month | C23: $60.00 | D23: $54.00 | E23: Monthly Subscription
A24: EF-5000 | B24: 5,000 pages/month | C24: $440.00 | D24: $396.00 | E24: Monthly Subscription
A25: EF-6000 | B25: 6,000 pages/month | C25: $528.00 | D25: $475.00 | E25: Monthly Subscription
A26: EF-7000 | B26: 7,000 pages/month | C26: $616.00 | D26: $554.00 | E26: Monthly Subscription
A27: EF-750 | B27: 750 pages/month | C27: $77.00 | D27: $69.00 | E27: Monthly Subscription
A28: EF-8000 | B28: 8,000 pages/month | C28: $704.00 | D28: $634.00 | E28: Monthly Subscription
A29: EF-9000 | B29: 9,000 pages/month | C29: $792.00 | D29: $713.00 | E29: Monthly Subscription
A30: EF-DID-Toll | B30: Toll DID's (Direct in Dial Phone Number) | C30: $2.00 | D30: =ROUND(C30*(1-0.5),0) -> $1.00 | E30: Monthly Subscription
A31: EF-DID-TollFree | B31: Toll Free DID's (Direct in Dial Phone Number) | C31: $3.00 | D31: =ROUND(C31*(1-0.5),0) -> $2.00 | E31: Monthly Subscription
A32: EF-PF | B32: EtherFax One-time Porting Fee for existing fax numbers | C32: $20.00 | D32: $18.00 | E32: One time fee
A33: EF-Port-Change | B33: EtherFax FOC Cancellation Fee | C33: $30.00 | D33: $27.00 | E33: One time fee
A34: Fax2u.net
A35: Fax2u-1000 | B35: 1,000 pages/month | C35: $100.00 | D35: $90.00 | E35: Monthly Subscription
A36: Fax2u-10000 | B36: 10,000 pages/month | C36: $880.00 | D36: $792.00 | E36: Monthly Subscription
A37: Fax2u-13000 | B37: 13,000 pages/month | C37: $1,000.00 | D37: $900.00 | E37: Monthly Subscription
A38: Fax2u-1500 | B38: 1,500 Pages/Month | C38: $143.00 | D38: $129.00 | E38: Monthly Subscription
A39: Fax2u-16000 | B39: 16,000 pages/month | C39: $1,144.00 | D39: $1,030.00 | E39: Monthly Subscription
A40: Fax2u-2000 | B40: 2,000 pages/month | C40: $176.00 | D40: $158.00 | E40: Monthly Subscription
A41: Fax2u-20000 | B41: 20,000 pages/month | C41: $1,320.00 | D41: $1,188.00 | E41: Monthly Subscription
A42: Fax2u-3000 | B42: 3,000 pages/month | C42: $264.00 | D42: $238.00 | E42: Monthly Subscription
A43: Fax2u-4000 | B43: 4,000 pages/month | C43: $352.00 | D43: $317.00 | E43: Monthly Subscription
A44: Fax2u-500 | B44: 500 pages/month | C44: $60.00 | D44: $54.00 | E44: Monthly Subscription
A45: Fax2u-5000 | B45: 5,000 pages/month | C45: $440.00 | D45: $396.00 | E45: Monthly Subscription
A46: Fax2u-6000 | B46: 6,000 pages/month | C46: $528.00 | D46: $475.00 | E46: Monthly Subscription
A47: Fax2u-7000 | B47: 7,000 pages/month | C47: $616.00 | D47: $554.00 | E47: Monthly Subscription
A48: Fax2u-750 | B48: 750 pages/month | C48: $77.00 | D48: $69.00 | E48: Monthly Subscription
A49: Fax2u-8000 | B49: 8,000 pages/month | C49: $704.00 | D49: $634.00 | E49: Monthly Subscription
A50: Fax2u-9000 | B50: 9,000 pages/month | C50: $792.00 | D50: $713.00 | E50: Monthly Subscription
A51: Fax2u-DID-Toll | B51: Toll DID's (Direct in Dial Phone Number) | C51: $2.00 | D51: =ROUND(C51*(1-0.5),0) -> $1.00 | E51: Monthly Subscription
A52: Fax2u-DID-TollFree | B52: Toll Free DID's (Direct in Dial Phone Number) | C52: $3.00 | D52: =ROUND(C52*(1-0.5),0) -> $2.00 | E52: Monthly Subscription
A53: Fax2u-PF | B53: Fax2u.net One-time Porting Fee for existing fax numbers | C53: $20.00 | D53: $18.00 | E53: One time fee
A54: Fax2u-Port-Change | B54: Fax2u.net FOC Cancellation Fee | C54: $30.00 | D54: $27.00 | E54: One time fee
A55: Faxme.cloud
A56: Faxme-1000 | B56: 1,000 pages per month | C56: $100.00 | D56: $90.00 | E56: Monthly Subscription
A57: Faxme-10000 | B57: 10,000 pages per month | C57: $880.00 | D57: $792.00 | E57: Monthly Subscription
A58: Faxme-13000 | B58: 13,000 pages per month | C58: $1,000.00 | D58: $900.00 | E58: Monthly Subscription
A59: Faxme-1500 | B59: 1,500 pages per month | C59: $143.00 | D59: $129.00 | E59: Monthly Subscription
A60: Faxme-16000 | B60: 16,000 pages per month | C60: $1,144.00 | D60: $1,030.00 | E60: Monthly Subscription
A61: Faxme-2000 | B61: 2,000 pages per month | C61: $176.00 | D61: $158.00 | E61: Monthly Subscription
A62: Faxme-20000 | B62: 20,000 pages per month | C62: $1,320.00 | D62: $1,188.00 | E62: Monthly Subscription
A63: Faxme-3000 | B63: 3,000 pages per month | C63: $264.00 | D63: $238.00 | E63: Monthly Subscription
A64: Faxme-4000 | B64: 4,000 pages per month | C64: $352.00 | D64: $317.00 | E64: Monthly Subscription
A65: Faxme-500 | B65: 500 pages per month | C65: $60.00 | D65: $54.00 | E65: Monthly Subscription
A66: Faxme-5000 | B66: 5,000 pages per month | C66: $440.00 | D66: $396.00 | E66: Monthly Subscription
A67: Faxme-6000 | B67: 6,000 pages per month | C67: $528.00 | D67: $475.00 | E67: Monthly Subscription
A68: Faxme-7000 | B68: 7,000 pages per month | C68: $616.00 | D68: $554.00 | E68: Monthly Subscription
A69: Faxme-750 | B69: 750 pages per month | C69: $77.00 | D69: $69.00 | E69: Monthly Subscription
A70: Faxme-8000 | B70: 8,000 pages per month | C70: $704.00 | D70: $634.00 | E70: Monthly Subscription
A71: Faxme-9000 | B71: 9,000 pages per month | C71: $792.00 | D71: $713.00 | E71: Monthly Subscription
A72: Faxme-DID-Toll | B72: Toll DID's (Direct in Dial Phone Number) | C72: $2.00 | D72: =ROUND(C72*(1-0.5),0) -> $1.00 | E72: Monthly Subscription
A73: Faxme-DID-TollFree | B73: Toll Free DID's (Direct in Dial Phone Number) | C73: $3.00 | D73: =ROUND(C73*(1-0.5),0) -> $2.00 | E73: Monthly Subscription
A74: Faxme-PF | B74: Faxme.cloud One-time Porting Fee for existing fax numbers | C74: $20.00 | D74: $18.00 | E74: One time fee
A75: Faxme-Port-Change | B75: Faxme.cloud FOC Cancellation Fee | C75: $30.00 | D75: $27.00 | E75: One time fee
A76: Faxit2me.com
A77: Faxit2me-1000 | B77: 1,000 pages/month | C77: $100.00 | D77: $90.00 | E77: Monthly Subscription
A78: Faxit2me-10000 | B78: 10,000 pages/month | C78: $880.00 | D78: $792.00 | E78: Monthly Subscription
A79: Faxit2me-13000 | B79: 13,000 pages/month | C79: $1,000.00 | D79: =ROUND(C79*(1-0.1),0) -> $900.00 | E79: Monthly Subscription
A80: Faxit2me-1500 | B80: 1,500 Pages/Month | C80: $143.00 | D80: $129.00 | E80: Monthly Subscription
A81: Faxit2me-16000 | B81: 16,000 pages/month | C81: $1,144.00 | D81: $1,030.00 | E81: Monthly Subscription
A82: Faxit2me-2000 | B82: 2,000 pages/month | C82: $176.00 | D82: $158.00 | E82: Monthly Subscription
A83: Faxit2me-20000 | B83: 20,000 pages/month | C83: $1,320.00 | D83: $1,188.00 | E83: Monthly Subscription
A84: Faxit2me-3000 | B84: 3,000 pages/month | C84: $264.00 | D84: $238.00 | E84: Monthly Subscription
A85: Faxit2me-4000 | B85: 4,000 pages/month | C85: $352.00 | D85: $317.00 | E85: Monthly Subscription
A86: Faxit2me-500 | B86: 500 pages/month | C86: $60.00 | D86: $54.00 | E86: Monthly Subscription
A87: Faxit2me-5000 | B87: 5,000 pages/month | C87: $440.00 | D87: $396.00 | E87: Monthly Subscription
A88: Faxit2me-6000 | B88: 6,000 pages/month | C88: $528.00 | D88: $475.00 | E88: Monthly Subscription
A89: Faxit2me-7000 | B89: 7,000 pages/month | C89: $616.00 | D89: $554.00 | E89: Monthly Subscription
A90: Faxit2me-750 | B90: 750 pages/month | C90: $77.00 | D90: $69.00 | E90: Monthly Subscription
A91: Faxit2me-8000 | B91: 8,000 pages/month | C91: $704.00 | D91: $634.00 | E91: Monthly Subscription
A92: Faxit2me-9000 | B92: 9,000 pages/month | C92: $792.00 | D92: $713.00 | E92: Monthly Subscription
A93: Faxit2me-DID-TF | B93: DID's Toll-Free (Direct in Dial Phone Number) | C93: $2.00 | D93: $2.00 | E93: Monthly Subscription
A94: Faxit2me-DID-Toll | B94: Toll DID's (Direct in Dial Phone Number) | C94: $3.00 | D94: =ROUND(C94*(1-0.5),0) -> $2.00 | E94: Monthly Subscription
A95: Faxit2me-PF | B95: Faxit2me.com One-time Porting Fee for existing fax numbers | C95: $20.00 | D95: $18.00 | E95: One time fee
A96: Faxit2me-Port-Change | B96: Faxit2me.com FOC Cancellation Fee | C96: $30.00 | D96: $27.00 | E96: One time fee

Sheet Square 9
A1: Return To Table of Contents
A3: Square 9 Price List
A6: Global Capture: Easily capture, classify and validate high volumes of documents including paper, PDF, and even email messages and their attachments. No matter how they enter your organization, capture automation transforms them into usable insights that drive improved decision making and business outcomes. Global Search: Delivering anywhere, anytime access to documents through the browser, GlobalSearch ECM software keeps processes consistent and your team productive, while offering the same power as the desktop client. Integrate GlobalSearch software with leading business applications including Quickbooks, Salesforce, Microsoft Dynamics and more. In addition, gain full document capture and retrieval support right from the control panel of your office Multifunctional device. Granular security provides user-based sign-in access, keeping databases, archives, documents and feature-level security enforced. The audit trail logs all document actions by date and user with convenient filtering and export options, to provide full visibility into business output. Global Forms: With its browser-based platform, GlobalForms offers robust styling options for easy form creation. Simply drag-and-drop form fields onto the designer to build a unique form. Build rules and logic into web forms that dynamically change the layout based on selections made, ensuring required data has been provided before web form submission Automatically route documents for approval, notifying users of required action. Or integrate web forms into capture workflows to create a single process for working with data! Leverage document capture automation to effortlessly collect data from all sources, creating a single process for working with information.
A15: GLOBALSEARCH CLOUD IIM
A16: Vendor Part # | B16: Description | C16: MSRP | D16: NASPO PRICE | E16: Category | F16: Type
A17: GlobalSearch Cloud - Process Automation Essentials (Per Month per named user- Basic Capture Only
A18: GSCLPAE-001 | B18: GlobalSearch Cloud -Process Automation Essentials - per month per named user 5-15 User Tier | C18: $50.00 | D18: =ROUND(C18*(1-0.1),0) -> $45.00 | E18: Cloud | F18: Monthly Subscription
A19: GSCLPAE-002 | B19: GlobalSearch Cloud - Process Automation Essentials- per month per named user 16-25 User Tier | C19: $45.00 | D19: =ROUND(C19*(1-0.1),0) -> $41.00 | E19: Cloud | F19: Monthly Subscription
A20: GlobalSearch Cloud - Digital Transformation Essentials (Inludes GlobalForms Design Studio with Five Forms and Unlimited Workflow)
A21: GSCLDTE-001 | B21: GlobalSearch Professional Edition PLUS, Includes a Single Workflow Per User (Minimum 3 Users) | C21: $68.00 | D21: $61.00 | E21: Cloud | F21: Monthly Subscription
A22: GSCLDTE-002 | B22: GlobalSearch Professional Edition PLUS Per User (Minimum 3 Users)- M&S (Per Month - 12 mos required) | C22: $55.00 | D22: $50.00 | E22: M&S | F22: Monthly Subscription
A23: GSCLDTE-003 | B23: Enterprise Content Management with Unlimited Workflows - 5-10 Concurrent User Price Tier | C23: $50.00 | D23: $45.00 | E23: Cloud | F23: Monthly Subscription
A24: GSCLDTE-004 | B24: GlobalSearch Corporate Per Concurrent User - 5-10 License Tier- M&S (Per Month) - M&S (Per Month - 12 mos required) | C24: $45.00 | D24: $41.00 | E24: M&S | F24: Monthly Subscription
A25: GSCLDTE-005 | B25: Enterprise Content Management with Unlimited Workflows - 11-25 Concurrent User Price Tier | C25: $40.00 | D25: $36.00 | E25: Cloud | F25: Monthly Subscription
A26: GlobalSearch Cloud - Enterprise Essentials (Includes Unltd GlobalAction Workflows and Unltd Forms)
A27: GSCLEEE-006 | B27: GlobalSearch Cloud Enterprise Essentials Edition - per month per named user for 5-9 named users | C27: $95.00 | D27: $86.00 | E27: Cloud | F27: Monthly Subscription
A28: GSCLEEE-001 | B28: GlobalSearch Cloud Enterprise Essentials Edition - per month per named user for 10-15 named users | C28: $75.00 | D28: $68.00 | E28: Cloud | F28: Monthly Subscription
A29: GSCLEEE-002 | B29: GlobalSearch Cloud Enterprise Essentials Edition - per month per named user for 16-25 named users | C29: $70.00 | D29: $63.00 | E29: Cloud | F29: Monthly Subscription
A30: GSCLEEE-003 | B30: GlobalSearch Cloud Enterprise Essentials Edition - per month per named user for 26-50 named users | C30: $60.00 | D30: $54.00 | E30: Cloud | F30: Monthly Subscription
A31: GSCLEEE-004 | B31: GlobalSearch Cloud Enterprise Essentials Edition - per month per named user for 51-100 named users | C31: $50.00 | D31: $45.00 | E31: Cloud | F31: Monthly Subscription
A32: GSCLEEE-005 | B32: GlobalSearch Cloud Enterprise Essentials Edition - per month per named user for 101-250 named users | C32: $45.00 | D32: $41.00 | E32: Cloud | F32: Monthly Subscription
A33: GCCLBOOST-001 | B33: Cloud Transformation Boost Option Per Month (per month - min 12 months) | C33: $200.00 | D33: $180.00 | E33: Cloud | F33: Monthly Subscription
A34: GlobalSearch Cloud IIM Add Ons - Integration
A35: GSCLIX-003 | B35: Image Xchange per named user (per month - min 12 months) | C35: $10.00 | D35: $9.00 | E35: Cloud | F35: Monthly Subscription
A36: GSCLIX-004 | B36: Image Xchange Enterprise - (per month - min 12 months) | C36: $100.00 | D36: $90.00 | E36: Cloud | F36: Monthly Subscription
A37: GCCLQBOL-001 | B37: QuickBooks Online iPaaS Connector - (per month - min 12 mos) | C37: $65.00 | D37: $59.00 | E37: Cloud | F37: Monthly Subscription
A38: GCCLCTSDYN-001 | B38: Dynamics 365 iPaaS Connector - (per month - min 12 mos) | C38: $65.00 | D38: $59.00 | E38: Cloud | F38: Monthly Subscription
A39: GSCLNSIPAAS-001 | B39: NetSuite iPaaS Connector - (per month - min 12 mos) | C39: $95.00 | D39: $86.00 | E39: Cloud | F39: Monthly Subscription
A40: GSCLIPAAS-001 | B40: Universal iPaaS Connector - (per month - min 12 mos) | C40: $95.00 | D40: $86.00 | E40: Cloud | F40: Monthly Subscription
A41: GSCLS9API-001 | B41: Additional Square 9 API Calls - 100,000 Additional API calls per month (per month - min 12 mos) | C41: $100.00 | D41: $90.00 | E41: Cloud | F41: Monthly Subscription
A42: GlobalSearch Cloud IIM Add Ons - AI Services
A43: GSCLTAIOCR-001 | B43: ArticulateML 1000 Pages Per Month (priced per month -12 months required) | C43: $225.00 | D43: $203.00 | E43: Cloud | F43: Monthly Subscription
A44: GCCLINQAI-001 | B44: InquireAI Header Data Extraction 5000 Pages Per Month (priced per month/per instance -12 months required) | C44: $250.00 | D44: $225.00 | E44: Cloud | F44: Monthly Subscription
A45: GCCLINQAI-002 | B45: InquireAI Header and Table Data Extraction 5000 Pages Per Month (priced per month/per instance -12 months required) | C45: $495.00 | D45: $446.00 | E45: Cloud | F45: Monthly Subscription
A46: GCCLINQAI-003 | B46: InquireAI Upgrade to Header and Table Data Extraction (priced per month/per instance -12 months required) | C46: $245.00 | D46: $221.00 | E46: Cloud | F46: Monthly Subscription
A47: GCCLINQAI-004 | B47: InquireAI One Time Use Header Data Extraction 2500 Pages | C47: $250.00 | D47: $225.00 | E47: Cloud | F47: One Time Fee
A48: GCCLINQAI-005 | B48: InquireAI One Time Use Header and Table Data Extraction 2500 Pages | C48: $375.00 | D48: $338.00 | E48: Cloud | F48: One Time Fee
A49: GlobalSearch Cloud IIM Add Ons - Capture Services
A50: GCCLBOOST-001 | B50: Cloud Transformation Boost Option Per Month (per month - min 12 months) | C50: $200.00 | D50: $180.00 | E50: Cloud | F50: Monthly Subscription
A51: GCCLAGAPI-001 | B51: Agvance API Calls - 100,000 Agvance API calls per month (per month - min 12 months) | C51: $100.00 | D51: $90.00 | E51: Cloud | F51: Monthly Subscription
A52: GlobalSearch Cloud IIM Add Ons - Storage Expansion
A53: GSCL-STOR-006 | B53: GlobalSearch Cloud Storage - Per 10 GB up to 100 GB (per month - min 12 months) | C53: $10.00 | D53: $9.00 | E53: Cloud | F53: Monthly Subscription
A54: GSCL-STOR-007 | B54: GlobalSearch Cloud Storage - Per 100 GB - (per month - min 12 months) | C54: $65.00 | D54: $59.00 | E54: Cloud | F54: Monthly Subscription
A55: GSCL-STOR-008 | B55: GlobalSearch Cloud Storage - Per 1 TB - (per month - min 12 months) | C55: $300.00 | D55: $270.00 | E55: Cloud | F55: Monthly Subscription
A56: GSCL-CRDR-001 | B56: Cross Region Data Replication - - (per month - min 12 months) (AVAILABLE IN ENTERPRISE EDITION ONLY) | C56: $1.00 | D56: =ROUND(C56*(1-0.05),2) -> $0.95 | E56: Cloud | F56: Monthly Subscription
A57: GlobalSearch Cloud IIM Add Ons - Internal and Public Access Portals
A58: GSCLRO-002 | B58: GlobalSearch Internal Read Only License (1-25 users) (per month - min 12 months) | C58: $25.00 | D58: $23.00 | E58: Cloud | F58: Monthly Subscription
A59: GSCLRO-003 | B59: GlobalSearch Internal Read Only License (26-250 users) (per month - min 12 months) | C59: $20.00 | D59: $18.00 | E59: Cloud | F59: Monthly Subscription
A60: GSCLPAP-001 | B60: GlobalSearch Guest Public Access Portal - 100 Users (per month - min 12 months) External users only | C60: $175.00 | D60: $158.00 | E60: Cloud | F60: Monthly Subscription
A61: GSCLPAP-002 | B61: GlobalSearch Guest Public Access Portal - 250 Users (per month - min 12 months) external users only | C61: $250.00 | D61: $225.00 | E61: Cloud | F61: Monthly Subscription
A62: GSCLPAP-003 | B62: GlobalSearch Guest Public Access Portal - 500 Users (per month - min 12 months) External users only | C62: $350.00 | D62: $315.00 | E62: Cloud | F62: Monthly Subscription
A63: GSCLPAP-004 | B63: GlobalSearch Guest Public Access Portal - Unlimited User Access (per month - min 12 months) External users only | C63: $500.00 | D63: $450.00 | E63: Cloud | F63: Monthly Subscription
A64: GSCLAPPVL-001 | B64: GlobalSearch Cloud Approval License (per month - min 12 months) Ready Only license with process approval capabilities. Does NOT include coding or annotation capabilities. | C64: $35.00 | D64: $32.00 | E64: Cloud | F64: Monthly Subscription
A65: GlobalSearch Cloud IIM Add Ons - Misc.
A66: GSCLDBI-001 | B66: Global Data Integration (Provides a siloed cloud hosted database for uploading local data files into the Square 9 IIM Platform) | C66: $50.00 | D66: $45.00 | E66: Cloud | F66: One Time Fee
A67: GSCLDBI-002 | B67: Managed Data Import service (Managed services for uploading up to 5 unique data sources into 5 unique data tables for import into the Square 9 cloud) | C67: $25.00 | D67: $23.00 | E67: Cloud | F67: One Time Fee
A68: GSCLINTL-001 | B68: Non-US Data Hosting (Required of all Square 9 Instances located outside of the US and reflects the passthrough of the 10% upcharge incurred from AWS for non US hosting) | C68: $10.00 | D68: $9.00 | E68: Cloud | F68: One Time Fee
A69: GSCLUP-001 | B69: GlobalSearch Cloud Subscription Upgrade (calculate quantity based on $1 increments) | C69: $1.00 | D69: =ROUND(C69*(1-0.05),0) -> $1.00 | E69: Cloud | F69: Monthly Subscription
A70: GSCLTB-001 | B70: Test Bench License - - (per month - min 12 months) (AVAILABLE IN ENTERPRISE EDITION ONLY) calculated as 20% of Subscription total | C70: $1.00 | D70: =ROUND(C70*(1-0.1),1) -> $0.90 | E70: Cloud | F70: Monthly Subscription
A71: S9SCLDTEA-001 | B71: Cloud Term Extension (used for contracts greater than 3 years) | C71: $1.00 | D71: =ROUND(C71*(1-0.1),1) -> $0.90 | E71: Cloud | F71: Monthly Subscription
A73: GLOBAL SEARCH ON PREMISE SUBSCRIPTION
A74: Vendor Part # | B74: Description | C74: MSRP | D74: NASPO PRICE | E74: Category | F74: Type
A75: GlobalSearch Process Automation Essentials (Unlimited Workflow- Basic Capture Only)
A76: GSPAE-001LT | B76: GlobalSearch On Premise Subscription -Process Automation Essentials Edition - per month per named user 5-15 User Tier | C76: $45.00 | D76: $41.00 | E76: On Premise | F76: Monthly Subscription
A77: GSPAE-002LT | B77: GlobalSearch On Premise Subscription - Process Automation Essentials Edition - per month per named user 16-25 User Tier | C77: $40.00 | D77: $36.00 | E77: On Premise | F77: Monthly Subscription
A78: GlobalSearch Digital Transformation Essentials (Includes Unltd GlobalAction Workflows, Dual Core Transformation Svs & GlobalForms Design Studio- 5 forms)
A79: GSDTE-001LT | B79: GlobalSearch On Premise Subscription Digital Transformation Essentials Edition - per month per named user cost for 5-15 named users | C79: $60.00 | D79: $54.00 | E79: On Premise | F79: Monthly Subscription
A80: GSDTE-002LT | B80: GlobalSearch On Premise SubscriptionDigital Transformation Essentials Edition - per month per named user cost for 16-25 named users | C80: $50.00 | D80: $45.00 | E80: On Premise | F80: Monthly Subscription
A81: GSDTE-003LT | B81: GlobalSearch On Premise Subscription Digital Transformation Essentials Edition - per month per named user cost for 26-50 named users | C81: $45.00 | D81: $41.00 | E81: On Premise | F81: Monthly Subscription
A82: GSDTE-004LT | B82: GlobalSearch On Premise Subscription Digital Transformation Essentials Edition - per month per named user cost for 51-100 named users | C82: $40.00 | D82: $36.00 | E82: On Premise | F82: Monthly Subscription
A83: GSDTE-005LT | B83: GlobalSearch On Premise Subscription Digital Transformation Essentials Edition - per month per named user cost for 101-250 named users | C83: $35.00 | D83: =ROUND(C83*(1-0.1),0) -> $32.00 | E83: On Premise | F83: Monthly Subscription
A84: GlobalSearch Enterprise Essentials (Includes Unltd GlobalAction Workflows, Unltd Forms & On Premise Quad Core Transformation Svs)
A85: GSEEE-001LT | B85: GlobalSearch On Premise Subscription Enterprise Essentials Edition - per month per named user for 10-15 named users | C85: $70.00 | D85: $63.00 | E85: On Premise | F85: Monthly Subscription
A86: GSEEE-002LT | B86: GlobalSearch On Premise Subscription Enterprise Essentials Edition - per month per named user for 16-25 named users | C86: $65.00 | D86: $59.00 | E86: On Premise | F86: Monthly Subscription
A87: GSEEE-003LT | B87: GlobalSearch On Premise Subscription Enterprise Essentials Edition - per month per named user for 26-50 named users | C87: $55.00 | D87: $50.00 | E87: On Premise | F87: Monthly Subscription
A88: GSEEE-004LT | B88: GlobalSearch On Premise Subscription Enterprise Essentials Edition - per month per named user for 51-100 named users | C88: $45.00 | D88: $41.00 | E88: On Premise | F88: Monthly Subscription
A89: GSEEE-005LT | B89: GlobalSearch On Premise Subscription Enterprise Essentials Edition - per month per named user for 101-250 named users | C89: $40.00 | D89: $36.00 | E89: On Premise | F89: Monthly Subscription
A90: GlobalSearch On Premise Subsciption IIM Add ons
A91: SSIMXCH-002LT | B91: Image Xchange per named user (per month - min 12 months) | C91: $10.00 | D91: $9.00 | E91: On Premise | F91: Monthly Subscription
A92: SSIMXCH-003LT | B92: Image Xchange Enterprise - (per month - min 12 months) | C92: $100.00 | D92: $90.00 | E92: On Premise | F92: Monthly Subscription
A93: GCCLQBOL-001 | B93: QuickBooks Online iPaaS Connector - (per month - minimum 12 mos) | C93: $65.00 | D93: $59.00 | E93: On Premise | F93: Monthly Subscription
A94: GCCLCTSDYN-001 | B94: Dynamics 365 iPaaS Connector - (per month - minimum 12 mos) | C94: $65.00 | D94: $59.00 | E94: On Premise | F94: Monthly Subscription
A95: GSCLNSIPAAS-001 | B95: NetSuite iPaaS Connector - (per month - minimum 12 mos) | C95: $95.00 | D95: $86.00 | E95: On Premise | F95: Monthly Subscription
A96: GSCLIPAAS-001 | B96: Universal iPaaS Cponnector - (per month - minimum 12 mos) | C96: $95.00 | D96: $86.00 | E96: On Premise | F96: Monthly Subscription
A97: GSRO-002LT | B97: GlobalSearch Internal Read Only License (1-25 users) (per month - min 12 months) | C97: $25.00 | D97: $23.00 | E97: On Premise | F97: Monthly Subscription
A98: GSROEXT-002LT | B98: GlobalSearch Internal Read Only License (26-250 users) (per month - min 12 months) | C98: $20.00 | D98: $18.00 | E98: On Premise | F98: Monthly Subscription
A99: GSPAP-001LT | B99: GlobalSearch Guest Public Access Portal - 100 Users (per month - min 12 months) External users only | C99: $150.00 | D99: $135.00 | E99: On Premise | F99: Monthly Subscription
A100: GSPAP-002LT | B100: GlobalSearch Guest Public Access Portal - 250 Users (per month - min 12 months) External users only | C100: $225.00 | D100: $203.00 | E100: On Premise | F100: Monthly Subscription
A101: GSPAP-003LT | B101: GlobalSearch Guest Public Access Portal - 500 Users (per month - min 12 months) External users only | C101: $300.00 | D101: $270.00 | E101: On Premise | F101: Monthly Subscription
A102: GSPAP-004LT | B102: GlobalSearch Guest Public Access Portal - Unlimited Users (per month - min 12 months) External users only | C102: $500.00 | D102: $450.00 | E102: On Premise | F102: Monthly Subscription
A103: GSTB-001LT | B103: Test Bench License - (AVAILABLE IN ENTERPRISE EDITION ONLY) Limited copy of proudction instance for test and development - calculated as 20% of Subscription total | C103: $1.00 | D103: =ROUND(C103*(1-0.05),2) -> $0.95 | E103: On Premise | F103: Monthly Subscription
A104: GSGAASL-001LT | B104: GlobalSearch / GlobalAction Additional Server License (GlobalCapture Additional Server License) | C104: $50.00 | D104: $45.00 | E104: On Premise | F104: Monthly Subscription
A106: ON PREMISE PERPETUAL IIM LICENSE - (Require First Year M&S with Purchase)
A107: Vendor Part # | B107: Description | C107: MSRP | D107: NASPO PRICE | E107: Category | F107: Type
A108: GlobalSearch Process Automation Essentials - On Premise Perpetual Licensing
A109: GSPAE-001 | B109: GlobalSearch On Premise Perpetual License -Process Automation Essentials Edition - per named user 5-15 User Tier | C109: $600.00 | D109: $540.00 | E109: On Premise | F109: Perpetual
A110: GSPAE-001MS | B110: GlobalSearch On Premise Perpetual License -Process Automation Essentials Edition - M&S | C110: $10.00 | D110: $9.00 | E110: M&S | F110: Monthly Subscription
A111: GSPAE-002 | B111: GlobalSDearch On Premise Perpetual License - Process Automation Essentials Edition - per named user 16-25 User Tier | C111: $550.00 | D111: $495.00 | E111: On Premise | F111: Perpetual
A112: GSPAE-002MS | B112: GlobalSDearch On Premise Perpetual License - Process Automation Essentials Edition - M&S | C112: $9.00 | D112: $8.00 | E112: M&S | F112: Monthly Subscription
A113: GlobalSearch Digital Transformation Essentials -On Premise Perpetual Licensing
A114: GSDTE-001 | B114: GlobalSearch On Premise Perpetual License Digital Transformation Essentials Edition - per named user cost for 5-15 named users | C114: $800.00 | D114: $720.00 | E114: On Premise | F114: Perpetual
A115: GSDTE-001MS | B115: GlobalSearch On Premise Perpetual License Digital Transformation Essentials Edition cost for 5-15 named users - M&S | C115: $14.00 | D115: $13.00 | E115: M&S | F115: Monthly Subscription
A116: GSDTE-002 | B116: GlobalSearch On Premise Perpetual License Digital Transformation Essentials Edition - per named user cost for 16-25 named users | C116: $650.00 | D116: $585.00 | E116: On Premise | F116: Perpetual
A117: GSDTE-002MS | B117: GlobalSearch On Premise Perpetual License Digital Transformation Essentials Edition cost for 16-25 named users - M&S | C117: $11.00 | D117: $10.00 | E117: M&S | F117: Monthly Subscription
A118: GSDTE-003 | B118: GlobalSearch On Premise Perpetual License Digital Transformation Essentials Edition - per named user cost for 26-50 named users | C118: $550.00 | D118: $495.00 | E118: On Premise | F118: Perpetual
A119: GSDTE-003MS | B119: GlobalSearch On Premise Perpetual License Digital Transformation Essentials Edition cost for 26-50 named users - M&S | C119: $10.00 | D119: $9.00 | E119: M&S | F119: Monthly Subscription
A120: GSDTE-004 | B120: GlobalSearch On Premise Perpetual License Digital Transformation Essentials Edition - per named user cost for 51-100 named users | C120: $450.00 | D120: $405.00 | E120: On Premise | F120: Perpetual
A121: GSDTE-004MS | B121: GlobalSearch On Premise Perpetual License Digital Transformation Essentials Edition cost for 51-100 named users - M&S | C121: $8.00 | D121: $7.00 | E121: M&S | F121: Monthly Subscription
A122: GSDTE-005 | B122: GlobalSearch On Premise Perpetual License Digital Transformation Essentials Edition - per named user cost for 101-250 named users | C122: $350.00 | D122: $315.00 | E122: On Premise | F122: Perpetual
A123: GSDTE-005MS | B123: GlobalSearch On Premise Perpetual License Digital Transformation Essentials Edition cost for 101-250 named users - M&S | C123: $6.00 | D123: $5.00 | E123: M&S | F123: Monthly Subscription
A124: GlobalSearch Enterprise Essentials - On Premise Perpetual Licensing
A125: GSEEE-001 | B125: GlobalSearch On Premise Perpetual License Enterprise Essentials Edition - per named user for 10-15 named users | C125: $900.00 | D125: $810.00 | E125: On Premise | F125: Perpetual
A126: GSEEE-001MS | B126: GlobalSearch On Premise Perpetual License Enterprise Essentials Edition - M&S | C126: $15.00 | D126: $14.00 | E126: M&S | F126: Monthly Subscription
A127: GSEEE-002 | B127: GlobalSearch On Premise Perpetual License Enterprise Essentials Edition - per named user for 16-25 named users | C127: $750.00 | D127: $675.00 | E127: On Premise | F127: Perpetual
A128: GSEEE-002MS | B128: GlobalSearch On Premise Perpetual License Enterprise Essentials Edition - M&S | C128: $13.00 | D128: $12.00 | E128: M&S | F128: Monthly Subscription
A129: GSEEE-003 | B129: GlobalSearch On Premise Perpetual License Enterprise Essentials Edition - per named user for 26-50 named users | C129: $650.00 | D129: $585.00 | E129: On Premise | F129: Perpetual
A130: GSEEE-003MS | B130: GlobalSearch On Premise Perpetual License Enterprise Essentials Edition - M&S | C130: $11.00 | D130: $10.00 | E130: M&S | F130: Monthly Subscription
A131: GSEEE-004 | B131: GlobalSearch On Premise Perpetual License Enterprise Essentials Edition - per named user for 51-100 named users | C131: $550.00 | D131: $495.00 | E131: On Premise | F131: Perpetual
A132: GSEEE-004MS | B132: GlobalSearch On Premise Perpetual License Enterprise Essentials Edition - M&S | C132: $10.00 | D132: $9.00 | E132: M&S | F132: Monthly Subscription
A133: GSEEE-005 | B133: GlobalSearch On Premise Perpetual License Enterprise Essentials Edition - per named user for 101-250 named users | C133: $450.00 | D133: $405.00 | E133: On Premise | F133: Perpetual
A134: GSEEE-005MS | B134: GlobalSearch On Premise Perpetual License Enterprise Essentials Edition - M&S | C134: $8.00 | D134: $7.00 | E134: M&S | F134: Monthly Subscription
A136: ON PREMISE PERPETUAL IIM ADD ONS
A137: Vendor Part # | B137: Description | C137: MSRP | D137: NASPO PRICE | E137: Category | F137: Type
A138: Integration
A139: SSIMXCH-002 | B139: Image Xchange per named user | C139: $100.00 | D139: $90.00 | E139: On Premise | F139: Perpetual
A140: SSIMXCH-002MS | B140: Image Xchange per named user - Maintenance & Support | C140: $2.00 | D140: $2.00 | E140: M&S | F140: Monthly Subscription
A141: SSIMXCH-003 | B141: Image Xchange Enterprise | C141: $1,000.00 | D141: $900.00 | E141: On Premise | F141: Perpetual
A142: SSIMXCH-003MS | B142: Image Xchange Enterprise - Maintenance & Support | C142: $17.00 | D142: $15.00 | E142: M&S | F142: Monthly Subscription
A143: GCCLCTSDYN-001 | B143: QuickBooks Online iPaaS Connector - (per month - minimum 12 mos) | C143: $65.00 | D143: $59.00 | E143: On Premise | F143: Monthly Subscription
A144: GCCLCTSDYN-001 | B144: Dynamics 365 iPaaS Connector - (per month - minimum 12 mos) | C144: $65.00 | D144: $59.00 | E144: On Premise | F144: Monthly Subscription
A145: GSCLNSIPAAS-001 | B145: NetSuite iPaaS Connector - (per month - minimum 12 mos) | C145: $95.00 | D145: $86.00 | E145: On Premise | F145: Monthly Subscription
A146: GSCLIPAAS-001 | B146: Universal iPaaS Connector - (per month - minimum 12 mos) | C146: $95.00 | D146: $86.00 | E146: On Premise | F146: Monthly Subscription
A147: Web Portals
A148: GSRO-002 | B148: GlobalSearch Internal Read Only License (1-25 users) | C148: $250.00 | D148: =ROUND(C148*(1-0.1),0) -> $225.00 | E148: On Premise | F148: Perpetual
A149: GSRO-002MS | B149: GlobalSearch Internal Read Only License (1-25 users) - M&S | C149: $4.00 | D149: $4.00 | E149: M&S | F149: Monthly Subscription
A150: GSRO-003 | B150: GlobalSearch Internal Read Only License (26-250 users) | C150: $200.00 | D150: $180.00 | E150: On Premise | F150: Perpetual
A151: GSRO-003MS | B151: GlobalSearch Internal Read Only License (26-250 users) - M&S | C151: $4.00 | D151: $4.00 | E151: M&S | F151: Monthly Subscription
A152: GSPAPUSER-001 | B152: GlobalSearch Guest Public Access Portal - 100 Users | C152: $5,000.00 | D152: $4,500.00 | E152: On Premise | F152: Perpetual
A153: GSPAPUSER-001MS | B153: GlobalSearch Guest Public Access Portal - 100 Users - M&S | C153: $84.00 | D153: $76.00 | E153: M&S | F153: Monthly Subscription
A154: GSPAPUSER-002 | B154: GlobalSearch Guest Public Access Portal - 250 Users | C154: $10,000.00 | D154: $9,000.00 | E154: On Premise | F154: Perpetual
A155: GSPAPUSER-002MS | B155: GlobalSearch Guest Public Access Portal - 250 Users - M&S | C155: $167.00 | D155: $150.00 | E155: M&S | F155: Monthly Subscription
A156: GSPAPUSER-003 | B156: GlobalSearch Guest Public Access Portal - 500 Users | C156: $15,000.00 | D156: $13,500.00 | E156: On Premise | F156: Perpetual
A157: GSPAPUSER-003MS | B157: GlobalSearch Guest Public Access Portal - 500 Users - M&S | C157: $250.00 | D157: $225.00 | E157: M&S | F157: Monthly Subscription
A158: GSPAPUSER-004 | B158: GlobalSearch Guest Public Access Portal - Unlimited Users | C158: $20,000.00 | D158: $18,000.00 | E158: On Premise | F158: Perpetual
A159: GSPAPUSER-004MS | B159: GlobalSearch Guest Public Access Portal - Unlimited Users - M&S | C159: $334.00 | D159: $301.00 | E159: M&S | F159: Monthly Subscription
A160: System Expansion
A161: GSAPGASL-001 | B161: GlobalSearch / GlobalAction Additional Server License | C161: $1,250.00 | D161: $1,125.00 | E161: On Premise | F161: Perpetual
A162: GSAPGASL-001MS | B162: GlobalSearch / Globalaction Additional Server License - Maintenance & Support | C162: $22.00 | D162: $20.00 | E162: M&S | F162: Monthly Subscription
A163: GSTB-001 | B163: Test Bench License - (AVAILABLE IN ENTERPRISE EDITION ONLY) calculated as 20% of Subscription total | C163: $1.00 | D163: =ROUND(C163*(1-0.1),1) -> $0.90 | E163: On Premise | F163: Perpetual
A164: GSTB-001MS | B164: Test Bench License M&S - (AVAILABLE IN ENTERPRISE EDITION ONLY) calculated as 20% of Subscription total | C164: $1.00 | D164: =ROUND(C164*(1-0.1),1) -> $0.90 | E164: M&S | F164: Monthly Subscription
A166: CLOUD TRANSFORMATION SERVICES
A167: Vendor Part # | B167: Description | C167: MSRP | D167: NASPO PRICE | E167: Category | F167: Type
A168: Core Transformation Services
A169: GCCLCTSSOR-001 | B169: GlobalCapture Structured Transformation Services (per instance, per month - 12 months required) | C169: $275.00 | D169: $248.00 | E169: Cloud | F169: Monthly Subscription
A170: GCCLCTSUOR-001 | B170: GlobalCapture Unstructured Transformation Services (per instance, per month - 12 months required) | C170: $325.00 | D170: $293.00 | E170: Cloud | F170: Monthly Subscription
A171: GCCLCTSENT-002 | B171: GlobalCapture Enterprise Transformation Services (per instance, per month - 12 months required) | C171: $375.00 | D171: $338.00 | E171: Cloud | F171: Monthly Subscription
A172: AI Services
A173: GSCLTAIOCR-001 | B173: ArticulateML 1000 Pages Per Month (priced per month -12 months required) | C173: $225.00 | D173: $203.00 | E173: Cloud | F173: Monthly Subscription
A174: GCCLINQAI-001 | B174: InquireAI Header Data Extraction 5000 Pages Per Month (priced per month/per instance -12 months required) | C174: $250.00 | D174: $225.00 | E174: Cloud | F174: Monthly Subscription
A175: GCCLINQAI-002 | B175: InquireAI Header and Table Data Extraction 5000 Pages Per Month (priced per month/per instance -12 months required) | C175: $495.00 | D175: $446.00 | E175: Cloud | F175: Monthly Subscription
A176: GCCLINQAI-003 | B176: InquireAI Upgrade to Header and Table Data Extraction (priced per month/per instance -12 months required) *Upgrades InquireAI Customers from Header Data Extraction to Header and Table Data Extraction | C176: $245.00 | D176: $221.00 | E176: Cloud | F176: Monthly Subscription
A177: GCCLINQAI-004 | B177: InquireAI One Time Use Header Data Extraction 2500 Pages | C177: $250.00 | D177: $225.00 | E177: Cloud | F177: One Time Fee
A178: GCCLINQAI-005 | B178: InquireAI One Time Use Header and Table Data Extraction 2500 Pages | C178: $375.00 | D178: $338.00 | E178: Cloud | F178: One Time Fee
A179: System Expansion
A180: GCCLCTSUSR-001 | B180: Addl GlobalCapture User License (per instance, per month - 12 months required) | C180: $50.00 | D180: $45.00 | E180: Cloud | F180: Monthly Subscription
A181: GCCLCTSUPG-001 | B181: Additional Daily Page Count - +250 Pages Per Day - (per Instance, per month) | C181: $25.00 | D181: $23.00 | E181: Cloud | F181: Monthly Subscription
A182: GCCLCTSUPG-002 | B182: Additional Daily Page Count - +500 Pages Per Day - (per Instance, per month) | C182: $50.00 | D182: $45.00 | E182: Cloud | F182: Monthly Subscription
A183: GCCLCTSUPG-003 | B183: Additional Daily Page Count - +1,000 Pages Per Day - (per Instance, per month) | C183: $100.00 | D183: $90.00 | E183: Cloud | F183: Monthly Subscription
A184: GCCLCTSUPG-004 | B184: Additional Daily Page Count - +2,500 Pages Per Day - (per Instance, per month) | C184: $175.00 | D184: $158.00 | E184: Cloud | F184: Monthly Subscription
A185: GCCL1XPGCT-001 | B185: One Time Page Count Increase - 10,000 pages | C185: $250.00 | D185: $225.00 | E185: Cloud | F185: Monthly Subscription
A186: GCCLBOOST-001 | B186: Cloud Transformation Boost Option Per Month (per month - min 12 months) | C186: $200.00 | D186: $180.00 | E186: Cloud | F186: Monthly Subscription
A187: Additional Web Forms
A188: GCCLCTSFRM-001 | B188: Additional GlobalForms Workflows - One (per instance, per month - 12 months required) | C188: $50.00 | D188: $45.00 | E188: Cloud | F188: Monthly Subscription
A189: GCCLCTSFRM-002 | B189: Additional GlobalForms Workflows - Five (per instance, per month - 12 months required) | C189: $195.00 | D189: $176.00 | E189: Cloud | F189: Monthly Subscription
A190: Integration
A191: GCCLCTSDYN-001 | B191: Dynamics 365 GlobalAutomation (per instance, per month - 12 months required) - AVAILABLE IN ENTERPRISE ONLY | C191: $95.00 | D191: $86.00 | E191: Cloud | F191: Monthly Subscription
A192: GCCLCTSTB-001 | B192: Disaster Recover/Test Bench License (per instance, per month - 12 months required) | C192: $1.00 | D192: =ROUND(C192*(1-0.1),1) -> $0.90 | E192: Cloud | F192: Monthly Subscription
A193: GCCLAGAPI-001 | B193: Agvance API Calls - 100,000 Agvance API calls per month (per month - min 12 months) | C193: $100.00 | D193: $90.00 | E193: Cloud | F193: Monthly Subscription
A194: Additional User Licensing
A195: GCCLAPPVL-001 | B195: GlobalCapture Cloud Approval License (per month - min 12 months) | C195: $35.00 | D195: $32.00 | E195: Cloud | F195: Monthly Subscription
A197: ON PREMISE TRANSFORMATION SERVICES
A198: Vendor Part # | B198: Description | C198: MSRP | D198: NASPO PRICE | E198: Category | F198: Type
A199: Core Transformation Services
A200: S9SCTSSOR-001LT | B200: GlobalCapture Structured Transformation Services (per instance, per month - 12 months required) | C200: $275.00 | D200: $248.00 | E200: On Premise | F200: Monthly Subscription
A201: S9SCTSUOR-001LT | B201: GlobalCapture Unstructured Transformation Services (per instance, per month - 12 months required) | C201: $425.00 | D201: $383.00 | E201: On Premise | F201: Monthly Subscription
A202: S9SCTSENT-002LT | B202: GlobalCapture Enterprise Transformation Services (per instance, per month - 12 months required) | C202: $550.00 | D202: $495.00 | E202: On Premise | F202: Monthly Subscription
A203: System Expansion
A204: S9SCTSUSR-002LT | B204: Addl GlobalCapture User License (per instance, per month - 12 months required) | C204: $50.00 | D204: $45.00 | E204: On Premise | F204: Monthly Subscription
A205: S9SCTSCOR-001LT | B205: Additional GlobalCapture Processing Cores - Two (2) - per Instance Per month | C205: $150.00 | D205: $135.00 | E205: On Premise | F205: Monthly Subscription
A206: S9SCTSCOR-002LT | B206: Additional GlobalCapture Processing Cores - four (4) - per Instance Per month | C206: $250.00 | D206: $225.00 | E206: On Premise | F206: Monthly Subscription
A207: S9SCTSCOR-003LT | B207: Additional GlobalCapture Processing Cores - six (6) - per Instance Per month | C207: $350.00 | D207: $315.00 | E207: On Premise | F207: Monthly Subscription
A208: S9SCTSSVR-001LT | B208: Additional GlobalCapture Server License - per instance per month - AVAILABLE IN ENTERPRISE ONLY | C208: $175.00 | D208: $158.00 | E208: On Premise | F208: Monthly Subscription
A209: Additional Web Forms
A210: S9SCTSFRM-001LT | B210: Additional GlobalForms Workflows - One (per instance, per month - 12 months required) | C210: $50.00 | D210: $45.00 | E210: On Premise | F210: Monthly Subscription
A211: S9SCTSFRM-002LT | B211: Additional GlobalForms Workflows - Five (per instance, per month - 12 months required) | C211: $195.00 | D211: =ROUND(C211*(1-0.1),0) -> $176.00 | E211: On Premise | F211: Monthly Subscription
A212: Inegration
A213: S9SCTSDYN-001LT | B213: Dynamics 365 GlobalAutomation (per instance, per month - 12 months required) | C213: $95.00 | D213: $86.00 | E213: On Premise | F213: Monthly Subscription
A214: S9SCTSTB-001LT | B214: Test Bench License (per instance, per month - 12 months required) | C214: $1.00 | D214: =ROUND(C214*(1-0.1),1) -> $0.90 | E214: On Premise | F214: Monthly Subscription
A216: ON PREMISE PERPETUAL LICENSE (Require First Year M&S with Purchase)
A217: Vendor Part # | B217: Description | C217: MSRP | D217: NASPO PRICE | E217: Category | F217: Type
... 48 more rows

Sheet Synappx
A1: Return To Table of Contents
A3: Synappx™ Services
A4: Price List
A6: Synapp applications work with your current office technology to bring smart home convenience into the workplace. Remove frustrating technology hassles from meetings. Share or print information right where it’s needed. Get smarter about your meeting spaces, all to drive better collaboration.
A13: Product Code | B13: Description | C13: Suggested Retail Price | D13: NASPO | E13: Type
A14: Synappx Go
A15: SW-COLLABSUITEY1 | B15: Synappx Go: 1 Room, 20 Users x 1 Year Subscription | C15: $549.00 | D15: =ROUND(C15*(1-0.1),0) -> $494.00 | E15: Subscription
A16: SW-COLLABSUITEY3 | B16: Synappx Go: 1 Room, 20 Users x 3 Year Subscription | C16: $1,304.00 | D16: =ROUND(C16*(1-0.1),0) -> $1,174.00 | E16: Subscription
A17: SW-COLLABTRIAL | B17: Synappx Go: 1 Room, 20 Users x 90 Day Trial | C17: No Fee | D17: No Fee | E17: Trial
A18: Additional Synappx Go User Licenses
A19: SW-S02U01Y1-S | B19: Synappx Go: 1 User x 1 Year Subscription | C19: $39.00 | D19: =ROUND(C19*(1-0.1),0) -> $35.00 | E19: Subscription
A20: SW-S02U01Y3-S | B20: Synappx Go: 1 User x 3 Year Subscription | C20: $99.00 | D20: =ROUND(C20*(1-0.1),0) -> $89.00 | E20: Subscription
A21: Additional Synappx Go Meeting Room Licenses
A22: SW-S01R01Y1 | B22: Synappx Meeting: 1 Room x 1 Year Subscription | C22: $119.00 | D22: =ROUND(C22*(1-0.1),0) -> $107.00 | E22: Subscription
A23: SW-S01R01Y3 | B23: Synappx Meeting: 1 Room x 3 Year Subscription | C23: $340.00 | D23: =ROUND(C23*(1-0.1),0) -> $306.00 | E23: Subscription
A24: Synappx NFC Tags
A25: SYNAPPX-NFC100 | B25: Synappx NFC Tags 100 Count (Blue) | C25: $199.00 | D25: =ROUND(C25*(1-0.1),0) -> $179.00 | E25: One Time Fee
A26: SYNAPPX-NFC100BLK | B26: Synappx NFC Tags 100 Count (Black) | C26: $199.00 | D26: =ROUND(C26*(1-0.1),0) -> $179.00 | E26: Accessory
A30: SHARP ELECTRONICS CORPORATION
A31: 100 Paragon Drive
A32: Montvale, NJ 07645
A33: Phone: 201-529-8200
A35: ©2025 Sharp Electronics Corporation. All rights reserved.
A36: Pricing, design and specifications subject to change without notice.
A37: Sharp and Synappx are registered trademarks of Sharp Corporation. Windows is a registered trademark of Microsoft Corporation in the United states and other countries. All other trademarks are the property of their respective owners.

Sheet Software Services
A1: Return To Table of Contents
A5: Pending future product offerings
